Workbook

Sheet Guide
A18: NOTE : Le présent calculateur est mis à la disposition des promoteurs de projets de crédits compensatoires dans le but de faciliter la détermination du bilan des projets réalisés en vertu du Règlement relatif aux projets de boisement et de reboisement sur des terres du domaine privé admissibles à la délivrance de crédits compensatoires. Par conséquent, les résultats générés par cet outil de calcul ne le sont qu'à titre indicatif, et seule la complétude de l'étape de vérification d'un projet de crédits compensatoires, réalisée en vertu du processus de délivrance des crédits compensatoires défini par le MELCCFP, pourra permettre au ministre de statuer sur le nombre exact de crédits compensatoires à délivrer à un promoteur.
A20: Informations à l'intention du promoteur
A22: Survol
A23: Le calculateur permet de quantifier l'effet radiatif associé aux flux de GES résultant de la simulation de l'évolution du carbone des scénarios de référence et de projet associés à un projet de séquestration du carbone de type boisement et reboisement.
A24: Le calculateur permet également de déterminer le nombre de crédits compensatoires (CrC) à délivrer à la fin d'une période de déclaration selon le cadre et les exigences du volet des crédits compensatoires du système de plafonnement et d’échange de droits d’émission de gaz à effet de serre du Québec
A25: (SPEDE) et selon le Règlement relatif aux projets de boisement et de reboisement sur des terres du domaine privé admissibles à la délivrance de crédits compensatoires.
A27: Le promoteur doit définir les années de début et de fin du projet, pour le scénario de projet et pour le scénario de référence. Il doit définir l'inventaire des stocks de carbone des réservoirs "Total Écosystème" forestier, "Résineux marchands" et "Feuillus marchands" générés par le Modèle du bilan du
A28: carbone du secteur forestier canadien (MBC-SFS), l'inventaire des émissions annuelles de gaz à effet de serre (GES : dioxyde de carbone ou CO2, méthane ou CH4, oxyde nitreux ou N2O) générées, entre autres, par la combustion de carburants fossiles ou l'usage d'engrais azotés.
A30: Le calculateur indique ensuite le nombre de crédits compensatoires à délivrer pour les périodes de déclaration spécifiées par le promoteur.
... 29 more rows

Sheet Projet
A2: Section 1 Informations générales
D4: Nom du projet :
D5: Numéro du projet :
D6: Nom du promoteur :
D7: Nom du responsable du promoteur :
D8: Région administrative principale :
D9: Domaine et sous-domaine bioclimatiques :
D10: Matrice de répartition par produits des volumes de bois récoltés : | E10: Provinciale (par défaut) | P10: =IF(OR(E10="",E10="Provinciale (par défaut)"),"repartition01",IF(E10="Définie par le promoteur","repartition02")) -> repartition01
D11: Matrice de demi-vie des produits forestiers ligneux : | E11: Provinciale (par défaut) | P11: =IF(OR(E11="",E11="Provinciale (par défaut)"),"demivie01",IF(E11="Définie par le promoteur","demivie02")) -> demivie01
E12: =IF(P10="matrice02","LA RÉPARTITION DES PRODUITS DU BOIS DOIT ÊTRE ENTRÉE À L'ONGLET 'DONNÉES'","") -> 
D13: Durée du projet
D14: Début :
D15: Fin :
A17: Section 2 Entrée des données tirées de MBC-SFC pour les scénarios de projet et de référence
H19: Année
H20: =debut -> 0 | I20: =H20+1 -> 1 | J20: =I20+1 -> 2 | K20: =J20+1 -> 3 | L20: =K20+1 -> 4 | M20: =L20+1 -> 5 | N20: =M20+1 -> 6 | O20: =N20+1 -> 7 | P20: =O20+1 -> 8 | Q20: =P20+1 -> 9 | R20: =Q20+1 -> 10 | S20: =R20+1 -> 11 | T20: =S20+1 -> 12 | U20: =T20+1 -> 13 | V20: =U20+1 -> 14 | W20: =V20+1 -> 15 | X20: =W20+1 -> 16 | Y20: =X20+1 -> 17 | Z20: =Y20+1 -> 18 | AA20: =Z20+1 -> 19 | AB20: =AA20+1 -> 20 | AC20: =AB20+1 -> 21 | AD20: =AC20+1 -> 22 | AE20: =AD20+1 -> 23 | AF20: =AE20+1 -> 24 | AG20: =AF20+1 -> 25 | AH20: =AG20+1 -> 26 | AI20: =AH20+1 -> 27 | AJ20: =AI20+1 -> 28 | AK20: =AJ20+1 -> 29 | AL20: =AK20+1 -> 30 | AM20: =AL20+1 -> 31 | AN20: =AM20+1 -> 32 | AO20: =AN20+1 -> 33 | AP20: =AO20+1 -> 34 | AQ20: =AP20+1 -> 35 | AR20: =AQ20+1 -> 36 | AS20: =AR20+1 -> 37 | AT20: =AS20+1 -> 38 | AU20: =AT20+1 -> 39 | AV20: =AU20+1 -> 40 | AW20: =AV20+1 -> 41 | AX20: =AW20+1 -> 42 | AY20: =AX20+1 -> 43 | AZ20: =AY20+1 -> 44 | BA20: =AZ20+1 -> 45 | BB20: =BA20+1 -> 46 | BC20: =BB20+1 -> 47 | BD20: =BC20+1 -> 48 | BE20: =BD20+1 -> 49 | BF20: =BE20+1 -> 50 | BG20: =BF20+1 -> 51 | BH20: =BG20+1 -> 52 | BI20: =BH20+1 -> 53 | BJ20: =BI20+1 -> 54 | BK20: =BJ20+1 -> 55 | BL20: =BK20+1 -> 56 | BM20: =BL20+1 -> 57 | BN20: =BM20+1 -> 58 | BO20: =BN20+1 -> 59 | BP20: =BO20+1 -> 60 | BQ20: =BP20+1 -> 61 | BR20: =BQ20+1 -> 62 | BS20: =BR20+1 -> 63 | BT20: =BS20+1 -> 64 | BU20: =BT20+1 -> 65 | BV20: =BU20+1 -> 66 | BW20: =BV20+1 -> 67 | BX20: =BW20+1 -> 68 | BY20: =BX20+1 -> 69 | BZ20: =BY20+1 -> 70 | CA20: =BZ20+1 -> 71 | CB20: =CA20+1 -> 72 | CC20: =CB20+1 -> 73 | CD20: =CC20+1 -> 74 | CE20: =CD20+1 -> 75 | CF20: =CE20+1 -> 76 | CG20: =CF20+1 -> 77 | CH20: =CG20+1 -> 78 | CI20: =CH20+1 -> 79 | CJ20: =CI20+1 -> 80 | CK20: =CJ20+1 -> 81 | CL20: =CK20+1 -> 82 | CM20: =CL20+1 -> 83 | CN20: =CM20+1 -> 84 | CO20: =CN20+1 -> 85 | CP20: =CO20+1 -> 86 | CQ20: =CP20+1 -> 87 | CR20: =CQ20+1 -> 88 | CS20: =CR20+1 -> 89 | CT20: =CS20+1 -> 90 | CU20: =CT20+1 -> 91 | CV20: =CU20+1 -> 92 | CW20: =CV20+1 -> 93 | CX20: =CW20+1 -> 94 | CY20: =CX20+1 -> 95 | CZ20: =CY20+1 -> 96 | DA20: =CZ20+1 -> 97 | DB20: =DA20+1 -> 98 | DC20: =DB20+1 -> 99 | DD20: =DC20+1 -> 100 | DE20: =DD20+1 -> 101 | DF20: =DE20+1 -> 102 | DG20: =DF20+1 -> 103 | DH20: =DG20+1 -> 104 | DI20: =DH20+1 -> 105 | DJ20: =DI20+1 -> 106 | DK20: =DJ20+1 -> 107 | DL20: =DK20+1 -> 108 | DM20: =DL20+1 -> 109 | DN20: =DM20+1 -> 110 | DO20: =DN20+1 -> 111 | DP20: =DO20+1 -> 112 | DQ20: =DP20+1 -> 113 | DR20: =DQ20+1 -> 114 | DS20: =DR20+1 -> 115 | DT20: =DS20+1 -> 116 | DU20: =DT20+1 -> 117 | DV20: =DU20+1 -> 118 | DW20: =DV20+1 -> 119 | DX20: =DW20+1 -> 120 | DY20: =DX20+1 -> 121 | DZ20: =DY20+1 -> 122 | EA20: =DZ20+1 -> 123 | EB20: =EA20+1 -> 124 | EC20: =EB20+1 -> 125 | ED20: =EC20+1 -> 126 | EE20: =ED20+1 -> 127 | EF20: =EE20+1 -> 128 | EG20: =EF20+1 -> 129 | EH20: =EG20+1 -> 130 | EI20: =EH20+1 -> 131 | EJ20: =EI20+1 -> 132 | EK20: =EJ20+1 -> 133 | EL20: =EK20+1 -> 134 | EM20: =EL20+1 -> 135 | EN20: =EM20+1 -> 136 | EO20: =EN20+1 -> 137 | EP20: =EO20+1 -> 138 | EQ20: =EP20+1 -> 139 | ER20: =EQ20+1 -> 140 | ES20: =ER20+1 -> 141 | ET20: =ES20+1 -> 142 | EU20: =ET20+1 -> 143 | EV20: =EU20+1 -> 144 | EW20: =EV20+1 -> 145 | EX20: =EW20+1 -> 146 | EY20: =EX20+1 -> 147 | EZ20: =EY20+1 -> 148 | FA20: =EZ20+1 -> 149 | FB20: =FA20+1 -> 150 | FC20: =FB20+1 -> 151 | FD20: =FC20+1 -> 152 | FE20: =FD20+1 -> 153 | FF20: =FE20+1 -> 154 | FG20: =FF20+1 -> 155 | FH20: =FG20+1 -> 156 | FI20: =FH20+1 -> 157 | FJ20: =FI20+1 -> 158 | FK20: =FJ20+1 -> 159 | FL20: =FK20+1 -> 160 | FM20: =FL20+1 -> 161 | FN20: =FM20+1 -> 162 | FO20: =FN20+1 -> 163 | FP20: =FO20+1 -> 164 | FQ20: =FP20+1 -> 165 | FR20: =FQ20+1 -> 166 | FS20: =FR20+1 -> 167 | FT20: =FS20+1 -> 168 | FU20: =FT20+1 -> 169 | FV20: =FU20+1 -> 170 | FW20: =FV20+1 -> 171 | FX20: =FW20+1 -> 172 | FY20: =FX20+1 -> 173 | FZ20: =FY20+1 -> 174 | GA20: =FZ20+1 -> 175 | GB20: =GA20+1 -> 176 | GC20: =GB20+1 -> 177 | GD20: =GC20+1 -> 178 | GE20: =GD20+1 -> 179 | GF20: =GE20+1 -> 180 | GG20: =GF20+1 -> 181 | GH20: =GG20+1 -> 182 | GI20: =GH20+1 -> 183 | GJ20: =GI20+1 -> 184 | GK20: =GJ20+1 -> 185 | GL20: =GK20+1 -> 186 | GM20: =GL20+1 -> 187 | GN20: =GM20+1 -> 188 | GO20: =GN20+1 -> 189 | GP20: =GO20+1 -> 190 | GQ20: =GP20+1 -> 191 | GR20: =GQ20+1 -> 192 | GS20: =GR20+1 -> 193 | GT20: =GS20+1 -> 194 | GU20: =GT20+1 -> 195 | GV20: =GU20+1 -> 196 | GW20: =GV20+1 -> 197 | GX20: =GW20+1 -> 198 | GY20: =GX20+1 -> 199
G21: Année du projet
G22: 0 | H22: =G22+1 -> 1 | I22: =H22+1 -> 2 | J22: 3 | K22: 4 | L22: 5 | M22: 6 | N22: 7 | O22: 8 | P22: 9 | Q22: 10 | R22: 11 | S22: 12 | T22: 13 | U22: 14 | V22: 15 | W22: 16 | X22: 17 | Y22: 18 | Z22: 19 | AA22: 20 | AB22: 21 | AC22: 22 | AD22: 23 | AE22: 24 | AF22: 25 | AG22: 26 | AH22: 27 | AI22: 28 | AJ22: 29 | AK22: 30 | AL22: 31 | AM22: 32 | AN22: 33 | AO22: 34 | AP22: 35 | AQ22: 36 | AR22: 37 | AS22: 38 | AT22: 39 | AU22: 40 | AV22: 41 | AW22: 42 | AX22: 43 | AY22: 44 | AZ22: 45 | BA22: 46 | BB22: 47 | BC22: 48 | BD22: 49 | BE22: 50 | BF22: 51 | BG22: 52 | BH22: 53 | BI22: 54 | BJ22: 55 | BK22: 56 | BL22: 57 | BM22: 58 | BN22: 59 | BO22: 60 | BP22: 61 | BQ22: 62 | BR22: 63 | BS22: 64 | BT22: 65 | BU22: =BT22+1 -> 66 | BV22: 67 | BW22: 68 | BX22: 69 | BY22: 70 | BZ22: 71 | CA22: 72 | CB22: 73 | CC22: 74 | CD22: 75 | CE22: 76 | CF22: 77 | CG22: 78 | CH22: 79 | CI22: 80 | CJ22: 81 | CK22: 82 | CL22: 83 | CM22: 84 | CN22: 85 | CO22: 86 | CP22: 87 | CQ22: 88 | CR22: 89 | CS22: 90 | CT22: 91 | CU22: 92 | CV22: 93 | CW22: 94 | CX22: 95 | CY22: 96 | CZ22: 97 | DA22: 98 | DB22: 99 | DC22: 100 | DD22: 101 | DE22: 102 | DF22: 103 | DG22: 104 | DH22: 105 | DI22: 106 | DJ22: 107 | DK22: 108 | DL22: 109 | DM22: 110 | DN22: 111 | DO22: 112 | DP22: 113 | DQ22: 114 | DR22: 115 | DS22: 116 | DT22: 117 | DU22: 118 | DV22: 119 | DW22: 120 | DX22: 121 | DY22: 122 | DZ22: 123 | EA22: 124 | EB22: 125 | EC22: 126 | ED22: 127 | EE22: 128 | EF22: 129 | EG22: =EF22+1 -> 130 | EH22: 131 | EI22: 132 | EJ22: 133 | EK22: 134 | EL22: 135 | EM22: 136 | EN22: 137 | EO22: 138 | EP22: 139 | EQ22: 140 | ER22: 141 | ES22: 142 | ET22: 143 | EU22: 144 | EV22: 145 | EW22: 146 | EX22: 147 | EY22: 148 | EZ22: 149 | FA22: 150 | FB22: 151 | FC22: 152 | FD22: 153 | FE22: 154 | FF22: 155 | FG22: 156 | FH22: 157 | FI22: 158 | FJ22: 159 | FK22: 160 | FL22: 161 | FM22: 162 | FN22: 163 | FO22: 164 | FP22: 165 | FQ22: 166 | FR22: 167 | FS22: 168 | FT22: 169 | FU22: 170 | FV22: 171 | FW22: 172 | FX22: 173 | FY22: 174 | FZ22: 175 | GA22: 176 | GB22: 177 | GC22: 178 | GD22: 179 | GE22: 180 | GF22: 181 | GG22: 182 | GH22: 183 | GI22: 184 | GJ22: 185 | GK22: 186 | GL22: 187 | GM22: 188 | GN22: 189 | GO22: 190 | GP22: 191 | GQ22: 192 | GR22: 193 | GS22: =GR22+1 -> 194 | GT22: 195 | GU22: 196 | GV22: 197 | GW22: 198 | GX22: 199 | GY22: 200
A23: Projet | B23: Réservoir "Total Écosystème" tiré du MBC-SFC | F23: t C
A24: Projet | B24: Réservoirs "Résineux marchands" et "Feuillus marchands" du MBC-SFC | F24: t C
A25: Projet | B25: Perturbation : récolte (saisir "R") ou autre (saisir "A")*
A26: Référence | B26: Réservoir "Total Écosystème" du MBC-SFC | F26: t C
A27: Référence | B27: Réservoirs "Résineux marchands" et "Feuillus marchands" du MBC-SFC | F27: t C
A28: Référence | B28: Perturbation : récolte (saisir "R") ou autre (saisir "A")*
B29: *Veuillez saisir la lettre "R" ou "A" aux années où a lieu une perturbation anthropique ou naturelle
A31: Section 3 Entrée des flux annuels de GES associés aux scénarios de projet et de référence (carburants fossiles, engrais azotés, autres)
G33: Année
G34: =debut -> 0 | H34: =G34+1 -> 1 | I34: =H34+1 -> 2 | J34: 3 | K34: 4 | L34: 5 | M34: 6 | N34: 7 | O34: 8 | P34: 9 | Q34: 10 | R34: 11 | S34: 12 | T34: 13 | U34: 14 | V34: 15 | W34: 16 | X34: 17 | Y34: 18 | Z34: 19 | AA34: 20 | AB34: 21 | AC34: 22 | AD34: 23 | AE34: 24 | AF34: 25 | AG34: 26 | AH34: 27 | AI34: 28 | AJ34: 29 | AK34: 30 | AL34: 31 | AM34: 32 | AN34: 33 | AO34: 34 | AP34: 35 | AQ34: =AP34+1 -> 36 | AR34: =AQ34+1 -> 37 | AS34: =AR34+1 -> 38 | AT34: =AS34+1 -> 39 | AU34: =AT34+1 -> 40 | AV34: =AU34+1 -> 41 | AW34: =AV34+1 -> 42 | AX34: =AW34+1 -> 43 | AY34: =AX34+1 -> 44 | AZ34: =AY34+1 -> 45 | BA34: =AZ34+1 -> 46 | BB34: =BA34+1 -> 47 | BC34: =BB34+1 -> 48 | BD34: =BC34+1 -> 49 | BE34: =BD34+1 -> 50 | BF34: =BE34+1 -> 51 | BG34: =BF34+1 -> 52 | BH34: =BG34+1 -> 53 | BI34: =BH34+1 -> 54 | BJ34: =BI34+1 -> 55 | BK34: =BJ34+1 -> 56 | BL34: =BK34+1 -> 57 | BM34: =BL34+1 -> 58 | BN34: =BM34+1 -> 59 | BO34: =BN34+1 -> 60 | BP34: =BO34+1 -> 61 | BQ34: =BP34+1 -> 62 | BR34: =BQ34+1 -> 63 | BS34: =BR34+1 -> 64 | BT34: =BS34+1 -> 65 | BU34: =BT34+1 -> 66 | BV34: =BU34+1 -> 67 | BW34: =BV34+1 -> 68 | BX34: =BW34+1 -> 69 | BY34: =BX34+1 -> 70 | BZ34: =BY34+1 -> 71 | CA34: =BZ34+1 -> 72 | CB34: =CA34+1 -> 73 | CC34: =CB34+1 -> 74 | CD34: =CC34+1 -> 75 | CE34: =CD34+1 -> 76 | CF34: =CE34+1 -> 77 | CG34: =CF34+1 -> 78 | CH34: =CG34+1 -> 79 | CI34: =CH34+1 -> 80 | CJ34: =CI34+1 -> 81 | CK34: =CJ34+1 -> 82 | CL34: =CK34+1 -> 83 | CM34: =CL34+1 -> 84 | CN34: =CM34+1 -> 85 | CO34: =CN34+1 -> 86 | CP34: =CO34+1 -> 87 | CQ34: =CP34+1 -> 88 | CR34: =CQ34+1 -> 89 | CS34: =CR34+1 -> 90 | CT34: =CS34+1 -> 91 | CU34: =CT34+1 -> 92 | CV34: =CU34+1 -> 93 | CW34: =CV34+1 -> 94 | CX34: =CW34+1 -> 95 | CY34: =CX34+1 -> 96 | CZ34: =CY34+1 -> 97 | DA34: =CZ34+1 -> 98 | DB34: =DA34+1 -> 99 | DC34: =DB34+1 -> 100 | DD34: =DC34+1 -> 101 | DE34: =DD34+1 -> 102 | DF34: =DE34+1 -> 103 | DG34: =DF34+1 -> 104 | DH34: =DG34+1 -> 105 | DI34: =DH34+1 -> 106 | DJ34: =DI34+1 -> 107 | DK34: =DJ34+1 -> 108 | DL34: =DK34+1 -> 109 | DM34: =DL34+1 -> 110 | DN34: =DM34+1 -> 111 | DO34: =DN34+1 -> 112 | DP34: =DO34+1 -> 113 | DQ34: =DP34+1 -> 114 | DR34: =DQ34+1 -> 115 | DS34: =DR34+1 -> 116 | DT34: =DS34+1 -> 117 | DU34: =DT34+1 -> 118 | DV34: =DU34+1 -> 119 | DW34: =DV34+1 -> 120 | DX34: =DW34+1 -> 121 | DY34: =DX34+1 -> 122 | DZ34: =DY34+1 -> 123 | EA34: =DZ34+1 -> 124 | EB34: =EA34+1 -> 125 | EC34: =EB34+1 -> 126 | ED34: =EC34+1 -> 127 | EE34: =ED34+1 -> 128 | EF34: =EE34+1 -> 129 | EG34: =EF34+1 -> 130 | EH34: =EG34+1 -> 131 | EI34: =EH34+1 -> 132 | EJ34: =EI34+1 -> 133 | EK34: =EJ34+1 -> 134 | EL34: =EK34+1 -> 135 | EM34: =EL34+1 -> 136 | EN34: =EM34+1 -> 137 | EO34: =EN34+1 -> 138 | EP34: =EO34+1 -> 139 | EQ34: =EP34+1 -> 140 | ER34: =EQ34+1 -> 141 | ES34: =ER34+1 -> 142 | ET34: =ES34+1 -> 143 | EU34: =ET34+1 -> 144 | EV34: =EU34+1 -> 145 | EW34: =EV34+1 -> 146 | EX34: =EW34+1 -> 147 | EY34: =EX34+1 -> 148 | EZ34: =EY34+1 -> 149 | FA34: =EZ34+1 -> 150 | FB34: =FA34+1 -> 151 | FC34: =FB34+1 -> 152 | FD34: =FC34+1 -> 153 | FE34: =FD34+1 -> 154 | FF34: =FE34+1 -> 155 | FG34: =FF34+1 -> 156 | FH34: =FG34+1 -> 157 | FI34: =FH34+1 -> 158 | FJ34: =FI34+1 -> 159 | FK34: =FJ34+1 -> 160 | FL34: =FK34+1 -> 161 | FM34: =FL34+1 -> 162 | FN34: =FM34+1 -> 163 | FO34: =FN34+1 -> 164 | FP34: =FO34+1 -> 165 | FQ34: =FP34+1 -> 166 | FR34: =FQ34+1 -> 167 | FS34: =FR34+1 -> 168 | FT34: =FS34+1 -> 169 | FU34: =FT34+1 -> 170 | FV34: =FU34+1 -> 171 | FW34: =FV34+1 -> 172 | FX34: =FW34+1 -> 173 | FY34: =FX34+1 -> 174 | FZ34: =FY34+1 -> 175 | GA34: =FZ34+1 -> 176 | GB34: =GA34+1 -> 177 | GC34: =GB34+1 -> 178 | GD34: =GC34+1 -> 179 | GE34: =GD34+1 -> 180 | GF34: =GE34+1 -> 181 | GG34: =GF34+1 -> 182 | GH34: =GG34+1 -> 183 | GI34: =GH34+1 -> 184 | GJ34: =GI34+1 -> 185 | GK34: =GJ34+1 -> 186 | GL34: =GK34+1 -> 187 | GM34: =GL34+1 -> 188 | GN34: =GM34+1 -> 189 | GO34: =GN34+1 -> 190 | GP34: =GO34+1 -> 191 | GQ34: =GP34+1 -> 192 | GR34: =GQ34+1 -> 193 | GS34: =GR34+1 -> 194 | GT34: =GS34+1 -> 195 | GU34: =GT34+1 -> 196 | GV34: =GU34+1 -> 197 | GW34: =GV34+1 -> 198 | GX34: =GW34+1 -> 199
G35: Année du projet
G36: =F34+1 -> 1 | H36: =G36+1 -> 2 | I36: =H36+1 -> 3 | J36: =I36+1 -> 4 | K36: =J36+1 -> 5 | L36: =K36+1 -> 6 | M36: =L36+1 -> 7 | N36: =M36+1 -> 8 | O36: =N36+1 -> 9 | P36: =O36+1 -> 10 | Q36: =P36+1 -> 11 | R36: =Q36+1 -> 12 | S36: =R36+1 -> 13 | T36: =S36+1 -> 14 | U36: =T36+1 -> 15 | V36: =U36+1 -> 16 | W36: =V36+1 -> 17 | X36: =W36+1 -> 18 | Y36: =X36+1 -> 19 | Z36: =Y36+1 -> 20 | AA36: =Z36+1 -> 21 | AB36: =AA36+1 -> 22 | AC36: =AB36+1 -> 23 | AD36: =AC36+1 -> 24 | AE36: =AD36+1 -> 25 | AF36: =AE36+1 -> 26 | AG36: =AF36+1 -> 27 | AH36: =AG36+1 -> 28 | AI36: =AH36+1 -> 29 | AJ36: =AI36+1 -> 30 | AK36: =AJ36+1 -> 31 | AL36: =AK36+1 -> 32 | AM36: =AL36+1 -> 33 | AN36: =AM36+1 -> 34 | AO36: =AN36+1 -> 35 | AP36: =AO36+1 -> 36 | AQ36: =AP36+1 -> 37 | AR36: =AQ36+1 -> 38 | AS36: =AR36+1 -> 39 | AT36: =AS36+1 -> 40 | AU36: =AT36+1 -> 41 | AV36: =AU36+1 -> 42 | AW36: =AV36+1 -> 43 | AX36: =AW36+1 -> 44 | AY36: =AX36+1 -> 45 | AZ36: =AY36+1 -> 46 | BA36: =AZ36+1 -> 47 | BB36: =BA36+1 -> 48 | BC36: =BB36+1 -> 49 | BD36: =BC36+1 -> 50 | BE36: =BD36+1 -> 51 | BF36: =BE36+1 -> 52 | BG36: =BF36+1 -> 53 | BH36: =BG36+1 -> 54 | BI36: =BH36+1 -> 55 | BJ36: =BI36+1 -> 56 | BK36: =BJ36+1 -> 57 | BL36: =BK36+1 -> 58 | BM36: =BL36+1 -> 59 | BN36: =BM36+1 -> 60 | BO36: =BN36+1 -> 61 | BP36: =BO36+1 -> 62 | BQ36: =BP36+1 -> 63 | BR36: =BQ36+1 -> 64 | BS36: =BR36+1 -> 65 | BT36: =BS36+1 -> 66 | BU36: =BT36+1 -> 67 | BV36: =BU36+1 -> 68 | BW36: =BV36+1 -> 69 | BX36: =BW36+1 -> 70 | BY36: =BX36+1 -> 71 | BZ36: =BY36+1 -> 72 | CA36: =BZ36+1 -> 73 | CB36: =CA36+1 -> 74 | CC36: =CB36+1 -> 75 | CD36: =CC36+1 -> 76 | CE36: =CD36+1 -> 77 | CF36: =CE36+1 -> 78 | CG36: =CF36+1 -> 79 | CH36: =CG36+1 -> 80 | CI36: =CH36+1 -> 81 | CJ36: =CI36+1 -> 82 | CK36: =CJ36+1 -> 83 | CL36: =CK36+1 -> 84 | CM36: =CL36+1 -> 85 | CN36: =CM36+1 -> 86 | CO36: =CN36+1 -> 87 | CP36: =CO36+1 -> 88 | CQ36: =CP36+1 -> 89 | CR36: =CQ36+1 -> 90 | CS36: =CR36+1 -> 91 | CT36: =CS36+1 -> 92 | CU36: =CT36+1 -> 93 | CV36: =CU36+1 -> 94 | CW36: =CV36+1 -> 95 | CX36: =CW36+1 -> 96 | CY36: =CX36+1 -> 97 | CZ36: =CY36+1 -> 98 | DA36: =CZ36+1 -> 99 | DB36: =DA36+1 -> 100 | DC36: =DB36+1 -> 101 | DD36: =DC36+1 -> 102 | DE36: =DD36+1 -> 103 | DF36: =DE36+1 -> 104 | DG36: =DF36+1 -> 105 | DH36: =DG36+1 -> 106 | DI36: =DH36+1 -> 107 | DJ36: =DI36+1 -> 108 | DK36: =DJ36+1 -> 109 | DL36: =DK36+1 -> 110 | DM36: =DL36+1 -> 111 | DN36: =DM36+1 -> 112 | DO36: =DN36+1 -> 113 | DP36: =DO36+1 -> 114 | DQ36: =DP36+1 -> 115 | DR36: =DQ36+1 -> 116 | DS36: =DR36+1 -> 117 | DT36: =DS36+1 -> 118 | DU36: =DT36+1 -> 119 | DV36: =DU36+1 -> 120 | DW36: =DV36+1 -> 121 | DX36: =DW36+1 -> 122 | DY36: =DX36+1 -> 123 | DZ36: =DY36+1 -> 124 | EA36: =DZ36+1 -> 125 | EB36: =EA36+1 -> 126 | EC36: =EB36+1 -> 127 | ED36: =EC36+1 -> 128 | EE36: =ED36+1 -> 129 | EF36: =EE36+1 -> 130 | EG36: =EF36+1 -> 131 | EH36: =EG36+1 -> 132 | EI36: =EH36+1 -> 133 | EJ36: =EI36+1 -> 134 | EK36: =EJ36+1 -> 135 | EL36: =EK36+1 -> 136 | EM36: =EL36+1 -> 137 | EN36: =EM36+1 -> 138 | EO36: =EN36+1 -> 139 | EP36: =EO36+1 -> 140 | EQ36: =EP36+1 -> 141 | ER36: =EQ36+1 -> 142 | ES36: =ER36+1 -> 143 | ET36: =ES36+1 -> 144 | EU36: =ET36+1 -> 145 | EV36: =EU36+1 -> 146 | EW36: =EV36+1 -> 147 | EX36: =EW36+1 -> 148 | EY36: =EX36+1 -> 149 | EZ36: =EY36+1 -> 150 | FA36: =EZ36+1 -> 151 | FB36: =FA36+1 -> 152 | FC36: =FB36+1 -> 153 | FD36: =FC36+1 -> 154 | FE36: =FD36+1 -> 155 | FF36: =FE36+1 -> 156 | FG36: =FF36+1 -> 157 | FH36: =FG36+1 -> 158 | FI36: =FH36+1 -> 159 | FJ36: =FI36+1 -> 160 | FK36: =FJ36+1 -> 161 | FL36: =FK36+1 -> 162 | FM36: =FL36+1 -> 163 | FN36: =FM36+1 -> 164 | FO36: =FN36+1 -> 165 | FP36: =FO36+1 -> 166 | FQ36: =FP36+1 -> 167 | FR36: =FQ36+1 -> 168 | FS36: =FR36+1 -> 169 | FT36: =FS36+1 -> 170 | FU36: =FT36+1 -> 171 | FV36: =FU36+1 -> 172 | FW36: =FV36+1 -> 173 | FX36: =FW36+1 -> 174 | FY36: =FX36+1 -> 175 | FZ36: =FY36+1 -> 176 | GA36: =FZ36+1 -> 177 | GB36: =GA36+1 -> 178 | GC36: =GB36+1 -> 179 | GD36: =GC36+1 -> 180 | GE36: =GD36+1 -> 181 | GF36: =GE36+1 -> 182 | GG36: =GF36+1 -> 183 | GH36: =GG36+1 -> 184 | GI36: =GH36+1 -> 185 | GJ36: =GI36+1 -> 186 | GK36: =GJ36+1 -> 187 | GL36: =GK36+1 -> 188 | GM36: =GL36+1 -> 189 | GN36: =GM36+1 -> 190 | GO36: =GN36+1 -> 191 | GP36: =GO36+1 -> 192 | GQ36: =GP36+1 -> 193 | GR36: =GQ36+1 -> 194 | GS36: =GR36+1 -> 195 | GT36: =GS36+1 -> 196 | GU36: =GT36+1 -> 197 | GV36: =GU36+1 -> 198 | GW36: =GV36+1 -> 199 | GX36: =GW36+1 -> 200
A37: Projet | B37: Flux de CO2 émis | F37: t CO2
A38: Projet | B38: Flux de CH4 émis | F38: t CH4
A39: Projet | B39: Flux de N2O émis | F39: t N2O
A40: Référence | B40: Flux de CO2 émis | F40: t CO2
A41: Référence | B41: Flux de CH4 émis | F41: t CH4
A42: Référence | B42: Flux de N2O émis | F42: t N2O
B47: Régions administratives | E47: Domaines bioclimatiques | H47: Répartition des produits du bois | K47: Demi-vie des produits du bois
B48: Bas-Saint-Laurent (région 01) | E48: Érablière à caryer cordiforme | H48: Provinciale (par défaut) | K48: Provinciale (par défaut)
B49: Saguenay–Lac-Saint-Jean (région 02) | E49: Érablière à tilleul de l'Est | H49: Définie par le promoteur | K49: Définie par le promoteur
B50: Capitale-Nationale (région 03) | E50: Érablière à tilleul de l'Ouest
B51: Mauricie (région 04) | E51: Érablière à bouleau jaune de l'Est
B52: Estrie (région 05) | E52: Érablière à bouleau jaune de l'Ouest
B53: Montréal (région 06) | E53: Sapinière à bouleau jaune de l'Est
B54: Outaouais (région 07) | E54: Sapinière à bouleau jaune de l'Ouest
B55: Abitibi-Témiscamingue (région 08) | E55: Sapinière à bouleau blanc de l'Est
B56: Côte-Nord (région 09) | E56: Sapinière à bouleau blanc de l'Ouest
B57: Nord-du-Québec (région 10) | E57: Pessière à mousses de l'Est.
B58: Gaspésie–Îles-de-la-Madeleine (région 11) | E58: Pessière à mousses de l'Ouest.
B59: Chaudière-Appalaches (région 12) | E59: Pessière à lichens
B60: Laval (région 13) | E60: Toundra forestière
B61: Lanaudière (région 14) | E61: Toundra arctique arbustive
B62: Laurentides (région 15) | E62: Toundra arctique herbacée
B63: Montérégie (région 16)
B64: Centre-du-Québec (région 17)

Sheet Produits forestiers ligneux
A2: Section 1 Matrice de répartition par produits des volumes de bois prélevés applicable aux scénarios de projet et de référence selon l'âge du peuplement au moment du prélèvement
A4: Code | C4: Âge du peuplement (ans) | D4: Sciage | E4: Panneaux agglomérés OU Placages et contreplaqués* | F4: Pâtes et papiers, Cartons | G4: Produits énergétiques (granulés, bûches, biocarburants, etc.) | H4: Somme
A5: =CONCATENATE("repartition01",C5) -> repartition010 | B5: Matrice de répartition par produits provinciale (par défaut) | C5: 0 | D5: Na | E5: Na | F5: Na | G5: Na | H5: Na
A6: =CONCATENATE("repartition01",C6) -> repartition0110 | C6: 10 | D6: Na | E6: Na | F6: Na | G6: Na | H6: Na
A7: repartition0120 | C7: 20 | D7: Na | E7: Na | F7: Na | G7: Na | H7: Na
A8: repartition0130 | C8: 30 | D8: 0.19 | E8: 0.02 | F8: 0.68 | G8: 0.11 | H8: =SUM(D8:G8) -> 1
A9: repartition0140 | C9: 40 | D9: 0.43 | E9: 0.06 | F9: 0.44 | G9: 0.07 | H9: =SUM(D9:G9) -> 1
A10: repartition0150 | C10: 50 | D10: 0.49 | E10: 0.07 | F10: 0.38 | G10: 0.06 | H10: 1
A11: repartition0160 | C11: 60 | D11: 0.52 | E11: 0.07 | F11: 0.35 | G11: 0.06 | H11: 1
A12: repartition0170 | C12: 70 | D12: 0.44 | E12: 0.07 | F12: 0.42 | G12: 0.07 | H12: 1
A13: repartition0180 | C13: 80 | D13: 0.6 | E13: 0.07 | F13: 0.28 | G13: 0.05 | H13: 1
A14: repartition0190 | C14: 90 | D14: 0.64 | E14: 0.07 | F14: 0.25 | G14: 0.04 | H14: 1
A15: repartition01100 | C15: 100 | D15: 0.58 | E15: 0.07 | F15: 0.3 | G15: 0.05 | H15: 1
A16: repartition01110 | C16: 110 | D16: 0.58 | E16: 0.07 | F16: 0.3 | G16: 0.05 | H16: 1
A17: repartition01120 | C17: 120 | D17: 0.58 | E17: 0.07 | F17: 0.3 | G17: 0.05 | H17: 1
A18: repartition01130 | C18: 130 | D18: 0.58 | E18: 0.07 | F18: 0.3 | G18: 0.05 | H18: 1
A19: repartition01140 | C19: 140 | D19: 0.58 | E19: 0.07 | F19: 0.3 | G19: 0.05 | H19: 1
A20: repartition01150 | C20: 150 | D20: 0.58 | E20: 0.07 | F20: 0.3 | G20: 0.05 | H20: 1
A21: repartition01160 | C21: 160 | D21: 0.58 | E21: 0.07 | F21: 0.3 | G21: 0.05 | H21: 1
B22: * Les produits « panneaux agglomérés » et « contreplaqués » sont mutuellement exclusifs, mais leur proportion dans la matrice est de même valeur.
C24: Âge du peuplement (ans) | H24: Somme
A25: =IF(C25="","",CONCATENATE("repartition02",C25)) ->  | B25: Matrice de répartition par produits définie par le promoteur | H25: =IF(C25="","",SUM(D25:G25)) ->  | I25: =IF(C25="","",IF(SUM(D25:G25)<>1,"La somme doit faire 1","")) -> 
A26: =IF(C26="","",CONCATENATE("repartition02",C26)) ->  | H26: =IF(C26="","",SUM(D26:G26)) ->  | I26: =IF(C26="","",IF(SUM(D26:G26)<>1,"La somme doit faire 1","")) -> 
... 36 more rows

Sheet Résultats
B2: ATTENTION : Chaque fois que le contenu des sections 1 et/ou 2 de l'onglet "Projet" est modifié, vous devez actualiser le calcul du bilan du projet à l’aide du bouton "Calculer".
A8: Section 1 Crédits compensatoires à délivrer pour les périodes de déclaration spécifiées
C11: Périodes de déclaration | K11: Accroissement de la biomasse forestière totale
C12: Début | D12: Fin | H12: Crédits compensatoires | J12: Projet | K12: Référence | L12: Différence | N12: Différence de CO2 capté
B13: No 1 | C13: =IF(debut="","",debut) ->  | E13: =IF(debut="","",IF(AND(debut<=2006,D13<>2006),"Erreur, doit être 2006",IF(D13>fin,"Erreur, doit être <= à fin du projet",""))) ->  | H13: =IF(debut="","",IFERROR(-HLOOKUP(D13,Bilan!$E$33:$GV$54,22,FALSE),"")) ->  | I13: CrC | J13: =IFERROR(-HLOOKUP(D13,Bilan!$E$33:$GV$40,6,FALSE),"") ->  | K13: =IFERROR(-HLOOKUP(D13,Bilan!$E$33:$GV$40,7,FALSE),"") ->  | L13: =IFERROR(-HLOOKUP(D13,Bilan!$E$33:$GV$40,8,FALSE),"") ->  | M13: t C | N13: =IFERROR(L13*44/12,"") ->  | O13: t CO2
B14: No 2 | C14: =IF(D13="","",IF(D13>=fin,"",D13+1)) ->  | E14: =IF(D14>fin,"Erreur, doit être <= à fin du projet","") ->  | H14: =IFERROR(-(HLOOKUP(D14,Bilan!$E$33:$GV$54,22,FALSE)-HLOOKUP(C14-1,Bilan!$E$33:$GV$54,22,FALSE)),"") ->  | I14: CrC | J14: =IFERROR(-(HLOOKUP(D14,Bilan!$E$33:$GV$40,6,FALSE)-HLOOKUP(C14-1,Bilan!$E$33:$GV$40,6,FALSE)),"") ->  | K14: =IFERROR(-(HLOOKUP(D14,Bilan!$E$33:$GV$40,7,FALSE)-HLOOKUP(C14-1,Bilan!$E$33:$GV$40,7,FALSE)),"") ->  | L14: =IFERROR(-(HLOOKUP(D14,Bilan!$E$33:$GV$40,8,FALSE)-HLOOKUP(C14-1,Bilan!$E$33:$GV$40,8,FALSE)),"") ->  | M14: t C | N14: =IFERROR(L14*44/12,"") ->  | O14: t CO2
B15: No 3 | C15: =IF(D14="","",IF(D14>=fin,"",D14+1)) ->  | E15: =IF(D15>fin,"Erreur, doit être <= à fin du projet","") ->  | H15: =IFERROR(-(HLOOKUP(D15,Bilan!$E$33:$GV$54,22,FALSE)-HLOOKUP(C15-1,Bilan!$E$33:$GV$54,22,FALSE)),"") ->  | I15: CrC | J15: =IFERROR(-(HLOOKUP(D15,Bilan!$E$33:$GV$40,6,FALSE)-HLOOKUP(C15-1,Bilan!$E$33:$GV$40,6,FALSE)),"") ->  | K15: =IFERROR(-(HLOOKUP(D15,Bilan!$E$33:$GV$40,7,FALSE)-HLOOKUP(C15-1,Bilan!$E$33:$GV$40,7,FALSE)),"") ->  | L15: =IFERROR(-(HLOOKUP(D15,Bilan!$E$33:$GV$40,8,FALSE)-HLOOKUP(C15-1,Bilan!$E$33:$GV$40,8,FALSE)),"") ->  | M15: t C | N15: =IFERROR(L15*44/12,"") ->  | O15: t CO2
B16: No 4 | C16: =IF(D15="","",IF(D15>=fin,"",D15+1)) ->  | E16: =IF(D16>fin,"Erreur, doit être <= à fin du projet","") ->  | H16: =IFERROR(-(HLOOKUP(D16,Bilan!$E$33:$GV$54,22,FALSE)-HLOOKUP(C16-1,Bilan!$E$33:$GV$54,22,FALSE)),"") ->  | I16: CrC | J16: =IFERROR(-(HLOOKUP(D16,Bilan!$E$33:$GV$40,6,FALSE)-HLOOKUP(C16-1,Bilan!$E$33:$GV$40,6,FALSE)),"") ->  | K16: =IFERROR(-(HLOOKUP(D16,Bilan!$E$33:$GV$40,7,FALSE)-HLOOKUP(C16-1,Bilan!$E$33:$GV$40,7,FALSE)),"") ->  | L16: =IFERROR(-(HLOOKUP(D16,Bilan!$E$33:$GV$40,8,FALSE)-HLOOKUP(C16-1,Bilan!$E$33:$GV$40,8,FALSE)),"") ->  | M16: t C | O16: t CO2
B17: No 5 | C17: =IF(D16="","",IF(D16>=fin,"",D16+1)) ->  | E17: =IF(D17>fin,"Erreur, doit être <= à fin du projet","") ->  | H17: =IFERROR(-(HLOOKUP(D17,Bilan!$E$33:$GV$54,22,FALSE)-HLOOKUP(C17-1,Bilan!$E$33:$GV$54,22,FALSE)),"") ->  | I17: CrC | J17: =IFERROR(-(HLOOKUP(D17,Bilan!$E$33:$GV$40,6,FALSE)-HLOOKUP(C17-1,Bilan!$E$33:$GV$40,6,FALSE)),"") ->  | K17: =IFERROR(-(HLOOKUP(D17,Bilan!$E$33:$GV$40,7,FALSE)-HLOOKUP(C17-1,Bilan!$E$33:$GV$40,7,FALSE)),"") ->  | L17: =IFERROR(-(HLOOKUP(D17,Bilan!$E$33:$GV$40,8,FALSE)-HLOOKUP(C17-1,Bilan!$E$33:$GV$40,8,FALSE)),"") ->  | M17: t C | O17: t CO2
B18: No 6 | C18: =IF(D17="","",IF(D17>=fin,"",D17+1)) ->  | E18: =IF(D18>fin,"Erreur, doit être <= à fin du projet","") ->  | H18: =IFERROR(-(HLOOKUP(D18,Bilan!$E$33:$GV$54,22,FALSE)-HLOOKUP(C18-1,Bilan!$E$33:$GV$54,22,FALSE)),"") ->  | I18: CrC | J18: =IFERROR(-(HLOOKUP(D18,Bilan!$E$33:$GV$40,6,FALSE)-HLOOKUP(C18-1,Bilan!$E$33:$GV$40,6,FALSE)),"") ->  | K18: =IFERROR(-(HLOOKUP(D18,Bilan!$E$33:$GV$40,7,FALSE)-HLOOKUP(C18-1,Bilan!$E$33:$GV$40,7,FALSE)),"") ->  | L18: =IFERROR(-(HLOOKUP(D18,Bilan!$E$33:$GV$40,8,FALSE)-HLOOKUP(C18-1,Bilan!$E$33:$GV$40,8,FALSE)),"") ->  | M18: t C | O18: t CO2
B19: No 7 | C19: =IF(D18="","",IF(D18>=fin,"",D18+1)) ->  | E19: =IF(D19>fin,"Erreur, doit être <= à fin du projet","") ->  | H19: =IFERROR(-(HLOOKUP(D19,Bilan!$E$33:$GV$54,22,FALSE)-HLOOKUP(C19-1,Bilan!$E$33:$GV$54,22,FALSE)),"") ->  | I19: CrC | J19: =IFERROR(-(HLOOKUP(D19,Bilan!$E$33:$GV$40,6,FALSE)-HLOOKUP(C19-1,Bilan!$E$33:$GV$40,6,FALSE)),"") ->  | K19: =IFERROR(-(HLOOKUP(D19,Bilan!$E$33:$GV$40,7,FALSE)-HLOOKUP(C19-1,Bilan!$E$33:$GV$40,7,FALSE)),"") ->  | L19: =IFERROR(-(HLOOKUP(D19,Bilan!$E$33:$GV$40,8,FALSE)-HLOOKUP(C19-1,Bilan!$E$33:$GV$40,8,FALSE)),"") ->  | M19: t C | O19: t CO2
B20: No 8 | C20: =IF(D19="","",IF(D19>=fin,"",D19+1)) ->  | E20: =IF(D20>fin,"Erreur, doit être <= à fin du projet","") ->  | H20: =IFERROR(-(HLOOKUP(D20,Bilan!$E$33:$GV$54,22,FALSE)-HLOOKUP(C20-1,Bilan!$E$33:$GV$54,22,FALSE)),"") ->  | I20: CrC | J20: =IFERROR(-(HLOOKUP(D20,Bilan!$E$33:$GV$40,6,FALSE)-HLOOKUP(C20-1,Bilan!$E$33:$GV$40,6,FALSE)),"") ->  | K20: =IFERROR(-(HLOOKUP(D20,Bilan!$E$33:$GV$40,7,FALSE)-HLOOKUP(C20-1,Bilan!$E$33:$GV$40,7,FALSE)),"") ->  | L20: =IFERROR(-(HLOOKUP(D20,Bilan!$E$33:$GV$40,8,FALSE)-HLOOKUP(C20-1,Bilan!$E$33:$GV$40,8,FALSE)),"") ->  | M20: t C | O20: t CO2
B21: No 9 | C21: =IF(D20="","",IF(D20>=fin,"",D20+1)) ->  | E21: =IF(D21>fin,"Erreur, doit être <= à fin du projet","") ->  | H21: =IFERROR(-(HLOOKUP(D21,Bilan!$E$33:$GV$54,22,FALSE)-HLOOKUP(C21-1,Bilan!$E$33:$GV$54,22,FALSE)),"") ->  | I21: CrC | J21: =IFERROR(-(HLOOKUP(D21,Bilan!$E$33:$GV$40,6,FALSE)-HLOOKUP(C21-1,Bilan!$E$33:$GV$40,6,FALSE)),"") ->  | K21: =IFERROR(-(HLOOKUP(D21,Bilan!$E$33:$GV$40,7,FALSE)-HLOOKUP(C21-1,Bilan!$E$33:$GV$40,7,FALSE)),"") ->  | L21: =IFERROR(-(HLOOKUP(D21,Bilan!$E$33:$GV$40,8,FALSE)-HLOOKUP(C21-1,Bilan!$E$33:$GV$40,8,FALSE)),"") ->  | M21: t C | O21: t CO2
B22: No 10 | C22: =IF(D21="","",IF(D21>=fin,"",D21+1)) ->  | E22: =IF(D22>fin,"Erreur, doit être <= à fin du projet","") ->  | H22: =IFERROR(-(HLOOKUP(D22,Bilan!$E$33:$GV$54,22,FALSE)-HLOOKUP(C22-1,Bilan!$E$33:$GV$54,22,FALSE)),"") ->  | I22: CrC | J22: =IFERROR(-(HLOOKUP(D22,Bilan!$E$33:$GV$40,6,FALSE)-HLOOKUP(C22-1,Bilan!$E$33:$GV$40,6,FALSE)),"") ->  | K22: =IFERROR(-(HLOOKUP(D22,Bilan!$E$33:$GV$40,7,FALSE)-HLOOKUP(C22-1,Bilan!$E$33:$GV$40,7,FALSE)),"") ->  | L22: =IFERROR(-(HLOOKUP(D22,Bilan!$E$33:$GV$40,8,FALSE)-HLOOKUP(C22-1,Bilan!$E$33:$GV$40,8,FALSE)),"") ->  | M22: t C | O22: t CO2
B23: No 11 | C23: =IF(D22="","",IF(D22>=fin,"",D22+1)) ->  | E23: =IF(D23>fin,"Erreur, doit être <= à fin du projet","") ->  | H23: =IFERROR(-(HLOOKUP(D23,Bilan!$E$33:$GV$54,22,FALSE)-HLOOKUP(C23-1,Bilan!$E$33:$GV$54,22,FALSE)),"") ->  | I23: CrC | J23: =IFERROR(-(HLOOKUP(D23,Bilan!$E$33:$GV$40,6,FALSE)-HLOOKUP(C23-1,Bilan!$E$33:$GV$40,6,FALSE)),"") ->  | K23: =IFERROR(-(HLOOKUP(D23,Bilan!$E$33:$GV$40,7,FALSE)-HLOOKUP(C23-1,Bilan!$E$33:$GV$40,7,FALSE)),"") ->  | L23: =IFERROR(-(HLOOKUP(D23,Bilan!$E$33:$GV$40,8,FALSE)-HLOOKUP(C23-1,Bilan!$E$33:$GV$40,8,FALSE)),"") ->  | M23: t C | O23: t CO2
B24: No 12 | C24: =IF(D23="","",IF(D23>=fin,"",D23+1)) ->  | E24: =IF(D24>fin,"Erreur, doit être <= à fin du projet","") ->  | H24: =IFERROR(-(HLOOKUP(D24,Bilan!$E$33:$GV$54,22,FALSE)-HLOOKUP(C24-1,Bilan!$E$33:$GV$54,22,FALSE)),"") ->  | I24: CrC | J24: =IFERROR(-(HLOOKUP(D24,Bilan!$E$33:$GV$40,6,FALSE)-HLOOKUP(C24-1,Bilan!$E$33:$GV$40,6,FALSE)),"") ->  | K24: =IFERROR(-(HLOOKUP(D24,Bilan!$E$33:$GV$40,7,FALSE)-HLOOKUP(C24-1,Bilan!$E$33:$GV$40,7,FALSE)),"") ->  | L24: =IFERROR(-(HLOOKUP(D24,Bilan!$E$33:$GV$40,8,FALSE)-HLOOKUP(C24-1,Bilan!$E$33:$GV$40,8,FALSE)),"") ->  | M24: t C | O24: t CO2
B25: No 13 | C25: =IF(D24="","",IF(D24>=fin,"",D24+1)) ->  | E25: =IF(D25>fin,"Erreur, doit être <= à fin du projet","") ->  | H25: =IFERROR(-(HLOOKUP(D25,Bilan!$E$33:$GV$54,22,FALSE)-HLOOKUP(C25-1,Bilan!$E$33:$GV$54,22,FALSE)),"") ->  | I25: CrC | J25: =IFERROR(-(HLOOKUP(D25,Bilan!$E$33:$GV$40,6,FALSE)-HLOOKUP(C25-1,Bilan!$E$33:$GV$40,6,FALSE)),"") ->  | K25: =IFERROR(-(HLOOKUP(D25,Bilan!$E$33:$GV$40,7,FALSE)-HLOOKUP(C25-1,Bilan!$E$33:$GV$40,7,FALSE)),"") ->  | L25: =IFERROR(-(HLOOKUP(D25,Bilan!$E$33:$GV$40,8,FALSE)-HLOOKUP(C25-1,Bilan!$E$33:$GV$40,8,FALSE)),"") ->  | M25: t C | O25: t CO2
B26: No 14 | C26: =IF(D25="","",IF(D25>=fin,"",D25+1)) ->  | E26: =IF(D26>fin,"Erreur, doit être <= à fin du projet","") ->  | H26: =IFERROR(-(HLOOKUP(D26,Bilan!$E$33:$GV$54,22,FALSE)-HLOOKUP(C26-1,Bilan!$E$33:$GV$54,22,FALSE)),"") ->  | I26: CrC | J26: =IFERROR(-(HLOOKUP(D26,Bilan!$E$33:$GV$40,6,FALSE)-HLOOKUP(C26-1,Bilan!$E$33:$GV$40,6,FALSE)),"") ->  | K26: =IFERROR(-(HLOOKUP(D26,Bilan!$E$33:$GV$40,7,FALSE)-HLOOKUP(C26-1,Bilan!$E$33:$GV$40,7,FALSE)),"") ->  | L26: =IFERROR(-(HLOOKUP(D26,Bilan!$E$33:$GV$40,8,FALSE)-HLOOKUP(C26-1,Bilan!$E$33:$GV$40,8,FALSE)),"") ->  | M26: t C | O26: t CO2
B27: No 15 | C27: =IF(D26="","",IF(D26>=fin,"",D26+1)) ->  | E27: =IF(D27>fin,"Erreur, doit être <= à fin du projet","") ->  | H27: =IFERROR(-(HLOOKUP(D27,Bilan!$E$33:$GV$54,22,FALSE)-HLOOKUP(C27-1,Bilan!$E$33:$GV$54,22,FALSE)),"") ->  | I27: CrC | J27: =IFERROR(-(HLOOKUP(D27,Bilan!$E$33:$GV$40,6,FALSE)-HLOOKUP(C27-1,Bilan!$E$33:$GV$40,6,FALSE)),"") ->  | K27: =IFERROR(-(HLOOKUP(D27,Bilan!$E$33:$GV$40,7,FALSE)-HLOOKUP(C27-1,Bilan!$E$33:$GV$40,7,FALSE)),"") ->  | L27: =IFERROR(-(HLOOKUP(D27,Bilan!$E$33:$GV$40,8,FALSE)-HLOOKUP(C27-1,Bilan!$E$33:$GV$40,8,FALSE)),"") ->  | M27: t C | O27: t CO2
B28: No 16 | C28: =IF(D27="","",IF(D27>=fin,"",D27+1)) ->  | E28: =IF(D28>fin,"Erreur, doit être <= à fin du projet","") ->  | H28: =IFERROR(-(HLOOKUP(D28,Bilan!$E$33:$GV$54,22,FALSE)-HLOOKUP(C28-1,Bilan!$E$33:$GV$54,22,FALSE)),"") ->  | I28: CrC | J28: =IFERROR(-(HLOOKUP(D28,Bilan!$E$33:$GV$40,6,FALSE)-HLOOKUP(C28-1,Bilan!$E$33:$GV$40,6,FALSE)),"") ->  | K28: =IFERROR(-(HLOOKUP(D28,Bilan!$E$33:$GV$40,7,FALSE)-HLOOKUP(C28-1,Bilan!$E$33:$GV$40,7,FALSE)),"") ->  | L28: =IFERROR(-(HLOOKUP(D28,Bilan!$E$33:$GV$40,8,FALSE)-HLOOKUP(C28-1,Bilan!$E$33:$GV$40,8,FALSE)),"") ->  | M28: t C | O28: t CO2
B29: No 17 | C29: =IF(D28="","",IF(D28>=fin,"",D28+1)) ->  | E29: =IF(D29>fin,"Erreur, doit être <= à fin du projet","") ->  | H29: =IFERROR(-(HLOOKUP(D29,Bilan!$E$33:$GV$54,22,FALSE)-HLOOKUP(C29-1,Bilan!$E$33:$GV$54,22,FALSE)),"") ->  | I29: CrC | J29: =IFERROR(-(HLOOKUP(D29,Bilan!$E$33:$GV$40,6,FALSE)-HLOOKUP(C29-1,Bilan!$E$33:$GV$40,6,FALSE)),"") ->  | K29: =IFERROR(-(HLOOKUP(D29,Bilan!$E$33:$GV$40,7,FALSE)-HLOOKUP(C29-1,Bilan!$E$33:$GV$40,7,FALSE)),"") ->  | L29: =IFERROR(-(HLOOKUP(D29,Bilan!$E$33:$GV$40,8,FALSE)-HLOOKUP(C29-1,Bilan!$E$33:$GV$40,8,FALSE)),"") ->  | M29: t C | O29: t CO2
B30: No 18 | C30: =IF(D29="","",IF(D29>=fin,"",D29+1)) ->  | E30: =IF(D30>fin,"Erreur, doit être <= à fin du projet","") ->  | H30: =IFERROR(-(HLOOKUP(D30,Bilan!$E$33:$GV$54,22,FALSE)-HLOOKUP(C30-1,Bilan!$E$33:$GV$54,22,FALSE)),"") ->  | I30: CrC | J30: =IFERROR(-(HLOOKUP(D30,Bilan!$E$33:$GV$40,6,FALSE)-HLOOKUP(C30-1,Bilan!$E$33:$GV$40,6,FALSE)),"") ->  | K30: =IFERROR(-(HLOOKUP(D30,Bilan!$E$33:$GV$40,7,FALSE)-HLOOKUP(C30-1,Bilan!$E$33:$GV$40,7,FALSE)),"") ->  | L30: =IFERROR(-(HLOOKUP(D30,Bilan!$E$33:$GV$40,8,FALSE)-HLOOKUP(C30-1,Bilan!$E$33:$GV$40,8,FALSE)),"") ->  | M30: t C | O30: t CO2
B31: No 19 | C31: =IF(D30="","",IF(D30>=fin,"",D30+1)) ->  | E31: =IF(D31>fin,"Erreur, doit être <= à fin du projet","") ->  | H31: =IFERROR(-(HLOOKUP(D31,Bilan!$E$33:$GV$54,22,FALSE)-HLOOKUP(C31-1,Bilan!$E$33:$GV$54,22,FALSE)),"") ->  | I31: CrC | J31: =IFERROR(-(HLOOKUP(D31,Bilan!$E$33:$GV$40,6,FALSE)-HLOOKUP(C31-1,Bilan!$E$33:$GV$40,6,FALSE)),"") ->  | K31: =IFERROR(-(HLOOKUP(D31,Bilan!$E$33:$GV$40,7,FALSE)-HLOOKUP(C31-1,Bilan!$E$33:$GV$40,7,FALSE)),"") ->  | L31: =IFERROR(-(HLOOKUP(D31,Bilan!$E$33:$GV$40,8,FALSE)-HLOOKUP(C31-1,Bilan!$E$33:$GV$40,8,FALSE)),"") ->  | M31: t C | O31: t CO2
B32: No 20 | C32: =IF(D31="","",IF(D31>=fin,"",D31+1)) ->  | E32: =IF(D32>fin,"Erreur, doit être <= à fin du projet","") ->  | H32: =IFERROR(-(HLOOKUP(D32,Bilan!$E$33:$GV$54,22,FALSE)-HLOOKUP(C32-1,Bilan!$E$33:$GV$54,22,FALSE)),"") ->  | I32: CrC | J32: =IFERROR(-(HLOOKUP(D32,Bilan!$E$33:$GV$40,6,FALSE)-HLOOKUP(C32-1,Bilan!$E$33:$GV$40,6,FALSE)),"") ->  | K32: =IFERROR(-(HLOOKUP(D32,Bilan!$E$33:$GV$40,7,FALSE)-HLOOKUP(C32-1,Bilan!$E$33:$GV$40,7,FALSE)),"") ->  | L32: =IFERROR(-(HLOOKUP(D32,Bilan!$E$33:$GV$40,8,FALSE)-HLOOKUP(C32-1,Bilan!$E$33:$GV$40,8,FALSE)),"") ->  | M32: t C | O32: t CO2
A34: Section 2) Graphiques illustrant les flux annuels de GES correspondant aux données entrées et courbes de forçage radiatif instantané (annuel) et cumulatif obtenues à partir de ces flux

Sheet Bilan
A2: Section 1 Forçage radiatif
A3: Pour chaque année du projet est indiquée l'augmentation (ou la réduction si la valeur est négative) du forçage radiatif causée par les émissions ou les captations de GES ayant eu lieu durant l'année et les années précédentes (impact annuel).
A4: Les résultats indiqués sont en tonnes d'équivalent CO2 et sont obtenus en divisant les résultats de forçage radiatif (en W∙m-2) par le forçage radiatif cumulatif sur 100 ans d'une émission de 1 tonne de CO2.
E6: Année du projet
E7: 1 | F7: 2 | G7: 3 | H7: 4 | I7: 5 | J7: 6 | K7: 7 | L7: 8 | M7: 9 | N7: 10 | O7: 11 | P7: 12 | Q7: 13 | R7: 14 | S7: 15 | T7: 16 | U7: 17 | V7: 18 | W7: 19 | X7: 20 | Y7: 21 | Z7: 22 | AA7: 23 | AB7: 24 | AC7: 25 | AD7: 26 | AE7: 27 | AF7: 28 | AG7: 29 | AH7: 30 | AI7: 31 | AJ7: 32 | AK7: 33 | AL7: 34 | AM7: 35 | AN7: 36 | AO7: 37 | AP7: 38 | AQ7: 39 | AR7: 40 | AS7: 41 | AT7: 42 | AU7: 43 | AV7: 44 | AW7: 45 | AX7: 46 | AY7: 47 | AZ7: 48 | BA7: 49 | BB7: 50 | BC7: 51 | BD7: 52 | BE7: 53 | BF7: 54 | BG7: 55 | BH7: 56 | BI7: 57 | BJ7: 58 | BK7: 59 | BL7: 60 | BM7: 61 | BN7: 62 | BO7: 63 | BP7: 64 | BQ7: 65 | BR7: 66 | BS7: 67 | BT7: 68 | BU7: 69 | BV7: 70 | BW7: 71 | BX7: 72 | BY7: 73 | BZ7: 74 | CA7: 75 | CB7: 76 | CC7: 77 | CD7: 78 | CE7: 79 | CF7: 80 | CG7: 81 | CH7: 82 | CI7: 83 | CJ7: 84 | CK7: 85 | CL7: 86 | CM7: 87 | CN7: 88 | CO7: 89 | CP7: 90 | CQ7: 91 | CR7: 92 | CS7: 93 | CT7: 94 | CU7: 95 | CV7: 96 | CW7: 97 | CX7: 98 | CY7: 99 | CZ7: 100 | DA7: 101 | DB7: 102 | DC7: 103 | DD7: 104 | DE7: 105 | DF7: 106 | DG7: 107 | DH7: 108 | DI7: 109 | DJ7: 110 | DK7: 111 | DL7: 112 | DM7: 113 | DN7: 114 | DO7: 115 | DP7: 116 | DQ7: 117 | DR7: 118 | DS7: 119 | DT7: 120 | DU7: 121 | DV7: 122 | DW7: 123 | DX7: 124 | DY7: 125 | DZ7: 126 | EA7: 127 | EB7: 128 | EC7: 129 | ED7: 130 | EE7: 131 | EF7: 132 | EG7: 133 | EH7: 134 | EI7: 135 | EJ7: 136 | EK7: 137 | EL7: 138 | EM7: 139 | EN7: 140 | EO7: 141 | EP7: 142 | EQ7: 143 | ER7: 144 | ES7: 145 | ET7: 146 | EU7: 147 | EV7: 148 | EW7: 149 | EX7: 150 | EY7: 151 | EZ7: 152 | FA7: 153 | FB7: 154 | FC7: 155 | FD7: 156 | FE7: 157 | FF7: 158 | FG7: 159 | FH7: 160 | FI7: 161 | FJ7: 162 | FK7: 163 | FL7: 164 | FM7: 165 | FN7: 166 | FO7: 167 | FP7: 168 | FQ7: 169 | FR7: 170 | FS7: 171 | FT7: 172 | FU7: 173 | FV7: 174 | FW7: 175 | FX7: 176 | FY7: 177 | FZ7: 178 | GA7: 179 | GB7: 180 | GC7: 181 | GD7: 182 | GE7: 183 | GF7: 184 | GG7: 185 | GH7: 186 | GI7: 187 | GJ7: 188 | GK7: 189 | GL7: 190 | GM7: 191 | GN7: 192 | GO7: 193 | GP7: 194 | GQ7: 195 | GR7: 196 | GS7: 197 | GT7: 198 | GU7: 199 | GV7: 200
E8: Année
A9: Scénario de projet | E9: =debut -> 0 | F9: =E9+1 -> 1 | G9: =F9+1 -> 2 | H9: 3 | I9: 4 | J9: 5 | K9: 6 | L9: 7 | M9: 8 | N9: 9 | O9: 10 | P9: 11 | Q9: 12 | R9: 13 | S9: 14 | T9: 15 | U9: 16 | V9: 17 | W9: 18 | X9: 19 | Y9: 20 | Z9: 21 | AA9: 22 | AB9: 23 | AC9: 24 | AD9: 25 | AE9: 26 | AF9: 27 | AG9: 28 | AH9: 29 | AI9: 30 | AJ9: 31 | AK9: 32 | AL9: 33 | AM9: 34 | AN9: 35 | AO9: 36 | AP9: 37 | AQ9: 38 | AR9: 39 | AS9: 40 | AT9: 41 | AU9: 42 | AV9: 43 | AW9: 44 | AX9: 45 | AY9: 46 | AZ9: 47 | BA9: 48 | BB9: 49 | BC9: 50 | BD9: 51 | BE9: 52 | BF9: 53 | BG9: 54 | BH9: 55 | BI9: 56 | BJ9: 57 | BK9: 58 | BL9: 59 | BM9: 60 | BN9: 61 | BO9: 62 | BP9: 63 | BQ9: 64 | BR9: 65 | BS9: =BR9+1 -> 66 | BT9: 67 | BU9: 68 | BV9: 69 | BW9: 70 | BX9: 71 | BY9: 72 | BZ9: 73 | CA9: 74 | CB9: 75 | CC9: 76 | CD9: 77 | CE9: 78 | CF9: 79 | CG9: 80 | CH9: 81 | CI9: 82 | CJ9: 83 | CK9: 84 | CL9: 85 | CM9: 86 | CN9: 87 | CO9: 88 | CP9: 89 | CQ9: 90 | CR9: 91 | CS9: 92 | CT9: 93 | CU9: 94 | CV9: 95 | CW9: 96 | CX9: 97 | CY9: 98 | CZ9: 99 | DA9: 100 | DB9: 101 | DC9: 102 | DD9: 103 | DE9: 104 | DF9: 105 | DG9: 106 | DH9: 107 | DI9: 108 | DJ9: 109 | DK9: 110 | DL9: 111 | DM9: 112 | DN9: 113 | DO9: 114 | DP9: 115 | DQ9: 116 | DR9: 117 | DS9: 118 | DT9: 119 | DU9: 120 | DV9: 121 | DW9: 122 | DX9: 123 | DY9: 124 | DZ9: 125 | EA9: 126 | EB9: 127 | EC9: 128 | ED9: 129 | EE9: =ED9+1 -> 130 | EF9: 131 | EG9: 132 | EH9: 133 | EI9: 134 | EJ9: 135 | EK9: 136 | EL9: 137 | EM9: 138 | EN9: 139 | EO9: 140 | EP9: 141 | EQ9: 142 | ER9: 143 | ES9: 144 | ET9: 145 | EU9: 146 | EV9: 147 | EW9: 148 | EX9: 149 | EY9: 150 | EZ9: 151 | FA9: 152 | FB9: 153 | FC9: 154 | FD9: 155 | FE9: 156 | FF9: 157 | FG9: 158 | FH9: 159 | FI9: 160 | FJ9: 161 | FK9: 162 | FL9: 163 | FM9: 164 | FN9: 165 | FO9: 166 | FP9: 167 | FQ9: 168 | FR9: 169 | FS9: 170 | FT9: 171 | FU9: 172 | FV9: 173 | FW9: 174 | FX9: 175 | FY9: 176 | FZ9: 177 | GA9: 178 | GB9: 179 | GC9: 180 | GD9: 181 | GE9: 182 | GF9: 183 | GG9: 184 | GH9: 185 | GI9: 186 | GJ9: 187 | GK9: 188 | GL9: 189 | GM9: 190 | GN9: 191 | GO9: 192 | GP9: 193 | GQ9: =GP9+1 -> 194 | GR9: 195 | GS9: 196 | GT9: 197 | GU9: 198 | GV9: 199
A10: Forçage radiatif instantané (annuel) dû aux flux de CO2 associés au réservoir "Total Écosystème" | E10: ='Projet - Écosystème'!E425 -> 0 | F10: ='Projet - Écosystème'!F425 -> 0 | G10: ='Projet - Écosystème'!G425 -> 0 | H10: ='Projet - Écosystème'!H425 -> 0 | I10: ='Projet - Écosystème'!I425 -> 0 | J10: ='Projet - Écosystème'!J425 -> 0 | K10: ='Projet - Écosystème'!K425 -> 0 | L10: ='Projet - Écosystème'!L425 -> 0 | M10: ='Projet - Écosystème'!M425 -> 0 | N10: ='Projet - Écosystème'!N425 -> 0 | O10: ='Projet - Écosystème'!O425 -> 0 | P10: ='Projet - Écosystème'!P425 -> 0 | Q10: ='Projet - Écosystème'!Q425 -> 0 | R10: ='Projet - Écosystème'!R425 -> 0 | S10: ='Projet - Écosystème'!S425 -> 0 | T10: ='Projet - Écosystème'!T425 -> 0 | U10: ='Projet - Écosystème'!U425 -> 0 | V10: ='Projet - Écosystème'!V425 -> 0 | W10: ='Projet - Écosystème'!W425 -> 0 | X10: ='Projet - Écosystème'!X425 -> 0 | Y10: ='Projet - Écosystème'!Y425 -> 0 | Z10: ='Projet - Écosystème'!Z425 -> 0 | AA10: ='Projet - Écosystème'!AA425 -> 0 | AB10: ='Projet - Écosystème'!AB425 -> 0 | AC10: ='Projet - Écosystème'!AC425 -> 0 | AD10: ='Projet - Écosystème'!AD425 -> 0 | AE10: ='Projet - Écosystème'!AE425 -> 0 | AF10: ='Projet - Écosystème'!AF425 -> 0 | AG10: ='Projet - Écosystème'!AG425 -> 0 | AH10: ='Projet - Écosystème'!AH425 -> 0 | AI10: ='Projet - Écosystème'!AI425 -> 0 | AJ10: ='Projet - Écosystème'!AJ425 -> 0 | AK10: ='Projet - Écosystème'!AK425 -> 0 | AL10: ='Projet - Écosystème'!AL425 -> 0 | AM10: ='Projet - Écosystème'!AM425 -> 0 | AN10: ='Projet - Écosystème'!AN425 -> 0 | AO10: ='Projet - Écosystème'!AO425 -> 0 | AP10: ='Projet - Écosystème'!AP425 -> 0 | AQ10: ='Projet - Écosystème'!AQ425 -> 0 | AR10: ='Projet - Écosystème'!AR425 -> 0 | AS10: ='Projet - Écosystème'!AS425 -> 0 | AT10: ='Projet - Écosystème'!AT425 -> 0 | AU10: ='Projet - Écosystème'!AU425 -> 0 | AV10: ='Projet - Écosystème'!AV425 -> 0 | AW10: ='Projet - Écosystème'!AW425 -> 0 | AX10: ='Projet - Écosystème'!AX425 -> 0 | AY10: ='Projet - Écosystème'!AY425 -> 0 | AZ10: ='Projet - Écosystème'!AZ425 -> 0 | BA10: ='Projet - Écosystème'!BA425 -> 0 | BB10: ='Projet - Écosystème'!BB425 -> 0 | BC10: ='Projet - Écosystème'!BC425 -> 0 | BD10: ='Projet - Écosystème'!BD425 -> 0 | BE10: ='Projet - Écosystème'!BE425 -> 0 | BF10: ='Projet - Écosystème'!BF425 -> 0 | BG10: ='Projet - Écosystème'!BG425 -> 0 | BH10: ='Projet - Écosystème'!BH425 -> 0 | BI10: ='Projet - Écosystème'!BI425 -> 0 | BJ10: ='Projet - Écosystème'!BJ425 -> 0 | BK10: ='Projet - Écosystème'!BK425 -> 0 | BL10: ='Projet - Écosystème'!BL425 -> 0 | BM10: ='Projet - Écosystème'!BM425 -> 0 | BN10: ='Projet - Écosystème'!BN425 -> 0 | BO10: ='Projet - Écosystème'!BO425 -> 0 | BP10: ='Projet - Écosystème'!BP425 -> 0 | BQ10: ='Projet - Écosystème'!BQ425 -> 0 | BR10: ='Projet - Écosystème'!BR425 -> 0 | BS10: ='Projet - Écosystème'!BS425 -> 0 | BT10: ='Projet - Écosystème'!BT425 -> 0 | BU10: ='Projet - Écosystème'!BU425 -> 0 | BV10: ='Projet - Écosystème'!BV425 -> 0 | BW10: ='Projet - Écosystème'!BW425 -> 0 | BX10: ='Projet - Écosystème'!BX425 -> 0 | BY10: ='Projet - Écosystème'!BY425 -> 0 | BZ10: ='Projet - Écosystème'!BZ425 -> 0 | CA10: ='Projet - Écosystème'!CA425 -> 0 | CB10: ='Projet - Écosystème'!CB425 -> 0 | CC10: ='Projet - Écosystème'!CC425 -> 0 | CD10: ='Projet - Écosystème'!CD425 -> 0 | CE10: ='Projet - Écosystème'!CE425 -> 0 | CF10: ='Projet - Écosystème'!CF425 -> 0 | CG10: ='Projet - Écosystème'!CG425 -> 0 | CH10: ='Projet - Écosystème'!CH425 -> 0 | CI10: ='Projet - Écosystème'!CI425 -> 0 | CJ10: ='Projet - Écosystème'!CJ425 -> 0 | CK10: ='Projet - Écosystème'!CK425 -> 0 | CL10: ='Projet - Écosystème'!CL425 -> 0 | CM10: ='Projet - Écosystème'!CM425 -> 0 | CN10: ='Projet - Écosystème'!CN425 -> 0 | CO10: ='Projet - Écosystème'!CO425 -> 0 | CP10: ='Projet - Écosystème'!CP425 -> 0 | CQ10: ='Projet - Écosystème'!CQ425 -> 0 | CR10: ='Projet - Écosystème'!CR425 -> 0 | CS10: ='Projet - Écosystème'!CS425 -> 0 | CT10: ='Projet - Écosystème'!CT425 -> 0 | CU10: ='Projet - Écosystème'!CU425 -> 0 | CV10: ='Projet - Écosystème'!CV425 -> 0 | CW10: ='Projet - Écosystème'!CW425 -> 0 | CX10: ='Projet - Écosystème'!CX425 -> 0 | CY10: ='Projet - Écosystème'!CY425 -> 0 | CZ10: ='Projet - Écosystème'!CZ425 -> 0 | DA10: ='Projet - Écosystème'!DA425 -> 0 | DB10: ='Projet - Écosystème'!DB425 -> 0 | DC10: ='Projet - Écosystème'!DC425 -> 0 | DD10: ='Projet - Écosystème'!DD425 -> 0 | DE10: ='Projet - Écosystème'!DE425 -> 0 | DF10: ='Projet - Écosystème'!DF425 -> 0 | DG10: ='Projet - Écosystème'!DG425 -> 0 | DH10: ='Projet - Écosystème'!DH425 -> 0 | DI10: ='Projet - Écosystème'!DI425 -> 0 | DJ10: ='Projet - Écosystème'!DJ425 -> 0 | DK10: ='Projet - Écosystème'!DK425 -> 0 | DL10: ='Projet - Écosystème'!DL425 -> 0 | DM10: ='Projet - Écosystème'!DM425 -> 0 | DN10: ='Projet - Écosystème'!DN425 -> 0 | DO10: ='Projet - Écosystème'!DO425 -> 0 | DP10: ='Projet - Écosystème'!DP425 -> 0 | DQ10: ='Projet - Écosystème'!DQ425 -> 0 | DR10: ='Projet - Écosystème'!DR425 -> 0 | DS10: ='Projet - Écosystème'!DS425 -> 0 | DT10: ='Projet - Écosystème'!DT425 -> 0 | DU10: ='Projet - Écosystème'!DU425 -> 0 | DV10: ='Projet - Écosystème'!DV425 -> 0 | DW10: ='Projet - Écosystème'!DW425 -> 0 | DX10: ='Projet - Écosystème'!DX425 -> 0 | DY10: ='Projet - Écosystème'!DY425 -> 0 | DZ10: ='Projet - Écosystème'!DZ425 -> 0 | EA10: ='Projet - Écosystème'!EA425 -> 0 | EB10: ='Projet - Écosystème'!EB425 -> 0 | EC10: ='Projet - Écosystème'!EC425 -> 0 | ED10: ='Projet - Écosystème'!ED425 -> 0 | EE10: ='Projet - Écosystème'!EE425 -> 0 | EF10: ='Projet - Écosystème'!EF425 -> 0 | EG10: ='Projet - Écosystème'!EG425 -> 0 | EH10: ='Projet - Écosystème'!EH425 -> 0 | EI10: ='Projet - Écosystème'!EI425 -> 0 | EJ10: ='Projet - Écosystème'!EJ425 -> 0 | EK10: ='Projet - Écosystème'!EK425 -> 0 | EL10: ='Projet - Écosystème'!EL425 -> 0 | EM10: ='Projet - Écosystème'!EM425 -> 0 | EN10: ='Projet - Écosystème'!EN425 -> 0 | EO10: ='Projet - Écosystème'!EO425 -> 0 | EP10: ='Projet - Écosystème'!EP425 -> 0 | EQ10: ='Projet - Écosystème'!EQ425 -> 0 | ER10: ='Projet - Écosystème'!ER425 -> 0 | ES10: ='Projet - Écosystème'!ES425 -> 0 | ET10: ='Projet - Écosystème'!ET425 -> 0 | EU10: ='Projet - Écosystème'!EU425 -> 0 | EV10: ='Projet - Écosystème'!EV425 -> 0 | EW10: ='Projet - Écosystème'!EW425 -> 0 | EX10: ='Projet - Écosystème'!EX425 -> 0 | EY10: ='Projet - Écosystème'!EY425 -> 0 | EZ10: ='Projet - Écosystème'!EZ425 -> 0 | FA10: ='Projet - Écosystème'!FA425 -> 0 | FB10: ='Projet - Écosystème'!FB425 -> 0 | FC10: ='Projet - Écosystème'!FC425 -> 0 | FD10: ='Projet - Écosystème'!FD425 -> 0 | FE10: ='Projet - Écosystème'!FE425 -> 0 | FF10: ='Projet - Écosystème'!FF425 -> 0 | FG10: ='Projet - Écosystème'!FG425 -> 0 | FH10: ='Projet - Écosystème'!FH425 -> 0 | FI10: ='Projet - Écosystème'!FI425 -> 0 | FJ10: ='Projet - Écosystème'!FJ425 -> 0 | FK10: ='Projet - Écosystème'!FK425 -> 0 | FL10: ='Projet - Écosystème'!FL425 -> 0 | FM10: ='Projet - Écosystème'!FM425 -> 0 | FN10: ='Projet - Écosystème'!FN425 -> 0 | FO10: ='Projet - Écosystème'!FO425 -> 0 | FP10: ='Projet - Écosystème'!FP425 -> 0 | FQ10: ='Projet - Écosystème'!FQ425 -> 0 | FR10: ='Projet - Écosystème'!FR425 -> 0 | FS10: ='Projet - Écosystème'!FS425 -> 0 | FT10: ='Projet - Écosystème'!FT425 -> 0 | FU10: ='Projet - Écosystème'!FU425 -> 0 | FV10: ='Projet - Écosystème'!FV425 -> 0 | FW10: ='Projet - Écosystème'!FW425 -> 0 | FX10: ='Projet - Écosystème'!FX425 -> 0 | FY10: ='Projet - Écosystème'!FY425 -> 0 | FZ10: ='Projet - Écosystème'!FZ425 -> 0 | GA10: ='Projet - Écosystème'!GA425 -> 0 | GB10: ='Projet - Écosystème'!GB425 -> 0 | GC10: ='Projet - Écosystème'!GC425 -> 0 | GD10: ='Projet - Écosystème'!GD425 -> 0 | GE10: ='Projet - Écosystème'!GE425 -> 0 | GF10: ='Projet - Écosystème'!GF425 -> 0 | GG10: ='Projet - Écosystème'!GG425 -> 0 | GH10: ='Projet - Écosystème'!GH425 -> 0 | GI10: ='Projet - Écosystème'!GI425 -> 0 | GJ10: ='Projet - Écosystème'!GJ425 -> 0 | GK10: ='Projet - Écosystème'!GK425 -> 0 | GL10: ='Projet - Écosystème'!GL425 -> 0 | GM10: ='Projet - Écosystème'!GM425 -> 0 | GN10: ='Projet - Écosystème'!GN425 -> 0 | GO10: ='Projet - Écosystème'!GO425 -> 0 | GP10: ='Projet - Écosystème'!GP425 -> 0 | GQ10: ='Projet - Écosystème'!GQ425 -> 0 | GR10: ='Projet - Écosystème'!GR425 -> 0 | GS10: ='Projet - Écosystème'!GS425 -> 0 | GT10: ='Projet - Écosystème'!GT425 -> 0 | GU10: ='Projet - Écosystème'!GU425 -> 0 | GV10: ='Projet - Écosystème'!GV425 -> 0
A11: Forçage radiatif instantané (annuel) dû aux flux de CO2 entrés par le promoteur | E11: =IF(AND(debut<=2006,E$9<=2006),0,IFERROR(SUMPRODUCT(Projet!$G37:'Projet'!G37*1000,INDIRECT(ADDRESS(ROW('Facteurs dynamiques'!$C76),COLUMN('Facteurs dynamiques'!$CX76)-(E$9-$E$9),,,"Facteurs dynamiques")):'Facteurs dynamiques'!$CX76)/('Facteurs dynamiques'!$CX$36*1000),0)) -> 0 | F11: =IF(AND(debut<=2006,F$9<=2006),0,IFERROR(SUMPRODUCT(Projet!$G37:'Projet'!H37*1000,INDIRECT(ADDRESS(ROW('Facteurs dynamiques'!$C76),COLUMN('Facteurs dynamiques'!$CX76)-(F$9-$E$9),,,"Facteurs dynamiques")):'Facteurs dynamiques'!$CX76)/('Facteurs dynamiques'!$CX$36*1000),0)) -> 0 | G11: =IF(AND(debut<=2006,G$9<=2006),0,IFERROR(SUMPRODUCT(Projet!$G37:'Projet'!I37*1000,INDIRECT(ADDRESS(ROW('Facteurs dynamiques'!$C76),COLUMN('Facteurs dynamiques'!$CX76)-(G$9-$E$9),,,"Facteurs dynamiques")):'Facteurs dynamiques'!$CX76)/('Facteurs dynamiques'!$CX$36*1000),0)) -> 0 | H11: =IF(AND(debut<=2006,H$9<=2006),0,IFERROR(SUMPRODUCT(Projet!$G37:'Projet'!J37*1000,INDIRECT(ADDRESS(ROW('Facteurs dynamiques'!$C76),COLUMN('Facteurs dynamiques'!$CX76)-(H$9-$E$9),,,"Facteurs dynamiques")):'Facteurs dynamiques'!$CX76)/('Facteurs dynamiques'!$CX$36*1000),0)) -> 0 | I11: =IF(AND(debut<=2006,I$9<=2006),0,IFERROR(SUMPRODUCT(Projet!$G37:'Projet'!K37*1000,INDIRECT(ADDRESS(ROW('Facteurs dynamiques'!$C76),COLUMN('Facteurs dynamiques'!$CX76)-(I$9-$E$9),,,"Facteurs dynamiques")):'Facteurs dynamiques'!$CX76)/('Facteurs dynamiques'!$CX$36*1000),0)) -> 0 | J11: =IF(AND(debut<=2006,J$9<=2006),0,IFERROR(SUMPRODUCT(Projet!$G37:'Projet'!L37*1000,INDIRECT(ADDRESS(ROW('Facteurs dynamiques'!$C76),COLUMN('Facteurs dynamiques'!$CX76)-(J$9-$E$9),,,"Facteurs dynamiques")):'Facteurs dynamiques'!$CX76)/('Facteurs dynamiques'!$CX$36*1000),0)) -> 0 | K11: =IF(AND(debut<=2006,K$9<=2006),0,IFERROR(SUMPRODUCT(Projet!$G37:'Projet'!M37*1000,INDIRECT(ADDRESS(ROW('Facteurs dynamiques'!$C76),COLUMN('Facteurs dynamiques'!$CX76)-(K$9-$E$9),,,"Facteurs dynamiques")):'Facteurs dynamiques'!$CX76)/('Facteurs dynamiques'!$CX$36*1000),0)) -> 0 | L11: =IF(AND(debut<=2006,L$9<=2006),0,IFERROR(SUMPRODUCT(Projet!$G37:'Projet'!N37*1000,INDIRECT(ADDRESS(ROW('Facteurs dynamiques'!$C76),COLUMN('Facteurs dynamiques'!$CX76)-(L$9-$E$9),,,"Facteurs dynamiques")):'Facteurs dynamiques'!$CX76)/('Facteurs dynamiques'!$CX$36*1000),0)) -> 0 | M11: =IF(AND(debut<=2006,M$9<=2006),0,IFERROR(SUMPRODUCT(Projet!$G37:'Projet'!O37*1000,INDIRECT(ADDRESS(ROW('Facteurs dynamiques'!$C76),COLUMN('Facteurs dynamiques'!$CX76)-(M$9-$E$9),,,"Facteurs dynamiques")):'Facteurs dynamiques'!$CX76)/('Facteurs dynamiques'!$CX$36*1000),0)) -> 0 | N11: =IF(AND(debut<=2006,N$9<=2006),0,IFERROR(SUMPRODUCT(Projet!$G37:'Projet'!P37*1000,INDIRECT(ADDRESS(ROW('Facteurs dynamiques'!$C76),COLUMN('Facteurs dynamiques'!$CX76)-(N$9-$E$9),,,"Facteurs dynamiques")):'Facteurs dynamiques'!$CX76)/('Facteurs dynamiques'!$CX$36*1000),0)) -> 0 | O11: =IF(AND(debut<=2006,O$9<=2006),0,IFERROR(SUMPRODUCT(Projet!$G37:'Projet'!Q37*1000,INDIRECT(ADDRESS(ROW('Facteurs dynamiques'!$C76),COLUMN('Facteurs dynamiques'!$CX76)-(O$9-$E$9),,,"Facteurs dynamiques")):'Facteurs dynamiques'!$CX76)/('Facteurs dynamiques'!$CX$36*1000),0)) -> 0 | P11: =IF(AND(debut<=2006,P$9<=2006),0,IFERROR(SUMPRODUCT(Projet!$G37:'Projet'!R37*1000,INDIRECT(ADDRESS(ROW('Facteurs dynamiques'!$C76),COLUMN('Facteurs dynamiques'!$CX76)-(P$9-$E$9),,,"Facteurs dynamiques")):'Facteurs dynamiques'!$CX76)/('Facteurs dynamiques'!$CX$36*1000),0)) -> 0 | Q11: =IF(AND(debut<=2006,Q$9<=2006),0,IFERROR(SUMPRODUCT(Projet!$G37:'Projet'!S37*1000,INDIRECT(ADDRESS(ROW('Facteurs dynamiques'!$C76),COLUMN('Facteurs dynamiques'!$CX76)-(Q$9-$E$9),,,"Facteurs dynamiques")):'Facteurs dynamiques'!$CX76)/('Facteurs dynamiques'!$CX$36*1000),0)) -> 0 | R11: =IF(AND(debut<=2006,R$9<=2006),0,IFERROR(SUMPRODUCT(Projet!$G37:'Projet'!T37*1000,INDIRECT(ADDRESS(ROW('Facteurs dynamiques'!$C76),COLUMN('Facteurs dynamiques'!$CX76)-(R$9-$E$9),,,"Facteurs dynamiques")):'Facteurs dynamiques'!$CX76)/('Facteurs dynamiques'!$CX$36*1000),0)) -> 0 | S11: =IF(AND(debut<=2006,S$9<=2006),0,IFERROR(SUMPRODUCT(Projet!$G37:'Projet'!U37*1000,INDIRECT(ADDRESS(ROW('Facteurs dynamiques'!$C76),COLUMN('Facteurs dynamiques'!$CX76)-(S$9-$E$9),,,"Facteurs dynamiques")):'Facteurs dynamiques'!$CX76)/('Facteurs dynamiques'!$CX$36*1000),0)) -> 0 | T11: =IF(AND(debut<=2006,T$9<=2006),0,IFERROR(SUMPRODUCT(Projet!$G37:'Projet'!V37*1000,INDIRECT(ADDRESS(ROW('Facteurs dynamiques'!$C76),COLUMN('Facteurs dynamiques'!$CX76)-(T$9-$E$9),,,"Facteurs dynamiques")):'Facteurs dynamiques'!$CX76)/('Facteurs dynamiques'!$CX$36*1000),0)) -> 0 | U11: =IF(AND(debut<=2006,U$9<=2006),0,IFERROR(SUMPRODUCT(Projet!$G37:'Projet'!W37*1000,INDIRECT(ADDRESS(ROW('Facteurs dynamiques'!$C76),COLUMN('Facteurs dynamiques'!$CX76)-(U$9-$E$9),,,"Facteurs dynamiques")):'Facteurs dynamiques'!$CX76)/('Facteurs dynamiques'!$CX$36*1000),0)) -> 0 | V11: =IF(AND(debut<=2006,V$9<=2006),0,IFERROR(SUMPRODUCT(Projet!$G37:'Projet'!X37*1000,INDIRECT(ADDRESS(ROW('Facteurs dynamiques'!$C76),COLUMN('Facteurs dynamiques'!$CX76)-(V$9-$E$9),,,"Facteurs dynamiques")):'Facteurs dynamiques'!$CX76)/('Facteurs dynamiques'!$CX$36*1000),0)) -> 0 | W11: =IF(AND(debut<=2006,W$9<=2006),0,IFERROR(SUMPRODUCT(Projet!$G37:'Projet'!Y37*1000,INDIRECT(ADDRESS(ROW('Facteurs dynamiques'!$C76),COLUMN('Facteurs dynamiques'!$CX76)-(W$9-$E$9),,,"Facteurs dynamiques")):'Facteurs dynamiques'!$CX76)/('Facteurs dynamiques'!$CX$36*1000),0)) -> 0 | X11: =IF(AND(debut<=2006,X$9<=2006),0,IFERROR(SUMPRODUCT(Projet!$G37:'Projet'!Z37*1000,INDIRECT(ADDRESS(ROW('Facteurs dynamiques'!$C76),COLUMN('Facteurs dynamiques'!$CX76)-(X$9-$E$9),,,"Facteurs dynamiques")):'Facteurs dynamiques'!$CX76)/('Facteurs dynamiques'!$CX$36*1000),0)) -> 0 | Y11: =IF(AND(debut<=2006,Y$9<=2006),0,IFERROR(SUMPRODUCT(Projet!$G37:'Projet'!AA37*1000,INDIRECT(ADDRESS(ROW('Facteurs dynamiques'!$C76),COLUMN('Facteurs dynamiques'!$CX76)-(Y$9-$E$9),,,"Facteurs dynamiques")):'Facteurs dynamiques'!$CX76)/('Facteurs dynamiques'!$CX$36*1000),0)) -> 0 | Z11: =IF(AND(debut<=2006,Z$9<=2006),0,IFERROR(SUMPRODUCT(Projet!$G37:'Projet'!AB37*1000,INDIRECT(ADDRESS(ROW('Facteurs dynamiques'!$C76),COLUMN('Facteurs dynamiques'!$CX76)-(Z$9-$E$9),,,"Facteurs dynamiques")):'Facteurs dynamiques'!$CX76)/('Facteurs dynamiques'!$CX$36*1000),0)) -> 0 | AA11: =IF(AND(debut<=2006,AA$9<=2006),0,IFERROR(SUMPRODUCT(Projet!$G37:'Projet'!AC37*1000,INDIRECT(ADDRESS(ROW('Facteurs dynamiques'!$C76),COLUMN('Facteurs dynamiques'!$CX76)-(AA$9-$E$9),,,"Facteurs dynamiques")):'Facteurs dynamiques'!$CX76)/('Facteurs dynamiques'!$CX$36*1000),0)) -> 0 | AB11: =IF(AND(debut<=2006,AB$9<=2006),0,IFERROR(SUMPRODUCT(Projet!$G37:'Projet'!AD37*1000,INDIRECT(ADDRESS(ROW('Facteurs dynamiques'!$C76),COLUMN('Facteurs dynamiques'!$CX76)-(AB$9-$E$9),,,"Facteurs dynamiques")):'Facteurs dynamiques'!$CX76)/('Facteurs dynamiques'!$CX$36*1000),0)) -> 0 | AC11: =IF(AND(debut<=2006,AC$9<=2006),0,IFERROR(SUMPRODUCT(Projet!$G37:'Projet'!AE37*1000,INDIRECT(ADDRESS(ROW('Facteurs dynamiques'!$C76),COLUMN('Facteurs dynamiques'!$CX76)-(AC$9-$E$9),,,"Facteurs dynamiques")):'Facteurs dynamiques'!$CX76)/('Facteurs dynamiques'!$CX$36*1000),0)) -> 0 | AD11: =IF(AND(debut<=2006,AD$9<=2006),0,IFERROR(SUMPRODUCT(Projet!$G37:'Projet'!AF37*1000,INDIRECT(ADDRESS(ROW('Facteurs dynamiques'!$C76),COLUMN('Facteurs dynamiques'!$CX76)-(AD$9-$E$9),,,"Facteurs dynamiques")):'Facteurs dynamiques'!$CX76)/('Facteurs dynamiques'!$CX$36*1000),0)) -> 0 | AE11: =IF(AND(debut<=2006,AE$9<=2006),0,IFERROR(SUMPRODUCT(Projet!$G37:'Projet'!AG37*1000,INDIRECT(ADDRESS(ROW('Facteurs dynamiques'!$C76),COLUMN('Facteurs dynamiques'!$CX76)-(AE$9-$E$9),,,"Facteurs dynamiques")):'Facteurs dynamiques'!$CX76)/('Facteurs dynamiques'!$CX$36*1000),0)) -> 0 | AF11: =IF(AND(debut<=2006,AF$9<=2006),0,IFERROR(SUMPRODUCT(Projet!$G37:'Projet'!AH37*1000,INDIRECT(ADDRESS(ROW('Facteurs dynamiques'!$C76),COLUMN('Facteurs dynamiques'!$CX76)-(AF$9-$E$9),,,"Facteurs dynamiques")):'Facteurs dynamiques'!$CX76)/('Facteurs dynamiques'!$CX$36*1000),0)) -> 0 | AG11: =IF(AND(debut<=2006,AG$9<=2006),0,IFERROR(SUMPRODUCT(Projet!$G37:'Projet'!AI37*1000,INDIRECT(ADDRESS(ROW('Facteurs dynamiques'!$C76),COLUMN('Facteurs dynamiques'!$CX76)-(AG$9-$E$9),,,"Facteurs dynamiques")):'Facteurs dynamiques'!$CX76)/('Facteurs dynamiques'!$CX$36*1000),0)) -> 0 | AH11: =IF(AND(debut<=2006,AH$9<=2006),0,IFERROR(SUMPRODUCT(Projet!$G37:'Projet'!AJ37*1000,INDIRECT(ADDRESS(ROW('Facteurs dynamiques'!$C76),COLUMN('Facteurs dynamiques'!$CX76)-(AH$9-$E$9),,,"Facteurs dynamiques")):'Facteurs dynamiques'!$CX76)/('Facteurs dynamiques'!$CX$36*1000),0)) -> 0 | AI11: =IF(AND(debut<=2006,AI$9<=2006),0,IFERROR(SUMPRODUCT(Projet!$G37:'Projet'!AK37*1000,INDIRECT(ADDRESS(ROW('Facteurs dynamiques'!$C76),COLUMN('Facteurs dynamiques'!$CX76)-(AI$9-$E$9),,,"Facteurs dynamiques")):'Facteurs dynamiques'!$CX76)/('Facteurs dynamiques'!$CX$36*1000),0)) -> 0 | AJ11: =IF(AND(debut<=2006,AJ$9<=2006),0,IFERROR(SUMPRODUCT(Projet!$G37:'Projet'!AL37*1000,INDIRECT(ADDRESS(ROW('Facteurs dynamiques'!$C76),COLUMN('Facteurs dynamiques'!$CX76)-(AJ$9-$E$9),,,"Facteurs dynamiques")):'Facteurs dynamiques'!$CX76)/('Facteurs dynamiques'!$CX$36*1000),0)) -> 0 | AK11: =IF(AND(debut<=2006,AK$9<=2006),0,IFERROR(SUMPRODUCT(Projet!$G37:'Projet'!AM37*1000,INDIRECT(ADDRESS(ROW('Facteurs dynamiques'!$C76),COLUMN('Facteurs dynamiques'!$CX76)-(AK$9-$E$9),,,"Facteurs dynamiques")):'Facteurs dynamiques'!$CX76)/('Facteurs dynamiques'!$CX$36*1000),0)) -> 0 | AL11: =IF(AND(debut<=2006,AL$9<=2006),0,IFERROR(SUMPRODUCT(Projet!$G37:'Projet'!AN37*1000,INDIRECT(ADDRESS(ROW('Facteurs dynamiques'!$C76),COLUMN('Facteurs dynamiques'!$CX76)-(AL$9-$E$9),,,"Facteurs dynamiques")):'Facteurs dynamiques'!$CX76)/('Facteurs dynamiques'!$CX$36*1000),0)) -> 0 | AM11: =IF(AND(debut<=2006,AM$9<=2006),0,IFERROR(SUMPRODUCT(Projet!$G37:'Projet'!AO37*1000,INDIRECT(ADDRESS(ROW('Facteurs dynamiques'!$C76),COLUMN('Facteurs dynamiques'!$CX76)-(AM$9-$E$9),,,"Facteurs dynamiques")):'Facteurs dynamiques'!$CX76)/('Facteurs dynamiques'!$CX$36*1000),0)) -> 0 | AN11: =IF(AND(debut<=2006,AN$9<=2006),0,IFERROR(SUMPRODUCT(Projet!$G37:'Projet'!AP37*1000,INDIRECT(ADDRESS(ROW('Facteurs dynamiques'!$C76),COLUMN('Facteurs dynamiques'!$CX76)-(AN$9-$E$9),,,"Facteurs dynamiques")):'Facteurs dynamiques'!$CX76)/('Facteurs dynamiques'!$CX$36*1000),0)) -> 0 | AO11: =IF(AND(debut<=2006,AO$9<=2006),0,IFERROR(SUMPRODUCT(Projet!$G37:'Projet'!AQ37*1000,INDIRECT(ADDRESS(ROW('Facteurs dynamiques'!$C76),COLUMN('Facteurs dynamiques'!$CX76)-(AO$9-$E$9),,,"Facteurs dynamiques")):'Facteurs dynamiques'!$CX76)/('Facteurs dynamiques'!$CX$36*1000),0)) -> 0 | AP11: =IF(AND(debut<=2006,AP$9<=2006),0,IFERROR(SUMPRODUCT(Projet!$G37:'Projet'!AR37*1000,INDIRECT(ADDRESS(ROW('Facteurs dynamiques'!$C76),COLUMN('Facteurs dynamiques'!$CX76)-(AP$9-$E$9),,,"Facteurs dynamiques")):'Facteurs dynamiques'!$CX76)/('Facteurs dynamiques'!$CX$36*1000),0)) -> 0 | AQ11: =IF(AND(debut<=2006,AQ$9<=2006),0,IFERROR(SUMPRODUCT(Projet!$G37:'Projet'!AS37*1000,INDIRECT(ADDRESS(ROW('Facteurs dynamiques'!$C76),COLUMN('Facteurs dynamiques'!$CX76)-(AQ$9-$E$9),,,"Facteurs dynamiques")):'Facteurs dynamiques'!$CX76)/('Facteurs dynamiques'!$CX$36*1000),0)) -> 0 | AR11: =IF(AND(debut<=2006,AR$9<=2006),0,IFERROR(SUMPRODUCT(Projet!$G37:'Projet'!AT37*1000,INDIRECT(ADDRESS(ROW('Facteurs dynamiques'!$C76),COLUMN('Facteurs dynamiques'!$CX76)-(AR$9-$E$9),,,"Facteurs dynamiques")):'Facteurs dynamiques'!$CX76)/('Facteurs dynamiques'!$CX$36*1000),0)) -> 0 | AS11: =IF(AND(debut<=2006,AS$9<=2006),0,IFERROR(SUMPRODUCT(Projet!$G37:'Projet'!AU37*1000,INDIRECT(ADDRESS(ROW('Facteurs dynamiques'!$C76),COLUMN('Facteurs dynamiques'!$CX76)-(AS$9-$E$9),,,"Facteurs dynamiques")):'Facteurs dynamiques'!$CX76)/('Facteurs dynamiques'!$CX$36*1000),0)) -> 0 | AT11: =IF(AND(debut<=2006,AT$9<=2006),0,IFERROR(SUMPRODUCT(Projet!$G37:'Projet'!AV37*1000,INDIRECT(ADDRESS(ROW('Facteurs dynamiques'!$C76),COLUMN('Facteurs dynamiques'!$CX76)-(AT$9-$E$9),,,"Facteurs dynamiques")):'Facteurs dynamiques'!$CX76)/('Facteurs dynamiques'!$CX$36*1000),0)) -> 0 | AU11: =IF(AND(debut<=2006,AU$9<=2006),0,IFERROR(SUMPRODUCT(Projet!$G37:'Projet'!AW37*1000,INDIRECT(ADDRESS(ROW('Facteurs dynamiques'!$C76),COLUMN('Facteurs dynamiques'!$CX76)-(AU$9-$E$9),,,"Facteurs dynamiques")):'Facteurs dynamiques'!$CX76)/('Facteurs dynamiques'!$CX$36*1000),0)) -> 0 | AV11: =IF(AND(debut<=2006,AV$9<=2006),0,IFERROR(SUMPRODUCT(Projet!$G37:'Projet'!AX37*1000,INDIRECT(ADDRESS(ROW('Facteurs dynamiques'!$C76),COLUMN('Facteurs dynamiques'!$CX76)-(AV$9-$E$9),,,"Facteurs dynamiques")):'Facteurs dynamiques'!$CX76)/('Facteurs dynamiques'!$CX$36*1000),0)) -> 0 | AW11: =IF(AND(debut<=2006,AW$9<=2006),0,IFERROR(SUMPRODUCT(Projet!$G37:'Projet'!AY37*1000,INDIRECT(ADDRESS(ROW('Facteurs dynamiques'!$C76),COLUMN('Facteurs dynamiques'!$CX76)-(AW$9-$E$9),,,"Facteurs dynamiques")):'Facteurs dynamiques'!$CX76)/('Facteurs dynamiques'!$CX$36*1000),0)) -> 0 | AX11: =IF(AND(debut<=2006,AX$9<=2006),0,IFERROR(SUMPRODUCT(Projet!$G37:'Projet'!AZ37*1000,INDIRECT(ADDRESS(ROW('Facteurs dynamiques'!$C76),COLUMN('Facteurs dynamiques'!$CX76)-(AX$9-$E$9),,,"Facteurs dynamiques")):'Facteurs dynamiques'!$CX76)/('Facteurs dynamiques'!$CX$36*1000),0)) -> 0 | AY11: =IF(AND(debut<=2006,AY$9<=2006),0,IFERROR(SUMPRODUCT(Projet!$G37:'Projet'!BA37*1000,INDIRECT(ADDRESS(ROW('Facteurs dynamiques'!$C76),COLUMN('Facteurs dynamiques'!$CX76)-(AY$9-$E$9),,,"Facteurs dynamiques")):'Facteurs dynamiques'!$CX76)/('Facteurs dynamiques'!$CX$36*1000),0)) -> 0 | AZ11: =IF(AND(debut<=2006,AZ$9<=2006),0,IFERROR(SUMPRODUCT(Projet!$G37:'Projet'!BB37*1000,INDIRECT(ADDRESS(ROW('Facteurs dynamiques'!$C76),COLUMN('Facteurs dynamiques'!$CX76)-(AZ$9-$E$9),,,"Facteurs dynamiques")):'Facteurs dynamiques'!$CX76)/('Facteurs dynamiques'!$CX$36*1000),0)) -> 0 | BA11: =IF(AND(debut<=2006,BA$9<=2006),0,IFERROR(SUMPRODUCT(Projet!$G37:'Projet'!BC37*1000,INDIRECT(ADDRESS(ROW('Facteurs dynamiques'!$C76),COLUMN('Facteurs dynamiques'!$CX76)-(BA$9-$E$9),,,"Facteurs dynamiques")):'Facteurs dynamiques'!$CX76)/('Facteurs dynamiques'!$CX$36*1000),0)) -> 0 | BB11: =IF(AND(debut<=2006,BB$9<=2006),0,IFERROR(SUMPRODUCT(Projet!$G37:'Projet'!BD37*1000,INDIRECT(ADDRESS(ROW('Facteurs dynamiques'!$C76),COLUMN('Facteurs dynamiques'!$CX76)-(BB$9-$E$9),,,"Facteurs dynamiques")):'Facteurs dynamiques'!$CX76)/('Facteurs dynamiques'!$CX$36*1000),0)) -> 0 | BC11: =IF(AND(debut<=2006,BC$9<=2006),0,IFERROR(SUMPRODUCT(Projet!$G37:'Projet'!BE37*1000,INDIRECT(ADDRESS(ROW('Facteurs dynamiques'!$C76),COLUMN('Facteurs dynamiques'!$CX76)-(BC$9-$E$9),,,"Facteurs dynamiques")):'Facteurs dynamiques'!$CX76)/('Facteurs dynamiques'!$CX$36*1000),0)) -> 0 | BD11: =IF(AND(debut<=2006,BD$9<=2006),0,IFERROR(SUMPRODUCT(Projet!$G37:'Projet'!BF37*1000,INDIRECT(ADDRESS(ROW('Facteurs dynamiques'!$C76),COLUMN('Facteurs dynamiques'!$CX76)-(BD$9-$E$9),,,"Facteurs dynamiques")):'Facteurs dynamiques'!$CX76)/('Facteurs dynamiques'!$CX$36*1000),0)) -> 0 | BE11: =IF(AND(debut<=2006,BE$9<=2006),0,IFERROR(SUMPRODUCT(Projet!$G37:'Projet'!BG37*1000,INDIRECT(ADDRESS(ROW('Facteurs dynamiques'!$C76),COLUMN('Facteurs dynamiques'!$CX76)-(BE$9-$E$9),,,"Facteurs dynamiques")):'Facteurs dynamiques'!$CX76)/('Facteurs dynamiques'!$CX$36*1000),0)) -> 0 | BF11: =IF(AND(debut<=2006,BF$9<=2006),0,IFERROR(SUMPRODUCT(Projet!$G37:'Projet'!BH37*1000,INDIRECT(ADDRESS(ROW('Facteurs dynamiques'!$C76),COLUMN('Facteurs dynamiques'!$CX76)-(BF$9-$E$9),,,"Facteurs dynamiques")):'Facteurs dynamiques'!$CX76)/('Facteurs dynamiques'!$CX$36*1000),0)) -> 0 | BG11: =IF(AND(debut<=2006,BG$9<=2006),0,IFERROR(SUMPRODUCT(Projet!$G37:'Projet'!BI37*1000,INDIRECT(ADDRESS(ROW('Facteurs dynamiques'!$C76),COLUMN('Facteurs dynamiques'!$CX76)-(BG$9-$E$9),,,"Facteurs dynamiques")):'Facteurs dynamiques'!$CX76)/('Facteurs dynamiques'!$CX$36*1000),0)) -> 0 | BH11: =IF(AND(debut<=2006,BH$9<=2006),0,IFERROR(SUMPRODUCT(Projet!$G37:'Projet'!BJ37*1000,INDIRECT(ADDRESS(ROW('Facteurs dynamiques'!$C76),COLUMN('Facteurs dynamiques'!$CX76)-(BH$9-$E$9),,,"Facteurs dynamiques")):'Facteurs dynamiques'!$CX76)/('Facteurs dynamiques'!$CX$36*1000),0)) -> 0 | BI11: =IF(AND(debut<=2006,BI$9<=2006),0,IFERROR(SUMPRODUCT(Projet!$G37:'Projet'!BK37*1000,INDIRECT(ADDRESS(ROW('Facteurs dynamiques'!$C76),COLUMN('Facteurs dynamiques'!$CX76)-(BI$9-$E$9),,,"Facteurs dynamiques")):'Facteurs dynamiques'!$CX76)/('Facteurs dynamiques'!$CX$36*1000),0)) -> 0 | BJ11: =IF(AND(debut<=2006,BJ$9<=2006),0,IFERROR(SUMPRODUCT(Projet!$G37:'Projet'!BL37*1000,INDIRECT(ADDRESS(ROW('Facteurs dynamiques'!$C76),COLUMN('Facteurs dynamiques'!$CX76)-(BJ$9-$E$9),,,"Facteurs dynamiques")):'Facteurs dynamiques'!$CX76)/('Facteurs dynamiques'!$CX$36*1000),0)) -> 0 | BK11: =IF(AND(debut<=2006,BK$9<=2006),0,IFERROR(SUMPRODUCT(Projet!$G37:'Projet'!BM37*1000,INDIRECT(ADDRESS(ROW('Facteurs dynamiques'!$C76),COLUMN('Facteurs dynamiques'!$CX76)-(BK$9-$E$9),,,"Facteurs dynamiques")):'Facteurs dynamiques'!$CX76)/('Facteurs dynamiques'!$CX$36*1000),0)) -> 0 | BL11: =IF(AND(debut<=2006,BL$9<=2006),0,IFERROR(SUMPRODUCT(Projet!$G37:'Projet'!BN37*1000,INDIRECT(ADDRESS(ROW('Facteurs dynamiques'!$C76),COLUMN('Facteurs dynamiques'!$CX76)-(BL$9-$E$9),,,"Facteurs dynamiques")):'Facteurs dynamiques'!$CX76)/('Facteurs dynamiques'!$CX$36*1000),0)) -> 0 | BM11: =IF(AND(debut<=2006,BM$9<=2006),0,IFERROR(SUMPRODUCT(Projet!$G37:'Projet'!BO37*1000,INDIRECT(ADDRESS(ROW('Facteurs dynamiques'!$C76),COLUMN('Facteurs dynamiques'!$CX76)-(BM$9-$E$9),,,"Facteurs dynamiques")):'Facteurs dynamiques'!$CX76)/('Facteurs dynamiques'!$CX$36*1000),0)) -> 0 | BN11: =IF(AND(debut<=2006,BN$9<=2006),0,IFERROR(SUMPRODUCT(Projet!$G37:'Projet'!BP37*1000,INDIRECT(ADDRESS(ROW('Facteurs dynamiques'!$C76),COLUMN('Facteurs dynamiques'!$CX76)-(BN$9-$E$9),,,"Facteurs dynamiques")):'Facteurs dynamiques'!$CX76)/('Facteurs dynamiques'!$CX$36*1000),0)) -> 0 | BO11: =IF(AND(debut<=2006,BO$9<=2006),0,IFERROR(SUMPRODUCT(Projet!$G37:'Projet'!BQ37*1000,INDIRECT(ADDRESS(ROW('Facteurs dynamiques'!$C76),COLUMN('Facteurs dynamiques'!$CX76)-(BO$9-$E$9),,,"Facteurs dynamiques")):'Facteurs dynamiques'!$CX76)/('Facteurs dynamiques'!$CX$36*1000),0)) -> 0 | BP11: =IF(AND(debut<=2006,BP$9<=2006),0,IFERROR(SUMPRODUCT(Projet!$G37:'Projet'!BR37*1000,INDIRECT(ADDRESS(ROW('Facteurs dynamiques'!$C76),COLUMN('Facteurs dynamiques'!$CX76)-(BP$9-$E$9),,,"Facteurs dynamiques")):'Facteurs dynamiques'!$CX76)/('Facteurs dynamiques'!$CX$36*1000),0)) -> 0 | BQ11: =IF(AND(debut<=2006,BQ$9<=2006),0,IFERROR(SUMPRODUCT(Projet!$G37:'Projet'!BS37*1000,INDIRECT(ADDRESS(ROW('Facteurs dynamiques'!$C76),COLUMN('Facteurs dynamiques'!$CX76)-(BQ$9-$E$9),,,"Facteurs dynamiques")):'Facteurs dynamiques'!$CX76)/('Facteurs dynamiques'!$CX$36*1000),0)) -> 0 | BR11: =IF(AND(debut<=2006,BR$9<=2006),0,IFERROR(SUMPRODUCT(Projet!$G37:'Projet'!BT37*1000,INDIRECT(ADDRESS(ROW('Facteurs dynamiques'!$C76),COLUMN('Facteurs dynamiques'!$CX76)-(BR$9-$E$9),,,"Facteurs dynamiques")):'Facteurs dynamiques'!$CX76)/('Facteurs dynamiques'!$CX$36*1000),0)) -> 0 | BS11: =IF(AND(debut<=2006,BS$9<=2006),0,IFERROR(SUMPRODUCT(Projet!$G37:'Projet'!BU37*1000,INDIRECT(ADDRESS(ROW('Facteurs dynamiques'!$C76),COLUMN('Facteurs dynamiques'!$CX76)-(BS$9-$E$9),,,"Facteurs dynamiques")):'Facteurs dynamiques'!$CX76)/('Facteurs dynamiques'!$CX$36*1000),0)) -> 0 | BT11: =IF(AND(debut<=2006,BT$9<=2006),0,IFERROR(SUMPRODUCT(Projet!$G37:'Projet'!BV37*1000,INDIRECT(ADDRESS(ROW('Facteurs dynamiques'!$C76),COLUMN('Facteurs dynamiques'!$CX76)-(BT$9-$E$9),,,"Facteurs dynamiques")):'Facteurs dynamiques'!$CX76)/('Facteurs dynamiques'!$CX$36*1000),0)) -> 0 | BU11: =IF(AND(debut<=2006,BU$9<=2006),0,IFERROR(SUMPRODUCT(Projet!$G37:'Projet'!BW37*1000,INDIRECT(ADDRESS(ROW('Facteurs dynamiques'!$C76),COLUMN('Facteurs dynamiques'!$CX76)-(BU$9-$E$9),,,"Facteurs dynamiques")):'Facteurs dynamiques'!$CX76)/('Facteurs dynamiques'!$CX$36*1000),0)) -> 0 | BV11: =IF(AND(debut<=2006,BV$9<=2006),0,IFERROR(SUMPRODUCT(Projet!$G37:'Projet'!BX37*1000,INDIRECT(ADDRESS(ROW('Facteurs dynamiques'!$C76),COLUMN('Facteurs dynamiques'!$CX76)-(BV$9-$E$9),,,"Facteurs dynamiques")):'Facteurs dynamiques'!$CX76)/('Facteurs dynamiques'!$CX$36*1000),0)) -> 0 | BW11: =IF(AND(debut<=2006,BW$9<=2006),0,IFERROR(SUMPRODUCT(Projet!$G37:'Projet'!BY37*1000,INDIRECT(ADDRESS(ROW('Facteurs dynamiques'!$C76),COLUMN('Facteurs dynamiques'!$CX76)-(BW$9-$E$9),,,"Facteurs dynamiques")):'Facteurs dynamiques'!$CX76)/('Facteurs dynamiques'!$CX$36*1000),0)) -> 0 | BX11: =IF(AND(debut<=2006,BX$9<=2006),0,IFERROR(SUMPRODUCT(Projet!$G37:'Projet'!BZ37*1000,INDIRECT(ADDRESS(ROW('Facteurs dynamiques'!$C76),COLUMN('Facteurs dynamiques'!$CX76)-(BX$9-$E$9),,,"Facteurs dynamiques")):'Facteurs dynamiques'!$CX76)/('Facteurs dynamiques'!$CX$36*1000),0)) -> 0 | BY11: =IF(AND(debut<=2006,BY$9<=2006),0,IFERROR(SUMPRODUCT(Projet!$G37:'Projet'!CA37*1000,INDIRECT(ADDRESS(ROW('Facteurs dynamiques'!$C76),COLUMN('Facteurs dynamiques'!$CX76)-(BY$9-$E$9),,,"Facteurs dynamiques")):'Facteurs dynamiques'!$CX76)/('Facteurs dynamiques'!$CX$36*1000),0)) -> 0 | BZ11: =IF(AND(debut<=2006,BZ$9<=2006),0,IFERROR(SUMPRODUCT(Projet!$G37:'Projet'!CB37*1000,INDIRECT(ADDRESS(ROW('Facteurs dynamiques'!$C76),COLUMN('Facteurs dynamiques'!$CX76)-(BZ$9-$E$9),,,"Facteurs dynamiques")):'Facteurs dynamiques'!$CX76)/('Facteurs dynamiques'!$CX$36*1000),0)) -> 0 | CA11: =IF(AND(debut<=2006,CA$9<=2006),0,IFERROR(SUMPRODUCT(Projet!$G37:'Projet'!CC37*1000,INDIRECT(ADDRESS(ROW('Facteurs dynamiques'!$C76),COLUMN('Facteurs dynamiques'!$CX76)-(CA$9-$E$9),,,"Facteurs dynamiques")):'Facteurs dynamiques'!$CX76)/('Facteurs dynamiques'!$CX$36*1000),0)) -> 0 | CB11: =IF(AND(debut<=2006,CB$9<=2006),0,IFERROR(SUMPRODUCT(Projet!$G37:'Projet'!CD37*1000,INDIRECT(ADDRESS(ROW('Facteurs dynamiques'!$C76),COLUMN('Facteurs dynamiques'!$CX76)-(CB$9-$E$9),,,"Facteurs dynamiques")):'Facteurs dynamiques'!$CX76)/('Facteurs dynamiques'!$CX$36*1000),0)) -> 0 | CC11: =IF(AND(debut<=2006,CC$9<=2006),0,IFERROR(SUMPRODUCT(Projet!$G37:'Projet'!CE37*1000,INDIRECT(ADDRESS(ROW('Facteurs dynamiques'!$C76),COLUMN('Facteurs dynamiques'!$CX76)-(CC$9-$E$9),,,"Facteurs dynamiques")):'Facteurs dynamiques'!$CX76)/('Facteurs dynamiques'!$CX$36*1000),0)) -> 0 | CD11: =IF(AND(debut<=2006,CD$9<=2006),0,IFERROR(SUMPRODUCT(Projet!$G37:'Projet'!CF37*1000,INDIRECT(ADDRESS(ROW('Facteurs dynamiques'!$C76),COLUMN('Facteurs dynamiques'!$CX76)-(CD$9-$E$9),,,"Facteurs dynamiques")):'Facteurs dynamiques'!$CX76)/('Facteurs dynamiques'!$CX$36*1000),0)) -> 0 | CE11: =IF(AND(debut<=2006,CE$9<=2006),0,IFERROR(SUMPRODUCT(Projet!$G37:'Projet'!CG37*1000,INDIRECT(ADDRESS(ROW('Facteurs dynamiques'!$C76),COLUMN('Facteurs dynamiques'!$CX76)-(CE$9-$E$9),,,"Facteurs dynamiques")):'Facteurs dynamiques'!$CX76)/('Facteurs dynamiques'!$CX$36*1000),0)) -> 0 | CF11: =IF(AND(debut<=2006,CF$9<=2006),0,IFERROR(SUMPRODUCT(Projet!$G37:'Projet'!CH37*1000,INDIRECT(ADDRESS(ROW('Facteurs dynamiques'!$C76),COLUMN('Facteurs dynamiques'!$CX76)-(CF$9-$E$9),,,"Facteurs dynamiques")):'Facteurs dynamiques'!$CX76)/('Facteurs dynamiques'!$CX$36*1000),0)) -> 0 | CG11: =IF(AND(debut<=2006,CG$9<=2006),0,IFERROR(SUMPRODUCT(Projet!$G37:'Projet'!CI37*1000,INDIRECT(ADDRESS(ROW('Facteurs dynamiques'!$C76),COLUMN('Facteurs dynamiques'!$CX76)-(CG$9-$E$9),,,"Facteurs dynamiques")):'Facteurs dynamiques'!$CX76)/('Facteurs dynamiques'!$CX$36*1000),0)) -> 0 | CH11: =IF(AND(debut<=2006,CH$9<=2006),0,IFERROR(SUMPRODUCT(Projet!$G37:'Projet'!CJ37*1000,INDIRECT(ADDRESS(ROW('Facteurs dynamiques'!$C76),COLUMN('Facteurs dynamiques'!$CX76)-(CH$9-$E$9),,,"Facteurs dynamiques")):'Facteurs dynamiques'!$CX76)/('Facteurs dynamiques'!$CX$36*1000),0)) -> 0 | CI11: =IF(AND(debut<=2006,CI$9<=2006),0,IFERROR(SUMPRODUCT(Projet!$G37:'Projet'!CK37*1000,INDIRECT(ADDRESS(ROW('Facteurs dynamiques'!$C76),COLUMN('Facteurs dynamiques'!$CX76)-(CI$9-$E$9),,,"Facteurs dynamiques")):'Facteurs dynamiques'!$CX76)/('Facteurs dynamiques'!$CX$36*1000),0)) -> 0 | CJ11: =IF(AND(debut<=2006,CJ$9<=2006),0,IFERROR(SUMPRODUCT(Projet!$G37:'Projet'!CL37*1000,INDIRECT(ADDRESS(ROW('Facteurs dynamiques'!$C76),COLUMN('Facteurs dynamiques'!$CX76)-(CJ$9-$E$9),,,"Facteurs dynamiques")):'Facteurs dynamiques'!$CX76)/('Facteurs dynamiques'!$CX$36*1000),0)) -> 0 | CK11: =IF(AND(debut<=2006,CK$9<=2006),0,IFERROR(SUMPRODUCT(Projet!$G37:'Projet'!CM37*1000,INDIRECT(ADDRESS(ROW('Facteurs dynamiques'!$C76),COLUMN('Facteurs dynamiques'!$CX76)-(CK$9-$E$9),,,"Facteurs dynamiques")):'Facteurs dynamiques'!$CX76)/('Facteurs dynamiques'!$CX$36*1000),0)) -> 0 | CL11: =IF(AND(debut<=2006,CL$9<=2006),0,IFERROR(SUMPRODUCT(Projet!$G37:'Projet'!CN37*1000,INDIRECT(ADDRESS(ROW('Facteurs dynamiques'!$C76),COLUMN('Facteurs dynamiques'!$CX76)-(CL$9-$E$9),,,"Facteurs dynamiques")):'Facteurs dynamiques'!$CX76)/('Facteurs dynamiques'!$CX$36*1000),0)) -> 0 | CM11: =IF(AND(debut<=2006,CM$9<=2006),0,IFERROR(SUMPRODUCT(Projet!$G37:'Projet'!CO37*1000,INDIRECT(ADDRESS(ROW('Facteurs dynamiques'!$C76),COLUMN('Facteurs dynamiques'!$CX76)-(CM$9-$E$9),,,"Facteurs dynamiques")):'Facteurs dynamiques'!$CX76)/('Facteurs dynamiques'!$CX$36*1000),0)) -> 0 | CN11: =IF(AND(debut<=2006,CN$9<=2006),0,IFERROR(SUMPRODUCT(Projet!$G37:'Projet'!CP37*1000,INDIRECT(ADDRESS(ROW('Facteurs dynamiques'!$C76),COLUMN('Facteurs dynamiques'!$CX76)-(CN$9-$E$9),,,"Facteurs dynamiques")):'Facteurs dynamiques'!$CX76)/('Facteurs dynamiques'!$CX$36*1000),0)) -> 0 | CO11: =IF(AND(debut<=2006,CO$9<=2006),0,IFERROR(SUMPRODUCT(Projet!$G37:'Projet'!CQ37*1000,INDIRECT(ADDRESS(ROW('Facteurs dynamiques'!$C76),COLUMN('Facteurs dynamiques'!$CX76)-(CO$9-$E$9),,,"Facteurs dynamiques")):'Facteurs dynamiques'!$CX76)/('Facteurs dynamiques'!$CX$36*1000),0)) -> 0 | CP11: =IF(AND(debut<=2006,CP$9<=2006),0,IFERROR(SUMPRODUCT(Projet!$G37:'Projet'!CR37*1000,INDIRECT(ADDRESS(ROW('Facteurs dynamiques'!$C76),COLUMN('Facteurs dynamiques'!$CX76)-(CP$9-$E$9),,,"Facteurs dynamiques")):'Facteurs dynamiques'!$CX76)/('Facteurs dynamiques'!$CX$36*1000),0)) -> 0 | CQ11: =IF(AND(debut<=2006,CQ$9<=2006),0,IFERROR(SUMPRODUCT(Projet!$G37:'Projet'!CS37*1000,INDIRECT(ADDRESS(ROW('Facteurs dynamiques'!$C76),COLUMN('Facteurs dynamiques'!$CX76)-(CQ$9-$E$9),,,"Facteurs dynamiques")):'Facteurs dynamiques'!$CX76)/('Facteurs dynamiques'!$CX$36*1000),0)) -> 0 | CR11: =IF(AND(debut<=2006,CR$9<=2006),0,IFERROR(SUMPRODUCT(Projet!$G37:'Projet'!CT37*1000,INDIRECT(ADDRESS(ROW('Facteurs dynamiques'!$C76),COLUMN('Facteurs dynamiques'!$CX76)-(CR$9-$E$9),,,"Facteurs dynamiques")):'Facteurs dynamiques'!$CX76)/('Facteurs dynamiques'!$CX$36*1000),0)) -> 0 | CS11: =IF(AND(debut<=2006,CS$9<=2006),0,IFERROR(SUMPRODUCT(Projet!$G37:'Projet'!CU37*1000,INDIRECT(ADDRESS(ROW('Facteurs dynamiques'!$C76),COLUMN('Facteurs dynamiques'!$CX76)-(CS$9-$E$9),,,"Facteurs dynamiques")):'Facteurs dynamiques'!$CX76)/('Facteurs dynamiques'!$CX$36*1000),0)) -> 0 | CT11: =IF(AND(debut<=2006,CT$9<=2006),0,IFERROR(SUMPRODUCT(Projet!$G37:'Projet'!CV37*1000,INDIRECT(ADDRESS(ROW('Facteurs dynamiques'!$C76),COLUMN('Facteurs dynamiques'!$CX76)-(CT$9-$E$9),,,"Facteurs dynamiques")):'Facteurs dynamiques'!$CX76)/('Facteurs dynamiques'!$CX$36*1000),0)) -> 0 | CU11: =IF(AND(debut<=2006,CU$9<=2006),0,IFERROR(SUMPRODUCT(Projet!$G37:'Projet'!CW37*1000,INDIRECT(ADDRESS(ROW('Facteurs dynamiques'!$C76),COLUMN('Facteurs dynamiques'!$CX76)-(CU$9-$E$9),,,"Facteurs dynamiques")):'Facteurs dynamiques'!$CX76)/('Facteurs dynamiques'!$CX$36*1000),0)) -> 0 | CV11: =IF(AND(debut<=2006,CV$9<=2006),0,IFERROR(SUMPRODUCT(Projet!$G37:'Projet'!CX37*1000,INDIRECT(ADDRESS(ROW('Facteurs dynamiques'!$C76),COLUMN('Facteurs dynamiques'!$CX76)-(CV$9-$E$9),,,"Facteurs dynamiques")):'Facteurs dynamiques'!$CX76)/('Facteurs dynamiques'!$CX$36*1000),0)) -> 0 | CW11: =IF(AND(debut<=2006,CW$9<=2006),0,IFERROR(SUMPRODUCT(Projet!$G37:'Projet'!CY37*1000,INDIRECT(ADDRESS(ROW('Facteurs dynamiques'!$C76),COLUMN('Facteurs dynamiques'!$CX76)-(CW$9-$E$9),,,"Facteurs dynamiques")):'Facteurs dynamiques'!$CX76)/('Facteurs dynamiques'!$CX$36*1000),0)) -> 0 | CX11: =IF(AND(debut<=2006,CX$9<=2006),0,IFERROR(SUMPRODUCT(Projet!$G37:'Projet'!CZ37*1000,INDIRECT(ADDRESS(ROW('Facteurs dynamiques'!$C76),COLUMN('Facteurs dynamiques'!$CX76)-(CX$9-$E$9),,,"Facteurs dynamiques")):'Facteurs dynamiques'!$CX76)/('Facteurs dynamiques'!$CX$36*1000),0)) -> 0 | CY11: =IF(AND(debut<=2006,CY$9<=2006),0,IFERROR(SUMPRODUCT(Projet!$G37:'Projet'!DA37*1000,INDIRECT(ADDRESS(ROW('Facteurs dynamiques'!$C76),COLUMN('Facteurs dynamiques'!$CX76)-(CY$9-$E$9),,,"Facteurs dynamiques")):'Facteurs dynamiques'!$CX76)/('Facteurs dynamiques'!$CX$36*1000),0)) -> 0 | CZ11: =IF(AND(debut<=2006,CZ$9<=2006),0,IFERROR(SUMPRODUCT(Projet!$G37:'Projet'!DB37*1000,INDIRECT(ADDRESS(ROW('Facteurs dynamiques'!$C76),COLUMN('Facteurs dynamiques'!$CX76)-(CZ$9-$E$9),,,"Facteurs dynamiques")):'Facteurs dynamiques'!$CX76)/('Facteurs dynamiques'!$CX$36*1000),0)) -> 0 | DA11: =IF(AND(debut<=2006,DA$9<=2006),0,IFERROR(SUMPRODUCT(Projet!$G37:'Projet'!DC37*1000,INDIRECT(ADDRESS(ROW('Facteurs dynamiques'!$C76),COLUMN('Facteurs dynamiques'!$CX76)-(DA$9-$E$9),,,"Facteurs dynamiques")):'Facteurs dynamiques'!$CX76)/('Facteurs dynamiques'!$CX$36*1000),0)) -> 0 | DB11: =IF(AND(debut<=2006,DB$9<=2006),0,IFERROR(SUMPRODUCT(Projet!$G37:'Projet'!DD37*1000,INDIRECT(ADDRESS(ROW('Facteurs dynamiques'!$C76),COLUMN('Facteurs dynamiques'!$CX76)-(DB$9-$E$9),,,"Facteurs dynamiques")):'Facteurs dynamiques'!$CX76)/('Facteurs dynamiques'!$CX$36*1000),0)) -> 0 | DC11: =IF(AND(debut<=2006,DC$9<=2006),0,IFERROR(SUMPRODUCT(Projet!$G37:'Projet'!DE37*1000,INDIRECT(ADDRESS(ROW('Facteurs dynamiques'!$C76),COLUMN('Facteurs dynamiques'!$CX76)-(DC$9-$E$9),,,"Facteurs dynamiques")):'Facteurs dynamiques'!$CX76)/('Facteurs dynamiques'!$CX$36*1000),0)) -> 0 | DD11: =IF(AND(debut<=2006,DD$9<=2006),0,IFERROR(SUMPRODUCT(Projet!$G37:'Projet'!DF37*1000,INDIRECT(ADDRESS(ROW('Facteurs dynamiques'!$C76),COLUMN('Facteurs dynamiques'!$CX76)-(DD$9-$E$9),,,"Facteurs dynamiques")):'Facteurs dynamiques'!$CX76)/('Facteurs dynamiques'!$CX$36*1000),0)) -> 0 | DE11: =IF(AND(debut<=2006,DE$9<=2006),0,IFERROR(SUMPRODUCT(Projet!$G37:'Projet'!DG37*1000,INDIRECT(ADDRESS(ROW('Facteurs dynamiques'!$C76),COLUMN('Facteurs dynamiques'!$CX76)-(DE$9-$E$9),,,"Facteurs dynamiques")):'Facteurs dynamiques'!$CX76)/('Facteurs dynamiques'!$CX$36*1000),0)) -> 0 | DF11: =IF(AND(debut<=2006,DF$9<=2006),0,IFERROR(SUMPRODUCT(Projet!$G37:'Projet'!DH37*1000,INDIRECT(ADDRESS(ROW('Facteurs dynamiques'!$C76),COLUMN('Facteurs dynamiques'!$CX76)-(DF$9-$E$9),,,"Facteurs dynamiques")):'Facteurs dynamiques'!$CX76)/('Facteurs dynamiques'!$CX$36*1000),0)) -> 0 | DG11: =IF(AND(debut<=2006,DG$9<=2006),0,IFERROR(SUMPRODUCT(Projet!$G37:'Projet'!DI37*1000,INDIRECT(ADDRESS(ROW('Facteurs dynamiques'!$C76),COLUMN('Facteurs dynamiques'!$CX76)-(DG$9-$E$9),,,"Facteurs dynamiques")):'Facteurs dynamiques'!$CX76)/('Facteurs dynamiques'!$CX$36*1000),0)) -> 0 | DH11: =IF(AND(debut<=2006,DH$9<=2006),0,IFERROR(SUMPRODUCT(Projet!$G37:'Projet'!DJ37*1000,INDIRECT(ADDRESS(ROW('Facteurs dynamiques'!$C76),COLUMN('Facteurs dynamiques'!$CX76)-(DH$9-$E$9),,,"Facteurs dynamiques")):'Facteurs dynamiques'!$CX76)/('Facteurs dynamiques'!$CX$36*1000),0)) -> 0 | DI11: =IF(AND(debut<=2006,DI$9<=2006),0,IFERROR(SUMPRODUCT(Projet!$G37:'Projet'!DK37*1000,INDIRECT(ADDRESS(ROW('Facteurs dynamiques'!$C76),COLUMN('Facteurs dynamiques'!$CX76)-(DI$9-$E$9),,,"Facteurs dynamiques")):'Facteurs dynamiques'!$CX76)/('Facteurs dynamiques'!$CX$36*1000),0)) -> 0 | DJ11: =IF(AND(debut<=2006,DJ$9<=2006),0,IFERROR(SUMPRODUCT(Projet!$G37:'Projet'!DL37*1000,INDIRECT(ADDRESS(ROW('Facteurs dynamiques'!$C76),COLUMN('Facteurs dynamiques'!$CX76)-(DJ$9-$E$9),,,"Facteurs dynamiques")):'Facteurs dynamiques'!$CX76)/('Facteurs dynamiques'!$CX$36*1000),0)) -> 0 | DK11: =IF(AND(debut<=2006,DK$9<=2006),0,IFERROR(SUMPRODUCT(Projet!$G37:'Projet'!DM37*1000,INDIRECT(ADDRESS(ROW('Facteurs dynamiques'!$C76),COLUMN('Facteurs dynamiques'!$CX76)-(DK$9-$E$9),,,"Facteurs dynamiques")):'Facteurs dynamiques'!$CX76)/('Facteurs dynamiques'!$CX$36*1000),0)) -> 0 | DL11: =IF(AND(debut<=2006,DL$9<=2006),0,IFERROR(SUMPRODUCT(Projet!$G37:'Projet'!DN37*1000,INDIRECT(ADDRESS(ROW('Facteurs dynamiques'!$C76),COLUMN('Facteurs dynamiques'!$CX76)-(DL$9-$E$9),,,"Facteurs dynamiques")):'Facteurs dynamiques'!$CX76)/('Facteurs dynamiques'!$CX$36*1000),0)) -> 0 | DM11: =IF(AND(debut<=2006,DM$9<=2006),0,IFERROR(SUMPRODUCT(Projet!$G37:'Projet'!DO37*1000,INDIRECT(ADDRESS(ROW('Facteurs dynamiques'!$C76),COLUMN('Facteurs dynamiques'!$CX76)-(DM$9-$E$9),,,"Facteurs dynamiques")):'Facteurs dynamiques'!$CX76)/('Facteurs dynamiques'!$CX$36*1000),0)) -> 0 | DN11: =IF(AND(debut<=2006,DN$9<=2006),0,IFERROR(SUMPRODUCT(Projet!$G37:'Projet'!DP37*1000,INDIRECT(ADDRESS(ROW('Facteurs dynamiques'!$C76),COLUMN('Facteurs dynamiques'!$CX76)-(DN$9-$E$9),,,"Facteurs dynamiques")):'Facteurs dynamiques'!$CX76)/('Facteurs dynamiques'!$CX$36*1000),0)) -> 0 | DO11: =IF(AND(debut<=2006,DO$9<=2006),0,IFERROR(SUMPRODUCT(Projet!$G37:'Projet'!DQ37*1000,INDIRECT(ADDRESS(ROW('Facteurs dynamiques'!$C76),COLUMN('Facteurs dynamiques'!$CX76)-(DO$9-$E$9),,,"Facteurs dynamiques")):'Facteurs dynamiques'!$CX76)/('Facteurs dynamiques'!$CX$36*1000),0)) -> 0 | DP11: =IF(AND(debut<=2006,DP$9<=2006),0,IFERROR(SUMPRODUCT(Projet!$G37:'Projet'!DR37*1000,INDIRECT(ADDRESS(ROW('Facteurs dynamiques'!$C76),COLUMN('Facteurs dynamiques'!$CX76)-(DP$9-$E$9),,,"Facteurs dynamiques")):'Facteurs dynamiques'!$CX76)/('Facteurs dynamiques'!$CX$36*1000),0)) -> 0 | DQ11: =IF(AND(debut<=2006,DQ$9<=2006),0,IFERROR(SUMPRODUCT(Projet!$G37:'Projet'!DS37*1000,INDIRECT(ADDRESS(ROW('Facteurs dynamiques'!$C76),COLUMN('Facteurs dynamiques'!$CX76)-(DQ$9-$E$9),,,"Facteurs dynamiques")):'Facteurs dynamiques'!$CX76)/('Facteurs dynamiques'!$CX$36*1000),0)) -> 0 | DR11: =IF(AND(debut<=2006,DR$9<=2006),0,IFERROR(SUMPRODUCT(Projet!$G37:'Projet'!DT37*1000,INDIRECT(ADDRESS(ROW('Facteurs dynamiques'!$C76),COLUMN('Facteurs dynamiques'!$CX76)-(DR$9-$E$9),,,"Facteurs dynamiques")):'Facteurs dynamiques'!$CX76)/('Facteurs dynamiques'!$CX$36*1000),0)) -> 0 | DS11: =IF(AND(debut<=2006,DS$9<=2006),0,IFERROR(SUMPRODUCT(Projet!$G37:'Projet'!DU37*1000,INDIRECT(ADDRESS(ROW('Facteurs dynamiques'!$C76),COLUMN('Facteurs dynamiques'!$CX76)-(DS$9-$E$9),,,"Facteurs dynamiques")):'Facteurs dynamiques'!$CX76)/('Facteurs dynamiques'!$CX$36*1000),0)) -> 0 | DT11: =IF(AND(debut<=2006,DT$9<=2006),0,IFERROR(SUMPRODUCT(Projet!$G37:'Projet'!DV37*1000,INDIRECT(ADDRESS(ROW('Facteurs dynamiques'!$C76),COLUMN('Facteurs dynamiques'!$CX76)-(DT$9-$E$9),,,"Facteurs dynamiques")):'Facteurs dynamiques'!$CX76)/('Facteurs dynamiques'!$CX$36*1000),0)) -> 0 | DU11: =IF(AND(debut<=2006,DU$9<=2006),0,IFERROR(SUMPRODUCT(Projet!$G37:'Projet'!DW37*1000,INDIRECT(ADDRESS(ROW('Facteurs dynamiques'!$C76),COLUMN('Facteurs dynamiques'!$CX76)-(DU$9-$E$9),,,"Facteurs dynamiques")):'Facteurs dynamiques'!$CX76)/('Facteurs dynamiques'!$CX$36*1000),0)) -> 0 | DV11: =IF(AND(debut<=2006,DV$9<=2006),0,IFERROR(SUMPRODUCT(Projet!$G37:'Projet'!DX37*1000,INDIRECT(ADDRESS(ROW('Facteurs dynamiques'!$C76),COLUMN('Facteurs dynamiques'!$CX76)-(DV$9-$E$9),,,"Facteurs dynamiques")):'Facteurs dynamiques'!$CX76)/('Facteurs dynamiques'!$CX$36*1000),0)) -> 0 | DW11: =IF(AND(debut<=2006,DW$9<=2006),0,IFERROR(SUMPRODUCT(Projet!$G37:'Projet'!DY37*1000,INDIRECT(ADDRESS(ROW('Facteurs dynamiques'!$C76),COLUMN('Facteurs dynamiques'!$CX76)-(DW$9-$E$9),,,"Facteurs dynamiques")):'Facteurs dynamiques'!$CX76)/('Facteurs dynamiques'!$CX$36*1000),0)) -> 0 | DX11: =IF(AND(debut<=2006,DX$9<=2006),0,IFERROR(SUMPRODUCT(Projet!$G37:'Projet'!DZ37*1000,INDIRECT(ADDRESS(ROW('Facteurs dynamiques'!$C76),COLUMN('Facteurs dynamiques'!$CX76)-(DX$9-$E$9),,,"Facteurs dynamiques")):'Facteurs dynamiques'!$CX76)/('Facteurs dynamiques'!$CX$36*1000),0)) -> 0 | DY11: =IF(AND(debut<=2006,DY$9<=2006),0,IFERROR(SUMPRODUCT(Projet!$G37:'Projet'!EA37*1000,INDIRECT(ADDRESS(ROW('Facteurs dynamiques'!$C76),COLUMN('Facteurs dynamiques'!$CX76)-(DY$9-$E$9),,,"Facteurs dynamiques")):'Facteurs dynamiques'!$CX76)/('Facteurs dynamiques'!$CX$36*1000),0)) -> 0 | DZ11: =IF(AND(debut<=2006,DZ$9<=2006),0,IFERROR(SUMPRODUCT(Projet!$G37:'Projet'!EB37*1000,INDIRECT(ADDRESS(ROW('Facteurs dynamiques'!$C76),COLUMN('Facteurs dynamiques'!$CX76)-(DZ$9-$E$9),,,"Facteurs dynamiques")):'Facteurs dynamiques'!$CX76)/('Facteurs dynamiques'!$CX$36*1000),0)) -> 0 | EA11: =IF(AND(debut<=2006,EA$9<=2006),0,IFERROR(SUMPRODUCT(Projet!$G37:'Projet'!EC37*1000,INDIRECT(ADDRESS(ROW('Facteurs dynamiques'!$C76),COLUMN('Facteurs dynamiques'!$CX76)-(EA$9-$E$9),,,"Facteurs dynamiques")):'Facteurs dynamiques'!$CX76)/('Facteurs dynamiques'!$CX$36*1000),0)) -> 0 | EB11: =IF(AND(debut<=2006,EB$9<=2006),0,IFERROR(SUMPRODUCT(Projet!$G37:'Projet'!ED37*1000,INDIRECT(ADDRESS(ROW('Facteurs dynamiques'!$C76),COLUMN('Facteurs dynamiques'!$CX76)-(EB$9-$E$9),,,"Facteurs dynamiques")):'Facteurs dynamiques'!$CX76)/('Facteurs dynamiques'!$CX$36*1000),0)) -> 0 | EC11: =IF(AND(debut<=2006,EC$9<=2006),0,IFERROR(SUMPRODUCT(Projet!$G37:'Projet'!EE37*1000,INDIRECT(ADDRESS(ROW('Facteurs dynamiques'!$C76),COLUMN('Facteurs dynamiques'!$CX76)-(EC$9-$E$9),,,"Facteurs dynamiques")):'Facteurs dynamiques'!$CX76)/('Facteurs dynamiques'!$CX$36*1000),0)) -> 0 | ED11: =IF(AND(debut<=2006,ED$9<=2006),0,IFERROR(SUMPRODUCT(Projet!$G37:'Projet'!EF37*1000,INDIRECT(ADDRESS(ROW('Facteurs dynamiques'!$C76),COLUMN('Facteurs dynamiques'!$CX76)-(ED$9-$E$9),,,"Facteurs dynamiques")):'Facteurs dynamiques'!$CX76)/('Facteurs dynamiques'!$CX$36*1000),0)) -> 0 | EE11: =IF(AND(debut<=2006,EE$9<=2006),0,IFERROR(SUMPRODUCT(Projet!$G37:'Projet'!EG37*1000,INDIRECT(ADDRESS(ROW('Facteurs dynamiques'!$C76),COLUMN('Facteurs dynamiques'!$CX76)-(EE$9-$E$9),,,"Facteurs dynamiques")):'Facteurs dynamiques'!$CX76)/('Facteurs dynamiques'!$CX$36*1000),0)) -> 0 | EF11: =IF(AND(debut<=2006,EF$9<=2006),0,IFERROR(SUMPRODUCT(Projet!$G37:'Projet'!EH37*1000,INDIRECT(ADDRESS(ROW('Facteurs dynamiques'!$C76),COLUMN('Facteurs dynamiques'!$CX76)-(EF$9-$E$9),,,"Facteurs dynamiques")):'Facteurs dynamiques'!$CX76)/('Facteurs dynamiques'!$CX$36*1000),0)) -> 0 | EG11: =IF(AND(debut<=2006,EG$9<=2006),0,IFERROR(SUMPRODUCT(Projet!$G37:'Projet'!EI37*1000,INDIRECT(ADDRESS(ROW('Facteurs dynamiques'!$C76),COLUMN('Facteurs dynamiques'!$CX76)-(EG$9-$E$9),,,"Facteurs dynamiques")):'Facteurs dynamiques'!$CX76)/('Facteurs dynamiques'!$CX$36*1000),0)) -> 0 | EH11: =IF(AND(debut<=2006,EH$9<=2006),0,IFERROR(SUMPRODUCT(Projet!$G37:'Projet'!EJ37*1000,INDIRECT(ADDRESS(ROW('Facteurs dynamiques'!$C76),COLUMN('Facteurs dynamiques'!$CX76)-(EH$9-$E$9),,,"Facteurs dynamiques")):'Facteurs dynamiques'!$CX76)/('Facteurs dynamiques'!$CX$36*1000),0)) -> 0 | EI11: =IF(AND(debut<=2006,EI$9<=2006),0,IFERROR(SUMPRODUCT(Projet!$G37:'Projet'!EK37*1000,INDIRECT(ADDRESS(ROW('Facteurs dynamiques'!$C76),COLUMN('Facteurs dynamiques'!$CX76)-(EI$9-$E$9),,,"Facteurs dynamiques")):'Facteurs dynamiques'!$CX76)/('Facteurs dynamiques'!$CX$36*1000),0)) -> 0 | EJ11: =IF(AND(debut<=2006,EJ$9<=2006),0,IFERROR(SUMPRODUCT(Projet!$G37:'Projet'!EL37*1000,INDIRECT(ADDRESS(ROW('Facteurs dynamiques'!$C76),COLUMN('Facteurs dynamiques'!$CX76)-(EJ$9-$E$9),,,"Facteurs dynamiques")):'Facteurs dynamiques'!$CX76)/('Facteurs dynamiques'!$CX$36*1000),0)) -> 0 | EK11: =IF(AND(debut<=2006,EK$9<=2006),0,IFERROR(SUMPRODUCT(Projet!$G37:'Projet'!EM37*1000,INDIRECT(ADDRESS(ROW('Facteurs dynamiques'!$C76),COLUMN('Facteurs dynamiques'!$CX76)-(EK$9-$E$9),,,"Facteurs dynamiques")):'Facteurs dynamiques'!$CX76)/('Facteurs dynamiques'!$CX$36*1000),0)) -> 0 | EL11: =IF(AND(debut<=2006,EL$9<=2006),0,IFERROR(SUMPRODUCT(Projet!$G37:'Projet'!EN37*1000,INDIRECT(ADDRESS(ROW('Facteurs dynamiques'!$C76),COLUMN('Facteurs dynamiques'!$CX76)-(EL$9-$E$9),,,"Facteurs dynamiques")):'Facteurs dynamiques'!$CX76)/('Facteurs dynamiques'!$CX$36*1000),0)) -> 0 | EM11: =IF(AND(debut<=2006,EM$9<=2006),0,IFERROR(SUMPRODUCT(Projet!$G37:'Projet'!EO37*1000,INDIRECT(ADDRESS(ROW('Facteurs dynamiques'!$C76),COLUMN('Facteurs dynamiques'!$CX76)-(EM$9-$E$9),,,"Facteurs dynamiques")):'Facteurs dynamiques'!$CX76)/('Facteurs dynamiques'!$CX$36*1000),0)) -> 0 | EN11: =IF(AND(debut<=2006,EN$9<=2006),0,IFERROR(SUMPRODUCT(Projet!$G37:'Projet'!EP37*1000,INDIRECT(ADDRESS(ROW('Facteurs dynamiques'!$C76),COLUMN('Facteurs dynamiques'!$CX76)-(EN$9-$E$9),,,"Facteurs dynamiques")):'Facteurs dynamiques'!$CX76)/('Facteurs dynamiques'!$CX$36*1000),0)) -> 0 | EO11: =IF(AND(debut<=2006,EO$9<=2006),0,IFERROR(SUMPRODUCT(Projet!$G37:'Projet'!EQ37*1000,INDIRECT(ADDRESS(ROW('Facteurs dynamiques'!$C76),COLUMN('Facteurs dynamiques'!$CX76)-(EO$9-$E$9),,,"Facteurs dynamiques")):'Facteurs dynamiques'!$CX76)/('Facteurs dynamiques'!$CX$36*1000),0)) -> 0 | EP11: =IF(AND(debut<=2006,EP$9<=2006),0,IFERROR(SUMPRODUCT(Projet!$G37:'Projet'!ER37*1000,INDIRECT(ADDRESS(ROW('Facteurs dynamiques'!$C76),COLUMN('Facteurs dynamiques'!$CX76)-(EP$9-$E$9),,,"Facteurs dynamiques")):'Facteurs dynamiques'!$CX76)/('Facteurs dynamiques'!$CX$36*1000),0)) -> 0 | EQ11: =IF(AND(debut<=2006,EQ$9<=2006),0,IFERROR(SUMPRODUCT(Projet!$G37:'Projet'!ES37*1000,INDIRECT(ADDRESS(ROW('Facteurs dynamiques'!$C76),COLUMN('Facteurs dynamiques'!$CX76)-(EQ$9-$E$9),,,"Facteurs dynamiques")):'Facteurs dynamiques'!$CX76)/('Facteurs dynamiques'!$CX$36*1000),0)) -> 0 | ER11: =IF(AND(debut<=2006,ER$9<=2006),0,IFERROR(SUMPRODUCT(Projet!$G37:'Projet'!ET37*1000,INDIRECT(ADDRESS(ROW('Facteurs dynamiques'!$C76),COLUMN('Facteurs dynamiques'!$CX76)-(ER$9-$E$9),,,"Facteurs dynamiques")):'Facteurs dynamiques'!$CX76)/('Facteurs dynamiques'!$CX$36*1000),0)) -> 0 | ES11: =IF(AND(debut<=2006,ES$9<=2006),0,IFERROR(SUMPRODUCT(Projet!$G37:'Projet'!EU37*1000,INDIRECT(ADDRESS(ROW('Facteurs dynamiques'!$C76),COLUMN('Facteurs dynamiques'!$CX76)-(ES$9-$E$9),,,"Facteurs dynamiques")):'Facteurs dynamiques'!$CX76)/('Facteurs dynamiques'!$CX$36*1000),0)) -> 0 | ET11: =IF(AND(debut<=2006,ET$9<=2006),0,IFERROR(SUMPRODUCT(Projet!$G37:'Projet'!EV37*1000,INDIRECT(ADDRESS(ROW('Facteurs dynamiques'!$C76),COLUMN('Facteurs dynamiques'!$CX76)-(ET$9-$E$9),,,"Facteurs dynamiques")):'Facteurs dynamiques'!$CX76)/('Facteurs dynamiques'!$CX$36*1000),0)) -> 0 | EU11: =IF(AND(debut<=2006,EU$9<=2006),0,IFERROR(SUMPRODUCT(Projet!$G37:'Projet'!EW37*1000,INDIRECT(ADDRESS(ROW('Facteurs dynamiques'!$C76),COLUMN('Facteurs dynamiques'!$CX76)-(EU$9-$E$9),,,"Facteurs dynamiques")):'Facteurs dynamiques'!$CX76)/('Facteurs dynamiques'!$CX$36*1000),0)) -> 0 | EV11: =IF(AND(debut<=2006,EV$9<=2006),0,IFERROR(SUMPRODUCT(Projet!$G37:'Projet'!EX37*1000,INDIRECT(ADDRESS(ROW('Facteurs dynamiques'!$C76),COLUMN('Facteurs dynamiques'!$CX76)-(EV$9-$E$9),,,"Facteurs dynamiques")):'Facteurs dynamiques'!$CX76)/('Facteurs dynamiques'!$CX$36*1000),0)) -> 0 | EW11: =IF(AND(debut<=2006,EW$9<=2006),0,IFERROR(SUMPRODUCT(Projet!$G37:'Projet'!EY37*1000,INDIRECT(ADDRESS(ROW('Facteurs dynamiques'!$C76),COLUMN('Facteurs dynamiques'!$CX76)-(EW$9-$E$9),,,"Facteurs dynamiques")):'Facteurs dynamiques'!$CX76)/('Facteurs dynamiques'!$CX$36*1000),0)) -> 0 | EX11: =IF(AND(debut<=2006,EX$9<=2006),0,IFERROR(SUMPRODUCT(Projet!$G37:'Projet'!EZ37*1000,INDIRECT(ADDRESS(ROW('Facteurs dynamiques'!$C76),COLUMN('Facteurs dynamiques'!$CX76)-(EX$9-$E$9),,,"Facteurs dynamiques")):'Facteurs dynamiques'!$CX76)/('Facteurs dynamiques'!$CX$36*1000),0)) -> 0 | EY11: =IF(AND(debut<=2006,EY$9<=2006),0,IFERROR(SUMPRODUCT(Projet!$G37:'Projet'!FA37*1000,INDIRECT(ADDRESS(ROW('Facteurs dynamiques'!$C76),COLUMN('Facteurs dynamiques'!$CX76)-(EY$9-$E$9),,,"Facteurs dynamiques")):'Facteurs dynamiques'!$CX76)/('Facteurs dynamiques'!$CX$36*1000),0)) -> 0 | EZ11: =IF(AND(debut<=2006,EZ$9<=2006),0,IFERROR(SUMPRODUCT(Projet!$G37:'Projet'!FB37*1000,INDIRECT(ADDRESS(ROW('Facteurs dynamiques'!$C76),COLUMN('Facteurs dynamiques'!$CX76)-(EZ$9-$E$9),,,"Facteurs dynamiques")):'Facteurs dynamiques'!$CX76)/('Facteurs dynamiques'!$CX$36*1000),0)) -> 0 | FA11: =IF(AND(debut<=2006,FA$9<=2006),0,IFERROR(SUMPRODUCT(Projet!$G37:'Projet'!FC37*1000,INDIRECT(ADDRESS(ROW('Facteurs dynamiques'!$C76),COLUMN('Facteurs dynamiques'!$CX76)-(FA$9-$E$9),,,"Facteurs dynamiques")):'Facteurs dynamiques'!$CX76)/('Facteurs dynamiques'!$CX$36*1000),0)) -> 0 | FB11: =IF(AND(debut<=2006,FB$9<=2006),0,IFERROR(SUMPRODUCT(Projet!$G37:'Projet'!FD37*1000,INDIRECT(ADDRESS(ROW('Facteurs dynamiques'!$C76),COLUMN('Facteurs dynamiques'!$CX76)-(FB$9-$E$9),,,"Facteurs dynamiques")):'Facteurs dynamiques'!$CX76)/('Facteurs dynamiques'!$CX$36*1000),0)) -> 0 | FC11: =IF(AND(debut<=2006,FC$9<=2006),0,IFERROR(SUMPRODUCT(Projet!$G37:'Projet'!FE37*1000,INDIRECT(ADDRESS(ROW('Facteurs dynamiques'!$C76),COLUMN('Facteurs dynamiques'!$CX76)-(FC$9-$E$9),,,"Facteurs dynamiques")):'Facteurs dynamiques'!$CX76)/('Facteurs dynamiques'!$CX$36*1000),0)) -> 0 | FD11: =IF(AND(debut<=2006,FD$9<=2006),0,IFERROR(SUMPRODUCT(Projet!$G37:'Projet'!FF37*1000,INDIRECT(ADDRESS(ROW('Facteurs dynamiques'!$C76),COLUMN('Facteurs dynamiques'!$CX76)-(FD$9-$E$9),,,"Facteurs dynamiques")):'Facteurs dynamiques'!$CX76)/('Facteurs dynamiques'!$CX$36*1000),0)) -> 0 | FE11: =IF(AND(debut<=2006,FE$9<=2006),0,IFERROR(SUMPRODUCT(Projet!$G37:'Projet'!FG37*1000,INDIRECT(ADDRESS(ROW('Facteurs dynamiques'!$C76),COLUMN('Facteurs dynamiques'!$CX76)-(FE$9-$E$9),,,"Facteurs dynamiques")):'Facteurs dynamiques'!$CX76)/('Facteurs dynamiques'!$CX$36*1000),0)) -> 0 | FF11: =IF(AND(debut<=2006,FF$9<=2006),0,IFERROR(SUMPRODUCT(Projet!$G37:'Projet'!FH37*1000,INDIRECT(ADDRESS(ROW('Facteurs dynamiques'!$C76),COLUMN('Facteurs dynamiques'!$CX76)-(FF$9-$E$9),,,"Facteurs dynamiques")):'Facteurs dynamiques'!$CX76)/('Facteurs dynamiques'!$CX$36*1000),0)) -> 0 | FG11: =IF(AND(debut<=2006,FG$9<=2006),0,IFERROR(SUMPRODUCT(Projet!$G37:'Projet'!FI37*1000,INDIRECT(ADDRESS(ROW('Facteurs dynamiques'!$C76),COLUMN('Facteurs dynamiques'!$CX76)-(FG$9-$E$9),,,"Facteurs dynamiques")):'Facteurs dynamiques'!$CX76)/('Facteurs dynamiques'!$CX$36*1000),0)) -> 0 | FH11: =IF(AND(debut<=2006,FH$9<=2006),0,IFERROR(SUMPRODUCT(Projet!$G37:'Projet'!FJ37*1000,INDIRECT(ADDRESS(ROW('Facteurs dynamiques'!$C76),COLUMN('Facteurs dynamiques'!$CX76)-(FH$9-$E$9),,,"Facteurs dynamiques")):'Facteurs dynamiques'!$CX76)/('Facteurs dynamiques'!$CX$36*1000),0)) -> 0 | FI11: =IF(AND(debut<=2006,FI$9<=2006),0,IFERROR(SUMPRODUCT(Projet!$G37:'Projet'!FK37*1000,INDIRECT(ADDRESS(ROW('Facteurs dynamiques'!$C76),COLUMN('Facteurs dynamiques'!$CX76)-(FI$9-$E$9),,,"Facteurs dynamiques")):'Facteurs dynamiques'!$CX76)/('Facteurs dynamiques'!$CX$36*1000),0)) -> 0 | FJ11: =IF(AND(debut<=2006,FJ$9<=2006),0,IFERROR(SUMPRODUCT(Projet!$G37:'Projet'!FL37*1000,INDIRECT(ADDRESS(ROW('Facteurs dynamiques'!$C76),COLUMN('Facteurs dynamiques'!$CX76)-(FJ$9-$E$9),,,"Facteurs dynamiques")):'Facteurs dynamiques'!$CX76)/('Facteurs dynamiques'!$CX$36*1000),0)) -> 0 | FK11: =IF(AND(debut<=2006,FK$9<=2006),0,IFERROR(SUMPRODUCT(Projet!$G37:'Projet'!FM37*1000,INDIRECT(ADDRESS(ROW('Facteurs dynamiques'!$C76),COLUMN('Facteurs dynamiques'!$CX76)-(FK$9-$E$9),,,"Facteurs dynamiques")):'Facteurs dynamiques'!$CX76)/('Facteurs dynamiques'!$CX$36*1000),0)) -> 0 | FL11: =IF(AND(debut<=2006,FL$9<=2006),0,IFERROR(SUMPRODUCT(Projet!$G37:'Projet'!FN37*1000,INDIRECT(ADDRESS(ROW('Facteurs dynamiques'!$C76),COLUMN('Facteurs dynamiques'!$CX76)-(FL$9-$E$9),,,"Facteurs dynamiques")):'Facteurs dynamiques'!$CX76)/('Facteurs dynamiques'!$CX$36*1000),0)) -> 0 | FM11: =IF(AND(debut<=2006,FM$9<=2006),0,IFERROR(SUMPRODUCT(Projet!$G37:'Projet'!FO37*1000,INDIRECT(ADDRESS(ROW('Facteurs dynamiques'!$C76),COLUMN('Facteurs dynamiques'!$CX76)-(FM$9-$E$9),,,"Facteurs dynamiques")):'Facteurs dynamiques'!$CX76)/('Facteurs dynamiques'!$CX$36*1000),0)) -> 0 | FN11: =IF(AND(debut<=2006,FN$9<=2006),0,IFERROR(SUMPRODUCT(Projet!$G37:'Projet'!FP37*1000,INDIRECT(ADDRESS(ROW('Facteurs dynamiques'!$C76),COLUMN('Facteurs dynamiques'!$CX76)-(FN$9-$E$9),,,"Facteurs dynamiques")):'Facteurs dynamiques'!$CX76)/('Facteurs dynamiques'!$CX$36*1000),0)) -> 0 | FO11: =IF(AND(debut<=2006,FO$9<=2006),0,IFERROR(SUMPRODUCT(Projet!$G37:'Projet'!FQ37*1000,INDIRECT(ADDRESS(ROW('Facteurs dynamiques'!$C76),COLUMN('Facteurs dynamiques'!$CX76)-(FO$9-$E$9),,,"Facteurs dynamiques")):'Facteurs dynamiques'!$CX76)/('Facteurs dynamiques'!$CX$36*1000),0)) -> 0 | FP11: =IF(AND(debut<=2006,FP$9<=2006),0,IFERROR(SUMPRODUCT(Projet!$G37:'Projet'!FR37*1000,INDIRECT(ADDRESS(ROW('Facteurs dynamiques'!$C76),COLUMN('Facteurs dynamiques'!$CX76)-(FP$9-$E$9),,,"Facteurs dynamiques")):'Facteurs dynamiques'!$CX76)/('Facteurs dynamiques'!$CX$36*1000),0)) -> 0 | FQ11: =IF(AND(debut<=2006,FQ$9<=2006),0,IFERROR(SUMPRODUCT(Projet!$G37:'Projet'!FS37*1000,INDIRECT(ADDRESS(ROW('Facteurs dynamiques'!$C76),COLUMN('Facteurs dynamiques'!$CX76)-(FQ$9-$E$9),,,"Facteurs dynamiques")):'Facteurs dynamiques'!$CX76)/('Facteurs dynamiques'!$CX$36*1000),0)) -> 0 | FR11: =IF(AND(debut<=2006,FR$9<=2006),0,IFERROR(SUMPRODUCT(Projet!$G37:'Projet'!FT37*1000,INDIRECT(ADDRESS(ROW('Facteurs dynamiques'!$C76),COLUMN('Facteurs dynamiques'!$CX76)-(FR$9-$E$9),,,"Facteurs dynamiques")):'Facteurs dynamiques'!$CX76)/('Facteurs dynamiques'!$CX$36*1000),0)) -> 0 | FS11: =IF(AND(debut<=2006,FS$9<=2006),0,IFERROR(SUMPRODUCT(Projet!$G37:'Projet'!FU37*1000,INDIRECT(ADDRESS(ROW('Facteurs dynamiques'!$C76),COLUMN('Facteurs dynamiques'!$CX76)-(FS$9-$E$9),,,"Facteurs dynamiques")):'Facteurs dynamiques'!$CX76)/('Facteurs dynamiques'!$CX$36*1000),0)) -> 0 | FT11: =IF(AND(debut<=2006,FT$9<=2006),0,IFERROR(SUMPRODUCT(Projet!$G37:'Projet'!FV37*1000,INDIRECT(ADDRESS(ROW('Facteurs dynamiques'!$C76),COLUMN('Facteurs dynamiques'!$CX76)-(FT$9-$E$9),,,"Facteurs dynamiques")):'Facteurs dynamiques'!$CX76)/('Facteurs dynamiques'!$CX$36*1000),0)) -> 0 | FU11: =IF(AND(debut<=2006,FU$9<=2006),0,IFERROR(SUMPRODUCT(Projet!$G37:'Projet'!FW37*1000,INDIRECT(ADDRESS(ROW('Facteurs dynamiques'!$C76),COLUMN('Facteurs dynamiques'!$CX76)-(FU$9-$E$9),,,"Facteurs dynamiques")):'Facteurs dynamiques'!$CX76)/('Facteurs dynamiques'!$CX$36*1000),0)) -> 0 | FV11: =IF(AND(debut<=2006,FV$9<=2006),0,IFERROR(SUMPRODUCT(Projet!$G37:'Projet'!FX37*1000,INDIRECT(ADDRESS(ROW('Facteurs dynamiques'!$C76),COLUMN('Facteurs dynamiques'!$CX76)-(FV$9-$E$9),,,"Facteurs dynamiques")):'Facteurs dynamiques'!$CX76)/('Facteurs dynamiques'!$CX$36*1000),0)) -> 0 | FW11: =IF(AND(debut<=2006,FW$9<=2006),0,IFERROR(SUMPRODUCT(Projet!$G37:'Projet'!FY37*1000,INDIRECT(ADDRESS(ROW('Facteurs dynamiques'!$C76),COLUMN('Facteurs dynamiques'!$CX76)-(FW$9-$E$9),,,"Facteurs dynamiques")):'Facteurs dynamiques'!$CX76)/('Facteurs dynamiques'!$CX$36*1000),0)) -> 0 | FX11: =IF(AND(debut<=2006,FX$9<=2006),0,IFERROR(SUMPRODUCT(Projet!$G37:'Projet'!FZ37*1000,INDIRECT(ADDRESS(ROW('Facteurs dynamiques'!$C76),COLUMN('Facteurs dynamiques'!$CX76)-(FX$9-$E$9),,,"Facteurs dynamiques")):'Facteurs dynamiques'!$CX76)/('Facteurs dynamiques'!$CX$36*1000),0)) -> 0 | FY11: =IF(AND(debut<=2006,FY$9<=2006),0,IFERROR(SUMPRODUCT(Projet!$G37:'Projet'!GA37*1000,INDIRECT(ADDRESS(ROW('Facteurs dynamiques'!$C76),COLUMN('Facteurs dynamiques'!$CX76)-(FY$9-$E$9),,,"Facteurs dynamiques")):'Facteurs dynamiques'!$CX76)/('Facteurs dynamiques'!$CX$36*1000),0)) -> 0 | FZ11: =IF(AND(debut<=2006,FZ$9<=2006),0,IFERROR(SUMPRODUCT(Projet!$G37:'Projet'!GB37*1000,INDIRECT(ADDRESS(ROW('Facteurs dynamiques'!$C76),COLUMN('Facteurs dynamiques'!$CX76)-(FZ$9-$E$9),,,"Facteurs dynamiques")):'Facteurs dynamiques'!$CX76)/('Facteurs dynamiques'!$CX$36*1000),0)) -> 0 | GA11: =IF(AND(debut<=2006,GA$9<=2006),0,IFERROR(SUMPRODUCT(Projet!$G37:'Projet'!GC37*1000,INDIRECT(ADDRESS(ROW('Facteurs dynamiques'!$C76),COLUMN('Facteurs dynamiques'!$CX76)-(GA$9-$E$9),,,"Facteurs dynamiques")):'Facteurs dynamiques'!$CX76)/('Facteurs dynamiques'!$CX$36*1000),0)) -> 0 | GB11: =IF(AND(debut<=2006,GB$9<=2006),0,IFERROR(SUMPRODUCT(Projet!$G37:'Projet'!GD37*1000,INDIRECT(ADDRESS(ROW('Facteurs dynamiques'!$C76),COLUMN('Facteurs dynamiques'!$CX76)-(GB$9-$E$9),,,"Facteurs dynamiques")):'Facteurs dynamiques'!$CX76)/('Facteurs dynamiques'!$CX$36*1000),0)) -> 0 | GC11: =IF(AND(debut<=2006,GC$9<=2006),0,IFERROR(SUMPRODUCT(Projet!$G37:'Projet'!GE37*1000,INDIRECT(ADDRESS(ROW('Facteurs dynamiques'!$C76),COLUMN('Facteurs dynamiques'!$CX76)-(GC$9-$E$9),,,"Facteurs dynamiques")):'Facteurs dynamiques'!$CX76)/('Facteurs dynamiques'!$CX$36*1000),0)) -> 0 | GD11: =IF(AND(debut<=2006,GD$9<=2006),0,IFERROR(SUMPRODUCT(Projet!$G37:'Projet'!GF37*1000,INDIRECT(ADDRESS(ROW('Facteurs dynamiques'!$C76),COLUMN('Facteurs dynamiques'!$CX76)-(GD$9-$E$9),,,"Facteurs dynamiques")):'Facteurs dynamiques'!$CX76)/('Facteurs dynamiques'!$CX$36*1000),0)) -> 0 | GE11: =IF(AND(debut<=2006,GE$9<=2006),0,IFERROR(SUMPRODUCT(Projet!$G37:'Projet'!GG37*1000,INDIRECT(ADDRESS(ROW('Facteurs dynamiques'!$C76),COLUMN('Facteurs dynamiques'!$CX76)-(GE$9-$E$9),,,"Facteurs dynamiques")):'Facteurs dynamiques'!$CX76)/('Facteurs dynamiques'!$CX$36*1000),0)) -> 0 | GF11: =IF(AND(debut<=2006,GF$9<=2006),0,IFERROR(SUMPRODUCT(Projet!$G37:'Projet'!GH37*1000,INDIRECT(ADDRESS(ROW('Facteurs dynamiques'!$C76),COLUMN('Facteurs dynamiques'!$CX76)-(GF$9-$E$9),,,"Facteurs dynamiques")):'Facteurs dynamiques'!$CX76)/('Facteurs dynamiques'!$CX$36*1000),0)) -> 0 | GG11: =IF(AND(debut<=2006,GG$9<=2006),0,IFERROR(SUMPRODUCT(Projet!$G37:'Projet'!GI37*1000,INDIRECT(ADDRESS(ROW('Facteurs dynamiques'!$C76),COLUMN('Facteurs dynamiques'!$CX76)-(GG$9-$E$9),,,"Facteurs dynamiques")):'Facteurs dynamiques'!$CX76)/('Facteurs dynamiques'!$CX$36*1000),0)) -> 0 | GH11: =IF(AND(debut<=2006,GH$9<=2006),0,IFERROR(SUMPRODUCT(Projet!$G37:'Projet'!GJ37*1000,INDIRECT(ADDRESS(ROW('Facteurs dynamiques'!$C76),COLUMN('Facteurs dynamiques'!$CX76)-(GH$9-$E$9),,,"Facteurs dynamiques")):'Facteurs dynamiques'!$CX76)/('Facteurs dynamiques'!$CX$36*1000),0)) -> 0 | GI11: =IF(AND(debut<=2006,GI$9<=2006),0,IFERROR(SUMPRODUCT(Projet!$G37:'Projet'!GK37*1000,INDIRECT(ADDRESS(ROW('Facteurs dynamiques'!$C76),COLUMN('Facteurs dynamiques'!$CX76)-(GI$9-$E$9),,,"Facteurs dynamiques")):'Facteurs dynamiques'!$CX76)/('Facteurs dynamiques'!$CX$36*1000),0)) -> 0 | GJ11: =IF(AND(debut<=2006,GJ$9<=2006),0,IFERROR(SUMPRODUCT(Projet!$G37:'Projet'!GL37*1000,INDIRECT(ADDRESS(ROW('Facteurs dynamiques'!$C76),COLUMN('Facteurs dynamiques'!$CX76)-(GJ$9-$E$9),,,"Facteurs dynamiques")):'Facteurs dynamiques'!$CX76)/('Facteurs dynamiques'!$CX$36*1000),0)) -> 0 | GK11: =IF(AND(debut<=2006,GK$9<=2006),0,IFERROR(SUMPRODUCT(Projet!$G37:'Projet'!GM37*1000,INDIRECT(ADDRESS(ROW('Facteurs dynamiques'!$C76),COLUMN('Facteurs dynamiques'!$CX76)-(GK$9-$E$9),,,"Facteurs dynamiques")):'Facteurs dynamiques'!$CX76)/('Facteurs dynamiques'!$CX$36*1000),0)) -> 0 | GL11: =IF(AND(debut<=2006,GL$9<=2006),0,IFERROR(SUMPRODUCT(Projet!$G37:'Projet'!GN37*1000,INDIRECT(ADDRESS(ROW('Facteurs dynamiques'!$C76),COLUMN('Facteurs dynamiques'!$CX76)-(GL$9-$E$9),,,"Facteurs dynamiques")):'Facteurs dynamiques'!$CX76)/('Facteurs dynamiques'!$CX$36*1000),0)) -> 0 | GM11: =IF(AND(debut<=2006,GM$9<=2006),0,IFERROR(SUMPRODUCT(Projet!$G37:'Projet'!GO37*1000,INDIRECT(ADDRESS(ROW('Facteurs dynamiques'!$C76),COLUMN('Facteurs dynamiques'!$CX76)-(GM$9-$E$9),,,"Facteurs dynamiques")):'Facteurs dynamiques'!$CX76)/('Facteurs dynamiques'!$CX$36*1000),0)) -> 0 | GN11: =IF(AND(debut<=2006,GN$9<=2006),0,IFERROR(SUMPRODUCT(Projet!$G37:'Projet'!GP37*1000,INDIRECT(ADDRESS(ROW('Facteurs dynamiques'!$C76),COLUMN('Facteurs dynamiques'!$CX76)-(GN$9-$E$9),,,"Facteurs dynamiques")):'Facteurs dynamiques'!$CX76)/('Facteurs dynamiques'!$CX$36*1000),0)) -> 0 | GO11: =IF(AND(debut<=2006,GO$9<=2006),0,IFERROR(SUMPRODUCT(Projet!$G37:'Projet'!GQ37*1000,INDIRECT(ADDRESS(ROW('Facteurs dynamiques'!$C76),COLUMN('Facteurs dynamiques'!$CX76)-(GO$9-$E$9),,,"Facteurs dynamiques")):'Facteurs dynamiques'!$CX76)/('Facteurs dynamiques'!$CX$36*1000),0)) -> 0 | GP11: =IF(AND(debut<=2006,GP$9<=2006),0,IFERROR(SUMPRODUCT(Projet!$G37:'Projet'!GR37*1000,INDIRECT(ADDRESS(ROW('Facteurs dynamiques'!$C76),COLUMN('Facteurs dynamiques'!$CX76)-(GP$9-$E$9),,,"Facteurs dynamiques")):'Facteurs dynamiques'!$CX76)/('Facteurs dynamiques'!$CX$36*1000),0)) -> 0 | GQ11: =IF(AND(debut<=2006,GQ$9<=2006),0,IFERROR(SUMPRODUCT(Projet!$G37:'Projet'!GS37*1000,INDIRECT(ADDRESS(ROW('Facteurs dynamiques'!$C76),COLUMN('Facteurs dynamiques'!$CX76)-(GQ$9-$E$9),,,"Facteurs dynamiques")):'Facteurs dynamiques'!$CX76)/('Facteurs dynamiques'!$CX$36*1000),0)) -> 0 | GR11: =IF(AND(debut<=2006,GR$9<=2006),0,IFERROR(SUMPRODUCT(Projet!$G37:'Projet'!GT37*1000,INDIRECT(ADDRESS(ROW('Facteurs dynamiques'!$C76),COLUMN('Facteurs dynamiques'!$CX76)-(GR$9-$E$9),,,"Facteurs dynamiques")):'Facteurs dynamiques'!$CX76)/('Facteurs dynamiques'!$CX$36*1000),0)) -> 0 | GS11: =IF(AND(debut<=2006,GS$9<=2006),0,IFERROR(SUMPRODUCT(Projet!$G37:'Projet'!GU37*1000,INDIRECT(ADDRESS(ROW('Facteurs dynamiques'!$C76),COLUMN('Facteurs dynamiques'!$CX76)-(GS$9-$E$9),,,"Facteurs dynamiques")):'Facteurs dynamiques'!$CX76)/('Facteurs dynamiques'!$CX$36*1000),0)) -> 0 | GT11: =IF(AND(debut<=2006,GT$9<=2006),0,IFERROR(SUMPRODUCT(Projet!$G37:'Projet'!GV37*1000,INDIRECT(ADDRESS(ROW('Facteurs dynamiques'!$C76),COLUMN('Facteurs dynamiques'!$CX76)-(GT$9-$E$9),,,"Facteurs dynamiques")):'Facteurs dynamiques'!$CX76)/('Facteurs dynamiques'!$CX$36*1000),0)) -> 0 | GU11: =IF(AND(debut<=2006,GU$9<=2006),0,IFERROR(SUMPRODUCT(Projet!$G37:'Projet'!GW37*1000,INDIRECT(ADDRESS(ROW('Facteurs dynamiques'!$C76),COLUMN('Facteurs dynamiques'!$CX76)-(GU$9-$E$9),,,"Facteurs dynamiques")):'Facteurs dynamiques'!$CX76)/('Facteurs dynamiques'!$CX$36*1000),0)) -> 0 | GV11: =IF(AND(debut<=2006,GV$9<=2006),0,IFERROR(SUMPRODUCT(Projet!$G37:'Projet'!GX37*1000,INDIRECT(ADDRESS(ROW('Facteurs dynamiques'!$C76),COLUMN('Facteurs dynamiques'!$CX76)-(GV$9-$E$9),,,"Facteurs dynamiques")):'Facteurs dynamiques'!$CX76)/('Facteurs dynamiques'!$CX$36*1000),0)) -> 0
A12: Forçage radiatif instantané (annuel) dû aux flux de CH4 entrés par le promoteur | E12: =IF(AND(debut<=2006,E$9<=2006),0,IFERROR(SUMPRODUCT(Projet!$G38:'Projet'!G38*1000,INDIRECT(ADDRESS(ROW('Facteurs dynamiques'!$C77),COLUMN('Facteurs dynamiques'!$CX77)-(E$9-$E$9),,,"Facteurs dynamiques")):'Facteurs dynamiques'!$CX77)/('Facteurs dynamiques'!$CX$36*1000),0)) -> 0 | F12: =IF(AND(debut<=2006,F$9<=2006),0,IFERROR(SUMPRODUCT(Projet!$G38:'Projet'!H38*1000,INDIRECT(ADDRESS(ROW('Facteurs dynamiques'!$C77),COLUMN('Facteurs dynamiques'!$CX77)-(F$9-$E$9),,,"Facteurs dynamiques")):'Facteurs dynamiques'!$CX77)/('Facteurs dynamiques'!$CX$36*1000),0)) -> 0 | G12: =IF(AND(debut<=2006,G$9<=2006),0,IFERROR(SUMPRODUCT(Projet!$G38:'Projet'!I38*1000,INDIRECT(ADDRESS(ROW('Facteurs dynamiques'!$C77),COLUMN('Facteurs dynamiques'!$CX77)-(G$9-$E$9),,,"Facteurs dynamiques")):'Facteurs dynamiques'!$CX77)/('Facteurs dynamiques'!$CX$36*1000),0)) -> 0 | H12: =IF(AND(debut<=2006,H$9<=2006),0,IFERROR(SUMPRODUCT(Projet!$G38:'Projet'!J38*1000,INDIRECT(ADDRESS(ROW('Facteurs dynamiques'!$C77),COLUMN('Facteurs dynamiques'!$CX77)-(H$9-$E$9),,,"Facteurs dynamiques")):'Facteurs dynamiques'!$CX77)/('Facteurs dynamiques'!$CX$36*1000),0)) -> 0 | I12: =IF(AND(debut<=2006,I$9<=2006),0,IFERROR(SUMPRODUCT(Projet!$G38:'Projet'!K38*1000,INDIRECT(ADDRESS(ROW('Facteurs dynamiques'!$C77),COLUMN('Facteurs dynamiques'!$CX77)-(I$9-$E$9),,,"Facteurs dynamiques")):'Facteurs dynamiques'!$CX77)/('Facteurs dynamiques'!$CX$36*1000),0)) -> 0 | J12: =IF(AND(debut<=2006,J$9<=2006),0,IFERROR(SUMPRODUCT(Projet!$G38:'Projet'!L38*1000,INDIRECT(ADDRESS(ROW('Facteurs dynamiques'!$C77),COLUMN('Facteurs dynamiques'!$CX77)-(J$9-$E$9),,,"Facteurs dynamiques")):'Facteurs dynamiques'!$CX77)/('Facteurs dynamiques'!$CX$36*1000),0)) -> 0 | K12: =IF(AND(debut<=2006,K$9<=2006),0,IFERROR(SUMPRODUCT(Projet!$G38:'Projet'!M38*1000,INDIRECT(ADDRESS(ROW('Facteurs dynamiques'!$C77),COLUMN('Facteurs dynamiques'!$CX77)-(K$9-$E$9),,,"Facteurs dynamiques")):'Facteurs dynamiques'!$CX77)/('Facteurs dynamiques'!$CX$36*1000),0)) -> 0 | L12: =IF(AND(debut<=2006,L$9<=2006),0,IFERROR(SUMPRODUCT(Projet!$G38:'Projet'!N38*1000,INDIRECT(ADDRESS(ROW('Facteurs dynamiques'!$C77),COLUMN('Facteurs dynamiques'!$CX77)-(L$9-$E$9),,,"Facteurs dynamiques")):'Facteurs dynamiques'!$CX77)/('Facteurs dynamiques'!$CX$36*1000),0)) -> 0 | M12: =IF(AND(debut<=2006,M$9<=2006),0,IFERROR(SUMPRODUCT(Projet!$G38:'Projet'!O38*1000,INDIRECT(ADDRESS(ROW('Facteurs dynamiques'!$C77),COLUMN('Facteurs dynamiques'!$CX77)-(M$9-$E$9),,,"Facteurs dynamiques")):'Facteurs dynamiques'!$CX77)/('Facteurs dynamiques'!$CX$36*1000),0)) -> 0 | N12: =IF(AND(debut<=2006,N$9<=2006),0,IFERROR(SUMPRODUCT(Projet!$G38:'Projet'!P38*1000,INDIRECT(ADDRESS(ROW('Facteurs dynamiques'!$C77),COLUMN('Facteurs dynamiques'!$CX77)-(N$9-$E$9),,,"Facteurs dynamiques")):'Facteurs dynamiques'!$CX77)/('Facteurs dynamiques'!$CX$36*1000),0)) -> 0 | O12: =IF(AND(debut<=2006,O$9<=2006),0,IFERROR(SUMPRODUCT(Projet!$G38:'Projet'!Q38*1000,INDIRECT(ADDRESS(ROW('Facteurs dynamiques'!$C77),COLUMN('Facteurs dynamiques'!$CX77)-(O$9-$E$9),,,"Facteurs dynamiques")):'Facteurs dynamiques'!$CX77)/('Facteurs dynamiques'!$CX$36*1000),0)) -> 0 | P12: =IF(AND(debut<=2006,P$9<=2006),0,IFERROR(SUMPRODUCT(Projet!$G38:'Projet'!R38*1000,INDIRECT(ADDRESS(ROW('Facteurs dynamiques'!$C77),COLUMN('Facteurs dynamiques'!$CX77)-(P$9-$E$9),,,"Facteurs dynamiques")):'Facteurs dynamiques'!$CX77)/('Facteurs dynamiques'!$CX$36*1000),0)) -> 0 | Q12: =IF(AND(debut<=2006,Q$9<=2006),0,IFERROR(SUMPRODUCT(Projet!$G38:'Projet'!S38*1000,INDIRECT(ADDRESS(ROW('Facteurs dynamiques'!$C77),COLUMN('Facteurs dynamiques'!$CX77)-(Q$9-$E$9),,,"Facteurs dynamiques")):'Facteurs dynamiques'!$CX77)/('Facteurs dynamiques'!$CX$36*1000),0)) -> 0 | R12: =IF(AND(debut<=2006,R$9<=2006),0,IFERROR(SUMPRODUCT(Projet!$G38:'Projet'!T38*1000,INDIRECT(ADDRESS(ROW('Facteurs dynamiques'!$C77),COLUMN('Facteurs dynamiques'!$CX77)-(R$9-$E$9),,,"Facteurs dynamiques")):'Facteurs dynamiques'!$CX77)/('Facteurs dynamiques'!$CX$36*1000),0)) -> 0 | S12: =IF(AND(debut<=2006,S$9<=2006),0,IFERROR(SUMPRODUCT(Projet!$G38:'Projet'!U38*1000,INDIRECT(ADDRESS(ROW('Facteurs dynamiques'!$C77),COLUMN('Facteurs dynamiques'!$CX77)-(S$9-$E$9),,,"Facteurs dynamiques")):'Facteurs dynamiques'!$CX77)/('Facteurs dynamiques'!$CX$36*1000),0)) -> 0 | T12: =IF(AND(debut<=2006,T$9<=2006),0,IFERROR(SUMPRODUCT(Projet!$G38:'Projet'!V38*1000,INDIRECT(ADDRESS(ROW('Facteurs dynamiques'!$C77),COLUMN('Facteurs dynamiques'!$CX77)-(T$9-$E$9),,,"Facteurs dynamiques")):'Facteurs dynamiques'!$CX77)/('Facteurs dynamiques'!$CX$36*1000),0)) -> 0 | U12: =IF(AND(debut<=2006,U$9<=2006),0,IFERROR(SUMPRODUCT(Projet!$G38:'Projet'!W38*1000,INDIRECT(ADDRESS(ROW('Facteurs dynamiques'!$C77),COLUMN('Facteurs dynamiques'!$CX77)-(U$9-$E$9),,,"Facteurs dynamiques")):'Facteurs dynamiques'!$CX77)/('Facteurs dynamiques'!$CX$36*1000),0)) -> 0 | V12: =IF(AND(debut<=2006,V$9<=2006),0,IFERROR(SUMPRODUCT(Projet!$G38:'Projet'!X38*1000,INDIRECT(ADDRESS(ROW('Facteurs dynamiques'!$C77),COLUMN('Facteurs dynamiques'!$CX77)-(V$9-$E$9),,,"Facteurs dynamiques")):'Facteurs dynamiques'!$CX77)/('Facteurs dynamiques'!$CX$36*1000),0)) -> 0 | W12: =IF(AND(debut<=2006,W$9<=2006),0,IFERROR(SUMPRODUCT(Projet!$G38:'Projet'!Y38*1000,INDIRECT(ADDRESS(ROW('Facteurs dynamiques'!$C77),COLUMN('Facteurs dynamiques'!$CX77)-(W$9-$E$9),,,"Facteurs dynamiques")):'Facteurs dynamiques'!$CX77)/('Facteurs dynamiques'!$CX$36*1000),0)) -> 0 | X12: =IF(AND(debut<=2006,X$9<=2006),0,IFERROR(SUMPRODUCT(Projet!$G38:'Projet'!Z38*1000,INDIRECT(ADDRESS(ROW('Facteurs dynamiques'!$C77),COLUMN('Facteurs dynamiques'!$CX77)-(X$9-$E$9),,,"Facteurs dynamiques")):'Facteurs dynamiques'!$CX77)/('Facteurs dynamiques'!$CX$36*1000),0)) -> 0 | Y12: =IF(AND(debut<=2006,Y$9<=2006),0,IFERROR(SUMPRODUCT(Projet!$G38:'Projet'!AA38*1000,INDIRECT(ADDRESS(ROW('Facteurs dynamiques'!$C77),COLUMN('Facteurs dynamiques'!$CX77)-(Y$9-$E$9),,,"Facteurs dynamiques")):'Facteurs dynamiques'!$CX77)/('Facteurs dynamiques'!$CX$36*1000),0)) -> 0 | Z12: =IF(AND(debut<=2006,Z$9<=2006),0,IFERROR(SUMPRODUCT(Projet!$G38:'Projet'!AB38*1000,INDIRECT(ADDRESS(ROW('Facteurs dynamiques'!$C77),COLUMN('Facteurs dynamiques'!$CX77)-(Z$9-$E$9),,,"Facteurs dynamiques")):'Facteurs dynamiques'!$CX77)/('Facteurs dynamiques'!$CX$36*1000),0)) -> 0 | AA12: =IF(AND(debut<=2006,AA$9<=2006),0,IFERROR(SUMPRODUCT(Projet!$G38:'Projet'!AC38*1000,INDIRECT(ADDRESS(ROW('Facteurs dynamiques'!$C77),COLUMN('Facteurs dynamiques'!$CX77)-(AA$9-$E$9),,,"Facteurs dynamiques")):'Facteurs dynamiques'!$CX77)/('Facteurs dynamiques'!$CX$36*1000),0)) -> 0 | AB12: =IF(AND(debut<=2006,AB$9<=2006),0,IFERROR(SUMPRODUCT(Projet!$G38:'Projet'!AD38*1000,INDIRECT(ADDRESS(ROW('Facteurs dynamiques'!$C77),COLUMN('Facteurs dynamiques'!$CX77)-(AB$9-$E$9),,,"Facteurs dynamiques")):'Facteurs dynamiques'!$CX77)/('Facteurs dynamiques'!$CX$36*1000),0)) -> 0 | AC12: =IF(AND(debut<=2006,AC$9<=2006),0,IFERROR(SUMPRODUCT(Projet!$G38:'Projet'!AE38*1000,INDIRECT(ADDRESS(ROW('Facteurs dynamiques'!$C77),COLUMN('Facteurs dynamiques'!$CX77)-(AC$9-$E$9),,,"Facteurs dynamiques")):'Facteurs dynamiques'!$CX77)/('Facteurs dynamiques'!$CX$36*1000),0)) -> 0 | AD12: =IF(AND(debut<=2006,AD$9<=2006),0,IFERROR(SUMPRODUCT(Projet!$G38:'Projet'!AF38*1000,INDIRECT(ADDRESS(ROW('Facteurs dynamiques'!$C77),COLUMN('Facteurs dynamiques'!$CX77)-(AD$9-$E$9),,,"Facteurs dynamiques")):'Facteurs dynamiques'!$CX77)/('Facteurs dynamiques'!$CX$36*1000),0)) -> 0 | AE12: =IF(AND(debut<=2006,AE$9<=2006),0,IFERROR(SUMPRODUCT(Projet!$G38:'Projet'!AG38*1000,INDIRECT(ADDRESS(ROW('Facteurs dynamiques'!$C77),COLUMN('Facteurs dynamiques'!$CX77)-(AE$9-$E$9),,,"Facteurs dynamiques")):'Facteurs dynamiques'!$CX77)/('Facteurs dynamiques'!$CX$36*1000),0)) -> 0 | AF12: =IF(AND(debut<=2006,AF$9<=2006),0,IFERROR(SUMPRODUCT(Projet!$G38:'Projet'!AH38*1000,INDIRECT(ADDRESS(ROW('Facteurs dynamiques'!$C77),COLUMN('Facteurs dynamiques'!$CX77)-(AF$9-$E$9),,,"Facteurs dynamiques")):'Facteurs dynamiques'!$CX77)/('Facteurs dynamiques'!$CX$36*1000),0)) -> 0 | AG12: =IF(AND(debut<=2006,AG$9<=2006),0,IFERROR(SUMPRODUCT(Projet!$G38:'Projet'!AI38*1000,INDIRECT(ADDRESS(ROW('Facteurs dynamiques'!$C77),COLUMN('Facteurs dynamiques'!$CX77)-(AG$9-$E$9),,,"Facteurs dynamiques")):'Facteurs dynamiques'!$CX77)/('Facteurs dynamiques'!$CX$36*1000),0)) -> 0 | AH12: =IF(AND(debut<=2006,AH$9<=2006),0,IFERROR(SUMPRODUCT(Projet!$G38:'Projet'!AJ38*1000,INDIRECT(ADDRESS(ROW('Facteurs dynamiques'!$C77),COLUMN('Facteurs dynamiques'!$CX77)-(AH$9-$E$9),,,"Facteurs dynamiques")):'Facteurs dynamiques'!$CX77)/('Facteurs dynamiques'!$CX$36*1000),0)) -> 0 | AI12: =IF(AND(debut<=2006,AI$9<=2006),0,IFERROR(SUMPRODUCT(Projet!$G38:'Projet'!AK38*1000,INDIRECT(ADDRESS(ROW('Facteurs dynamiques'!$C77),COLUMN('Facteurs dynamiques'!$CX77)-(AI$9-$E$9),,,"Facteurs dynamiques")):'Facteurs dynamiques'!$CX77)/('Facteurs dynamiques'!$CX$36*1000),0)) -> 0 | AJ12: =IF(AND(debut<=2006,AJ$9<=2006),0,IFERROR(SUMPRODUCT(Projet!$G38:'Projet'!AL38*1000,INDIRECT(ADDRESS(ROW('Facteurs dynamiques'!$C77),COLUMN('Facteurs dynamiques'!$CX77)-(AJ$9-$E$9),,,"Facteurs dynamiques")):'Facteurs dynamiques'!$CX77)/('Facteurs dynamiques'!$CX$36*1000),0)) -> 0 | AK12: =IF(AND(debut<=2006,AK$9<=2006),0,IFERROR(SUMPRODUCT(Projet!$G38:'Projet'!AM38*1000,INDIRECT(ADDRESS(ROW('Facteurs dynamiques'!$C77),COLUMN('Facteurs dynamiques'!$CX77)-(AK$9-$E$9),,,"Facteurs dynamiques")):'Facteurs dynamiques'!$CX77)/('Facteurs dynamiques'!$CX$36*1000),0)) -> 0 | AL12: =IF(AND(debut<=2006,AL$9<=2006),0,IFERROR(SUMPRODUCT(Projet!$G38:'Projet'!AN38*1000,INDIRECT(ADDRESS(ROW('Facteurs dynamiques'!$C77),COLUMN('Facteurs dynamiques'!$CX77)-(AL$9-$E$9),,,"Facteurs dynamiques")):'Facteurs dynamiques'!$CX77)/('Facteurs dynamiques'!$CX$36*1000),0)) -> 0 | AM12: =IF(AND(debut<=2006,AM$9<=2006),0,IFERROR(SUMPRODUCT(Projet!$G38:'Projet'!AO38*1000,INDIRECT(ADDRESS(ROW('Facteurs dynamiques'!$C77),COLUMN('Facteurs dynamiques'!$CX77)-(AM$9-$E$9),,,"Facteurs dynamiques")):'Facteurs dynamiques'!$CX77)/('Facteurs dynamiques'!$CX$36*1000),0)) -> 0 | AN12: =IF(AND(debut<=2006,AN$9<=2006),0,IFERROR(SUMPRODUCT(Projet!$G38:'Projet'!AP38*1000,INDIRECT(ADDRESS(ROW('Facteurs dynamiques'!$C77),COLUMN('Facteurs dynamiques'!$CX77)-(AN$9-$E$9),,,"Facteurs dynamiques")):'Facteurs dynamiques'!$CX77)/('Facteurs dynamiques'!$CX$36*1000),0)) -> 0 | AO12: =IF(AND(debut<=2006,AO$9<=2006),0,IFERROR(SUMPRODUCT(Projet!$G38:'Projet'!AQ38*1000,INDIRECT(ADDRESS(ROW('Facteurs dynamiques'!$C77),COLUMN('Facteurs dynamiques'!$CX77)-(AO$9-$E$9),,,"Facteurs dynamiques")):'Facteurs dynamiques'!$CX77)/('Facteurs dynamiques'!$CX$36*1000),0)) -> 0 | AP12: =IF(AND(debut<=2006,AP$9<=2006),0,IFERROR(SUMPRODUCT(Projet!$G38:'Projet'!AR38*1000,INDIRECT(ADDRESS(ROW('Facteurs dynamiques'!$C77),COLUMN('Facteurs dynamiques'!$CX77)-(AP$9-$E$9),,,"Facteurs dynamiques")):'Facteurs dynamiques'!$CX77)/('Facteurs dynamiques'!$CX$36*1000),0)) -> 0 | AQ12: =IF(AND(debut<=2006,AQ$9<=2006),0,IFERROR(SUMPRODUCT(Projet!$G38:'Projet'!AS38*1000,INDIRECT(ADDRESS(ROW('Facteurs dynamiques'!$C77),COLUMN('Facteurs dynamiques'!$CX77)-(AQ$9-$E$9),,,"Facteurs dynamiques")):'Facteurs dynamiques'!$CX77)/('Facteurs dynamiques'!$CX$36*1000),0)) -> 0 | AR12: =IF(AND(debut<=2006,AR$9<=2006),0,IFERROR(SUMPRODUCT(Projet!$G38:'Projet'!AT38*1000,INDIRECT(ADDRESS(ROW('Facteurs dynamiques'!$C77),COLUMN('Facteurs dynamiques'!$CX77)-(AR$9-$E$9),,,"Facteurs dynamiques")):'Facteurs dynamiques'!$CX77)/('Facteurs dynamiques'!$CX$36*1000),0)) -> 0 | AS12: =IF(AND(debut<=2006,AS$9<=2006),0,IFERROR(SUMPRODUCT(Projet!$G38:'Projet'!AU38*1000,INDIRECT(ADDRESS(ROW('Facteurs dynamiques'!$C77),COLUMN('Facteurs dynamiques'!$CX77)-(AS$9-$E$9),,,"Facteurs dynamiques")):'Facteurs dynamiques'!$CX77)/('Facteurs dynamiques'!$CX$36*1000),0)) -> 0 | AT12: =IF(AND(debut<=2006,AT$9<=2006),0,IFERROR(SUMPRODUCT(Projet!$G38:'Projet'!AV38*1000,INDIRECT(ADDRESS(ROW('Facteurs dynamiques'!$C77),COLUMN('Facteurs dynamiques'!$CX77)-(AT$9-$E$9),,,"Facteurs dynamiques")):'Facteurs dynamiques'!$CX77)/('Facteurs dynamiques'!$CX$36*1000),0)) -> 0 | AU12: =IF(AND(debut<=2006,AU$9<=2006),0,IFERROR(SUMPRODUCT(Projet!$G38:'Projet'!AW38*1000,INDIRECT(ADDRESS(ROW('Facteurs dynamiques'!$C77),COLUMN('Facteurs dynamiques'!$CX77)-(AU$9-$E$9),,,"Facteurs dynamiques")):'Facteurs dynamiques'!$CX77)/('Facteurs dynamiques'!$CX$36*1000),0)) -> 0 | AV12: =IF(AND(debut<=2006,AV$9<=2006),0,IFERROR(SUMPRODUCT(Projet!$G38:'Projet'!AX38*1000,INDIRECT(ADDRESS(ROW('Facteurs dynamiques'!$C77),COLUMN('Facteurs dynamiques'!$CX77)-(AV$9-$E$9),,,"Facteurs dynamiques")):'Facteurs dynamiques'!$CX77)/('Facteurs dynamiques'!$CX$36*1000),0)) -> 0 | AW12: =IF(AND(debut<=2006,AW$9<=2006),0,IFERROR(SUMPRODUCT(Projet!$G38:'Projet'!AY38*1000,INDIRECT(ADDRESS(ROW('Facteurs dynamiques'!$C77),COLUMN('Facteurs dynamiques'!$CX77)-(AW$9-$E$9),,,"Facteurs dynamiques")):'Facteurs dynamiques'!$CX77)/('Facteurs dynamiques'!$CX$36*1000),0)) -> 0 | AX12: =IF(AND(debut<=2006,AX$9<=2006),0,IFERROR(SUMPRODUCT(Projet!$G38:'Projet'!AZ38*1000,INDIRECT(ADDRESS(ROW('Facteurs dynamiques'!$C77),COLUMN('Facteurs dynamiques'!$CX77)-(AX$9-$E$9),,,"Facteurs dynamiques")):'Facteurs dynamiques'!$CX77)/('Facteurs dynamiques'!$CX$36*1000),0)) -> 0 | AY12: =IF(AND(debut<=2006,AY$9<=2006),0,IFERROR(SUMPRODUCT(Projet!$G38:'Projet'!BA38*1000,INDIRECT(ADDRESS(ROW('Facteurs dynamiques'!$C77),COLUMN('Facteurs dynamiques'!$CX77)-(AY$9-$E$9),,,"Facteurs dynamiques")):'Facteurs dynamiques'!$CX77)/('Facteurs dynamiques'!$CX$36*1000),0)) -> 0 | AZ12: =IF(AND(debut<=2006,AZ$9<=2006),0,IFERROR(SUMPRODUCT(Projet!$G38:'Projet'!BB38*1000,INDIRECT(ADDRESS(ROW('Facteurs dynamiques'!$C77),COLUMN('Facteurs dynamiques'!$CX77)-(AZ$9-$E$9),,,"Facteurs dynamiques")):'Facteurs dynamiques'!$CX77)/('Facteurs dynamiques'!$CX$36*1000),0)) -> 0 | BA12: =IF(AND(debut<=2006,BA$9<=2006),0,IFERROR(SUMPRODUCT(Projet!$G38:'Projet'!BC38*1000,INDIRECT(ADDRESS(ROW('Facteurs dynamiques'!$C77),COLUMN('Facteurs dynamiques'!$CX77)-(BA$9-$E$9),,,"Facteurs dynamiques")):'Facteurs dynamiques'!$CX77)/('Facteurs dynamiques'!$CX$36*1000),0)) -> 0 | BB12: =IF(AND(debut<=2006,BB$9<=2006),0,IFERROR(SUMPRODUCT(Projet!$G38:'Projet'!BD38*1000,INDIRECT(ADDRESS(ROW('Facteurs dynamiques'!$C77),COLUMN('Facteurs dynamiques'!$CX77)-(BB$9-$E$9),,,"Facteurs dynamiques")):'Facteurs dynamiques'!$CX77)/('Facteurs dynamiques'!$CX$36*1000),0)) -> 0 | BC12: =IF(AND(debut<=2006,BC$9<=2006),0,IFERROR(SUMPRODUCT(Projet!$G38:'Projet'!BE38*1000,INDIRECT(ADDRESS(ROW('Facteurs dynamiques'!$C77),COLUMN('Facteurs dynamiques'!$CX77)-(BC$9-$E$9),,,"Facteurs dynamiques")):'Facteurs dynamiques'!$CX77)/('Facteurs dynamiques'!$CX$36*1000),0)) -> 0 | BD12: =IF(AND(debut<=2006,BD$9<=2006),0,IFERROR(SUMPRODUCT(Projet!$G38:'Projet'!BF38*1000,INDIRECT(ADDRESS(ROW('Facteurs dynamiques'!$C77),COLUMN('Facteurs dynamiques'!$CX77)-(BD$9-$E$9),,,"Facteurs dynamiques")):'Facteurs dynamiques'!$CX77)/('Facteurs dynamiques'!$CX$36*1000),0)) -> 0 | BE12: =IF(AND(debut<=2006,BE$9<=2006),0,IFERROR(SUMPRODUCT(Projet!$G38:'Projet'!BG38*1000,INDIRECT(ADDRESS(ROW('Facteurs dynamiques'!$C77),COLUMN('Facteurs dynamiques'!$CX77)-(BE$9-$E$9),,,"Facteurs dynamiques")):'Facteurs dynamiques'!$CX77)/('Facteurs dynamiques'!$CX$36*1000),0)) -> 0 | BF12: =IF(AND(debut<=2006,BF$9<=2006),0,IFERROR(SUMPRODUCT(Projet!$G38:'Projet'!BH38*1000,INDIRECT(ADDRESS(ROW('Facteurs dynamiques'!$C77),COLUMN('Facteurs dynamiques'!$CX77)-(BF$9-$E$9),,,"Facteurs dynamiques")):'Facteurs dynamiques'!$CX77)/('Facteurs dynamiques'!$CX$36*1000),0)) -> 0 | BG12: =IF(AND(debut<=2006,BG$9<=2006),0,IFERROR(SUMPRODUCT(Projet!$G38:'Projet'!BI38*1000,INDIRECT(ADDRESS(ROW('Facteurs dynamiques'!$C77),COLUMN('Facteurs dynamiques'!$CX77)-(BG$9-$E$9),,,"Facteurs dynamiques")):'Facteurs dynamiques'!$CX77)/('Facteurs dynamiques'!$CX$36*1000),0)) -> 0 | BH12: =IF(AND(debut<=2006,BH$9<=2006),0,IFERROR(SUMPRODUCT(Projet!$G38:'Projet'!BJ38*1000,INDIRECT(ADDRESS(ROW('Facteurs dynamiques'!$C77),COLUMN('Facteurs dynamiques'!$CX77)-(BH$9-$E$9),,,"Facteurs dynamiques")):'Facteurs dynamiques'!$CX77)/('Facteurs dynamiques'!$CX$36*1000),0)) -> 0 | BI12: =IF(AND(debut<=2006,BI$9<=2006),0,IFERROR(SUMPRODUCT(Projet!$G38:'Projet'!BK38*1000,INDIRECT(ADDRESS(ROW('Facteurs dynamiques'!$C77),COLUMN('Facteurs dynamiques'!$CX77)-(BI$9-$E$9),,,"Facteurs dynamiques")):'Facteurs dynamiques'!$CX77)/('Facteurs dynamiques'!$CX$36*1000),0)) -> 0 | BJ12: =IF(AND(debut<=2006,BJ$9<=2006),0,IFERROR(SUMPRODUCT(Projet!$G38:'Projet'!BL38*1000,INDIRECT(ADDRESS(ROW('Facteurs dynamiques'!$C77),COLUMN('Facteurs dynamiques'!$CX77)-(BJ$9-$E$9),,,"Facteurs dynamiques")):'Facteurs dynamiques'!$CX77)/('Facteurs dynamiques'!$CX$36*1000),0)) -> 0 | BK12: =IF(AND(debut<=2006,BK$9<=2006),0,IFERROR(SUMPRODUCT(Projet!$G38:'Projet'!BM38*1000,INDIRECT(ADDRESS(ROW('Facteurs dynamiques'!$C77),COLUMN('Facteurs dynamiques'!$CX77)-(BK$9-$E$9),,,"Facteurs dynamiques")):'Facteurs dynamiques'!$CX77)/('Facteurs dynamiques'!$CX$36*1000),0)) -> 0 | BL12: =IF(AND(debut<=2006,BL$9<=2006),0,IFERROR(SUMPRODUCT(Projet!$G38:'Projet'!BN38*1000,INDIRECT(ADDRESS(ROW('Facteurs dynamiques'!$C77),COLUMN('Facteurs dynamiques'!$CX77)-(BL$9-$E$9),,,"Facteurs dynamiques")):'Facteurs dynamiques'!$CX77)/('Facteurs dynamiques'!$CX$36*1000),0)) -> 0 | BM12: =IF(AND(debut<=2006,BM$9<=2006),0,IFERROR(SUMPRODUCT(Projet!$G38:'Projet'!BO38*1000,INDIRECT(ADDRESS(ROW('Facteurs dynamiques'!$C77),COLUMN('Facteurs dynamiques'!$CX77)-(BM$9-$E$9),,,"Facteurs dynamiques")):'Facteurs dynamiques'!$CX77)/('Facteurs dynamiques'!$CX$36*1000),0)) -> 0 | BN12: =IF(AND(debut<=2006,BN$9<=2006),0,IFERROR(SUMPRODUCT(Projet!$G38:'Projet'!BP38*1000,INDIRECT(ADDRESS(ROW('Facteurs dynamiques'!$C77),COLUMN('Facteurs dynamiques'!$CX77)-(BN$9-$E$9),,,"Facteurs dynamiques")):'Facteurs dynamiques'!$CX77)/('Facteurs dynamiques'!$CX$36*1000),0)) -> 0 | BO12: =IF(AND(debut<=2006,BO$9<=2006),0,IFERROR(SUMPRODUCT(Projet!$G38:'Projet'!BQ38*1000,INDIRECT(ADDRESS(ROW('Facteurs dynamiques'!$C77),COLUMN('Facteurs dynamiques'!$CX77)-(BO$9-$E$9),,,"Facteurs dynamiques")):'Facteurs dynamiques'!$CX77)/('Facteurs dynamiques'!$CX$36*1000),0)) -> 0 | BP12: =IF(AND(debut<=2006,BP$9<=2006),0,IFERROR(SUMPRODUCT(Projet!$G38:'Projet'!BR38*1000,INDIRECT(ADDRESS(ROW('Facteurs dynamiques'!$C77),COLUMN('Facteurs dynamiques'!$CX77)-(BP$9-$E$9),,,"Facteurs dynamiques")):'Facteurs dynamiques'!$CX77)/('Facteurs dynamiques'!$CX$36*1000),0)) -> 0 | BQ12: =IF(AND(debut<=2006,BQ$9<=2006),0,IFERROR(SUMPRODUCT(Projet!$G38:'Projet'!BS38*1000,INDIRECT(ADDRESS(ROW('Facteurs dynamiques'!$C77),COLUMN('Facteurs dynamiques'!$CX77)-(BQ$9-$E$9),,,"Facteurs dynamiques")):'Facteurs dynamiques'!$CX77)/('Facteurs dynamiques'!$CX$36*1000),0)) -> 0 | BR12: =IF(AND(debut<=2006,BR$9<=2006),0,IFERROR(SUMPRODUCT(Projet!$G38:'Projet'!BT38*1000,INDIRECT(ADDRESS(ROW('Facteurs dynamiques'!$C77),COLUMN('Facteurs dynamiques'!$CX77)-(BR$9-$E$9),,,"Facteurs dynamiques")):'Facteurs dynamiques'!$CX77)/('Facteurs dynamiques'!$CX$36*1000),0)) -> 0 | BS12: =IF(AND(debut<=2006,BS$9<=2006),0,IFERROR(SUMPRODUCT(Projet!$G38:'Projet'!BU38*1000,INDIRECT(ADDRESS(ROW('Facteurs dynamiques'!$C77),COLUMN('Facteurs dynamiques'!$CX77)-(BS$9-$E$9),,,"Facteurs dynamiques")):'Facteurs dynamiques'!$CX77)/('Facteurs dynamiques'!$CX$36*1000),0)) -> 0 | BT12: =IF(AND(debut<=2006,BT$9<=2006),0,IFERROR(SUMPRODUCT(Projet!$G38:'Projet'!BV38*1000,INDIRECT(ADDRESS(ROW('Facteurs dynamiques'!$C77),COLUMN('Facteurs dynamiques'!$CX77)-(BT$9-$E$9),,,"Facteurs dynamiques")):'Facteurs dynamiques'!$CX77)/('Facteurs dynamiques'!$CX$36*1000),0)) -> 0 | BU12: =IF(AND(debut<=2006,BU$9<=2006),0,IFERROR(SUMPRODUCT(Projet!$G38:'Projet'!BW38*1000,INDIRECT(ADDRESS(ROW('Facteurs dynamiques'!$C77),COLUMN('Facteurs dynamiques'!$CX77)-(BU$9-$E$9),,,"Facteurs dynamiques")):'Facteurs dynamiques'!$CX77)/('Facteurs dynamiques'!$CX$36*1000),0)) -> 0 | BV12: =IF(AND(debut<=2006,BV$9<=2006),0,IFERROR(SUMPRODUCT(Projet!$G38:'Projet'!BX38*1000,INDIRECT(ADDRESS(ROW('Facteurs dynamiques'!$C77),COLUMN('Facteurs dynamiques'!$CX77)-(BV$9-$E$9),,,"Facteurs dynamiques")):'Facteurs dynamiques'!$CX77)/('Facteurs dynamiques'!$CX$36*1000),0)) -> 0 | BW12: =IF(AND(debut<=2006,BW$9<=2006),0,IFERROR(SUMPRODUCT(Projet!$G38:'Projet'!BY38*1000,INDIRECT(ADDRESS(ROW('Facteurs dynamiques'!$C77),COLUMN('Facteurs dynamiques'!$CX77)-(BW$9-$E$9),,,"Facteurs dynamiques")):'Facteurs dynamiques'!$CX77)/('Facteurs dynamiques'!$CX$36*1000),0)) -> 0 | BX12: =IF(AND(debut<=2006,BX$9<=2006),0,IFERROR(SUMPRODUCT(Projet!$G38:'Projet'!BZ38*1000,INDIRECT(ADDRESS(ROW('Facteurs dynamiques'!$C77),COLUMN('Facteurs dynamiques'!$CX77)-(BX$9-$E$9),,,"Facteurs dynamiques")):'Facteurs dynamiques'!$CX77)/('Facteurs dynamiques'!$CX$36*1000),0)) -> 0 | BY12: =IF(AND(debut<=2006,BY$9<=2006),0,IFERROR(SUMPRODUCT(Projet!$G38:'Projet'!CA38*1000,INDIRECT(ADDRESS(ROW('Facteurs dynamiques'!$C77),COLUMN('Facteurs dynamiques'!$CX77)-(BY$9-$E$9),,,"Facteurs dynamiques")):'Facteurs dynamiques'!$CX77)/('Facteurs dynamiques'!$CX$36*1000),0)) -> 0 | BZ12: =IF(AND(debut<=2006,BZ$9<=2006),0,IFERROR(SUMPRODUCT(Projet!$G38:'Projet'!CB38*1000,INDIRECT(ADDRESS(ROW('Facteurs dynamiques'!$C77),COLUMN('Facteurs dynamiques'!$CX77)-(BZ$9-$E$9),,,"Facteurs dynamiques")):'Facteurs dynamiques'!$CX77)/('Facteurs dynamiques'!$CX$36*1000),0)) -> 0 | CA12: =IF(AND(debut<=2006,CA$9<=2006),0,IFERROR(SUMPRODUCT(Projet!$G38:'Projet'!CC38*1000,INDIRECT(ADDRESS(ROW('Facteurs dynamiques'!$C77),COLUMN('Facteurs dynamiques'!$CX77)-(CA$9-$E$9),,,"Facteurs dynamiques")):'Facteurs dynamiques'!$CX77)/('Facteurs dynamiques'!$CX$36*1000),0)) -> 0 | CB12: =IF(AND(debut<=2006,CB$9<=2006),0,IFERROR(SUMPRODUCT(Projet!$G38:'Projet'!CD38*1000,INDIRECT(ADDRESS(ROW('Facteurs dynamiques'!$C77),COLUMN('Facteurs dynamiques'!$CX77)-(CB$9-$E$9),,,"Facteurs dynamiques")):'Facteurs dynamiques'!$CX77)/('Facteurs dynamiques'!$CX$36*1000),0)) -> 0 | CC12: =IF(AND(debut<=2006,CC$9<=2006),0,IFERROR(SUMPRODUCT(Projet!$G38:'Projet'!CE38*1000,INDIRECT(ADDRESS(ROW('Facteurs dynamiques'!$C77),COLUMN('Facteurs dynamiques'!$CX77)-(CC$9-$E$9),,,"Facteurs dynamiques")):'Facteurs dynamiques'!$CX77)/('Facteurs dynamiques'!$CX$36*1000),0)) -> 0 | CD12: =IF(AND(debut<=2006,CD$9<=2006),0,IFERROR(SUMPRODUCT(Projet!$G38:'Projet'!CF38*1000,INDIRECT(ADDRESS(ROW('Facteurs dynamiques'!$C77),COLUMN('Facteurs dynamiques'!$CX77)-(CD$9-$E$9),,,"Facteurs dynamiques")):'Facteurs dynamiques'!$CX77)/('Facteurs dynamiques'!$CX$36*1000),0)) -> 0 | CE12: =IF(AND(debut<=2006,CE$9<=2006),0,IFERROR(SUMPRODUCT(Projet!$G38:'Projet'!CG38*1000,INDIRECT(ADDRESS(ROW('Facteurs dynamiques'!$C77),COLUMN('Facteurs dynamiques'!$CX77)-(CE$9-$E$9),,,"Facteurs dynamiques")):'Facteurs dynamiques'!$CX77)/('Facteurs dynamiques'!$CX$36*1000),0)) -> 0 | CF12: =IF(AND(debut<=2006,CF$9<=2006),0,IFERROR(SUMPRODUCT(Projet!$G38:'Projet'!CH38*1000,INDIRECT(ADDRESS(ROW('Facteurs dynamiques'!$C77),COLUMN('Facteurs dynamiques'!$CX77)-(CF$9-$E$9),,,"Facteurs dynamiques")):'Facteurs dynamiques'!$CX77)/('Facteurs dynamiques'!$CX$36*1000),0)) -> 0 | CG12: =IF(AND(debut<=2006,CG$9<=2006),0,IFERROR(SUMPRODUCT(Projet!$G38:'Projet'!CI38*1000,INDIRECT(ADDRESS(ROW('Facteurs dynamiques'!$C77),COLUMN('Facteurs dynamiques'!$CX77)-(CG$9-$E$9),,,"Facteurs dynamiques")):'Facteurs dynamiques'!$CX77)/('Facteurs dynamiques'!$CX$36*1000),0)) -> 0 | CH12: =IF(AND(debut<=2006,CH$9<=2006),0,IFERROR(SUMPRODUCT(Projet!$G38:'Projet'!CJ38*1000,INDIRECT(ADDRESS(ROW('Facteurs dynamiques'!$C77),COLUMN('Facteurs dynamiques'!$CX77)-(CH$9-$E$9),,,"Facteurs dynamiques")):'Facteurs dynamiques'!$CX77)/('Facteurs dynamiques'!$CX$36*1000),0)) -> 0 | CI12: =IF(AND(debut<=2006,CI$9<=2006),0,IFERROR(SUMPRODUCT(Projet!$G38:'Projet'!CK38*1000,INDIRECT(ADDRESS(ROW('Facteurs dynamiques'!$C77),COLUMN('Facteurs dynamiques'!$CX77)-(CI$9-$E$9),,,"Facteurs dynamiques")):'Facteurs dynamiques'!$CX77)/('Facteurs dynamiques'!$CX$36*1000),0)) -> 0 | CJ12: =IF(AND(debut<=2006,CJ$9<=2006),0,IFERROR(SUMPRODUCT(Projet!$G38:'Projet'!CL38*1000,INDIRECT(ADDRESS(ROW('Facteurs dynamiques'!$C77),COLUMN('Facteurs dynamiques'!$CX77)-(CJ$9-$E$9),,,"Facteurs dynamiques")):'Facteurs dynamiques'!$CX77)/('Facteurs dynamiques'!$CX$36*1000),0)) -> 0 | CK12: =IF(AND(debut<=2006,CK$9<=2006),0,IFERROR(SUMPRODUCT(Projet!$G38:'Projet'!CM38*1000,INDIRECT(ADDRESS(ROW('Facteurs dynamiques'!$C77),COLUMN('Facteurs dynamiques'!$CX77)-(CK$9-$E$9),,,"Facteurs dynamiques")):'Facteurs dynamiques'!$CX77)/('Facteurs dynamiques'!$CX$36*1000),0)) -> 0 | CL12: =IF(AND(debut<=2006,CL$9<=2006),0,IFERROR(SUMPRODUCT(Projet!$G38:'Projet'!CN38*1000,INDIRECT(ADDRESS(ROW('Facteurs dynamiques'!$C77),COLUMN('Facteurs dynamiques'!$CX77)-(CL$9-$E$9),,,"Facteurs dynamiques")):'Facteurs dynamiques'!$CX77)/('Facteurs dynamiques'!$CX$36*1000),0)) -> 0 | CM12: =IF(AND(debut<=2006,CM$9<=2006),0,IFERROR(SUMPRODUCT(Projet!$G38:'Projet'!CO38*1000,INDIRECT(ADDRESS(ROW('Facteurs dynamiques'!$C77),COLUMN('Facteurs dynamiques'!$CX77)-(CM$9-$E$9),,,"Facteurs dynamiques")):'Facteurs dynamiques'!$CX77)/('Facteurs dynamiques'!$CX$36*1000),0)) -> 0 | CN12: =IF(AND(debut<=2006,CN$9<=2006),0,IFERROR(SUMPRODUCT(Projet!$G38:'Projet'!CP38*1000,INDIRECT(ADDRESS(ROW('Facteurs dynamiques'!$C77),COLUMN('Facteurs dynamiques'!$CX77)-(CN$9-$E$9),,,"Facteurs dynamiques")):'Facteurs dynamiques'!$CX77)/('Facteurs dynamiques'!$CX$36*1000),0)) -> 0 | CO12: =IF(AND(debut<=2006,CO$9<=2006),0,IFERROR(SUMPRODUCT(Projet!$G38:'Projet'!CQ38*1000,INDIRECT(ADDRESS(ROW('Facteurs dynamiques'!$C77),COLUMN('Facteurs dynamiques'!$CX77)-(CO$9-$E$9),,,"Facteurs dynamiques")):'Facteurs dynamiques'!$CX77)/('Facteurs dynamiques'!$CX$36*1000),0)) -> 0 | CP12: =IF(AND(debut<=2006,CP$9<=2006),0,IFERROR(SUMPRODUCT(Projet!$G38:'Projet'!CR38*1000,INDIRECT(ADDRESS(ROW('Facteurs dynamiques'!$C77),COLUMN('Facteurs dynamiques'!$CX77)-(CP$9-$E$9),,,"Facteurs dynamiques")):'Facteurs dynamiques'!$CX77)/('Facteurs dynamiques'!$CX$36*1000),0)) -> 0 | CQ12: =IF(AND(debut<=2006,CQ$9<=2006),0,IFERROR(SUMPRODUCT(Projet!$G38:'Projet'!CS38*1000,INDIRECT(ADDRESS(ROW('Facteurs dynamiques'!$C77),COLUMN('Facteurs dynamiques'!$CX77)-(CQ$9-$E$9),,,"Facteurs dynamiques")):'Facteurs dynamiques'!$CX77)/('Facteurs dynamiques'!$CX$36*1000),0)) -> 0 | CR12: =IF(AND(debut<=2006,CR$9<=2006),0,IFERROR(SUMPRODUCT(Projet!$G38:'Projet'!CT38*1000,INDIRECT(ADDRESS(ROW('Facteurs dynamiques'!$C77),COLUMN('Facteurs dynamiques'!$CX77)-(CR$9-$E$9),,,"Facteurs dynamiques")):'Facteurs dynamiques'!$CX77)/('Facteurs dynamiques'!$CX$36*1000),0)) -> 0 | CS12: =IF(AND(debut<=2006,CS$9<=2006),0,IFERROR(SUMPRODUCT(Projet!$G38:'Projet'!CU38*1000,INDIRECT(ADDRESS(ROW('Facteurs dynamiques'!$C77),COLUMN('Facteurs dynamiques'!$CX77)-(CS$9-$E$9),,,"Facteurs dynamiques")):'Facteurs dynamiques'!$CX77)/('Facteurs dynamiques'!$CX$36*1000),0)) -> 0 | CT12: =IF(AND(debut<=2006,CT$9<=2006),0,IFERROR(SUMPRODUCT(Projet!$G38:'Projet'!CV38*1000,INDIRECT(ADDRESS(ROW('Facteurs dynamiques'!$C77),COLUMN('Facteurs dynamiques'!$CX77)-(CT$9-$E$9),,,"Facteurs dynamiques")):'Facteurs dynamiques'!$CX77)/('Facteurs dynamiques'!$CX$36*1000),0)) -> 0 | CU12: =IF(AND(debut<=2006,CU$9<=2006),0,IFERROR(SUMPRODUCT(Projet!$G38:'Projet'!CW38*1000,INDIRECT(ADDRESS(ROW('Facteurs dynamiques'!$C77),COLUMN('Facteurs dynamiques'!$CX77)-(CU$9-$E$9),,,"Facteurs dynamiques")):'Facteurs dynamiques'!$CX77)/('Facteurs dynamiques'!$CX$36*1000),0)) -> 0 | CV12: =IF(AND(debut<=2006,CV$9<=2006),0,IFERROR(SUMPRODUCT(Projet!$G38:'Projet'!CX38*1000,INDIRECT(ADDRESS(ROW('Facteurs dynamiques'!$C77),COLUMN('Facteurs dynamiques'!$CX77)-(CV$9-$E$9),,,"Facteurs dynamiques")):'Facteurs dynamiques'!$CX77)/('Facteurs dynamiques'!$CX$36*1000),0)) -> 0 | CW12: =IF(AND(debut<=2006,CW$9<=2006),0,IFERROR(SUMPRODUCT(Projet!$G38:'Projet'!CY38*1000,INDIRECT(ADDRESS(ROW('Facteurs dynamiques'!$C77),COLUMN('Facteurs dynamiques'!$CX77)-(CW$9-$E$9),,,"Facteurs dynamiques")):'Facteurs dynamiques'!$CX77)/('Facteurs dynamiques'!$CX$36*1000),0)) -> 0 | CX12: =IF(AND(debut<=2006,CX$9<=2006),0,IFERROR(SUMPRODUCT(Projet!$G38:'Projet'!CZ38*1000,INDIRECT(ADDRESS(ROW('Facteurs dynamiques'!$C77),COLUMN('Facteurs dynamiques'!$CX77)-(CX$9-$E$9),,,"Facteurs dynamiques")):'Facteurs dynamiques'!$CX77)/('Facteurs dynamiques'!$CX$36*1000),0)) -> 0 | CY12: =IF(AND(debut<=2006,CY$9<=2006),0,IFERROR(SUMPRODUCT(Projet!$G38:'Projet'!DA38*1000,INDIRECT(ADDRESS(ROW('Facteurs dynamiques'!$C77),COLUMN('Facteurs dynamiques'!$CX77)-(CY$9-$E$9),,,"Facteurs dynamiques")):'Facteurs dynamiques'!$CX77)/('Facteurs dynamiques'!$CX$36*1000),0)) -> 0 | CZ12: =IF(AND(debut<=2006,CZ$9<=2006),0,IFERROR(SUMPRODUCT(Projet!$G38:'Projet'!DB38*1000,INDIRECT(ADDRESS(ROW('Facteurs dynamiques'!$C77),COLUMN('Facteurs dynamiques'!$CX77)-(CZ$9-$E$9),,,"Facteurs dynamiques")):'Facteurs dynamiques'!$CX77)/('Facteurs dynamiques'!$CX$36*1000),0)) -> 0 | DA12: =IF(AND(debut<=2006,DA$9<=2006),0,IFERROR(SUMPRODUCT(Projet!$G38:'Projet'!DC38*1000,INDIRECT(ADDRESS(ROW('Facteurs dynamiques'!$C77),COLUMN('Facteurs dynamiques'!$CX77)-(DA$9-$E$9),,,"Facteurs dynamiques")):'Facteurs dynamiques'!$CX77)/('Facteurs dynamiques'!$CX$36*1000),0)) -> 0 | DB12: =IF(AND(debut<=2006,DB$9<=2006),0,IFERROR(SUMPRODUCT(Projet!$G38:'Projet'!DD38*1000,INDIRECT(ADDRESS(ROW('Facteurs dynamiques'!$C77),COLUMN('Facteurs dynamiques'!$CX77)-(DB$9-$E$9),,,"Facteurs dynamiques")):'Facteurs dynamiques'!$CX77)/('Facteurs dynamiques'!$CX$36*1000),0)) -> 0 | DC12: =IF(AND(debut<=2006,DC$9<=2006),0,IFERROR(SUMPRODUCT(Projet!$G38:'Projet'!DE38*1000,INDIRECT(ADDRESS(ROW('Facteurs dynamiques'!$C77),COLUMN('Facteurs dynamiques'!$CX77)-(DC$9-$E$9),,,"Facteurs dynamiques")):'Facteurs dynamiques'!$CX77)/('Facteurs dynamiques'!$CX$36*1000),0)) -> 0 | DD12: =IF(AND(debut<=2006,DD$9<=2006),0,IFERROR(SUMPRODUCT(Projet!$G38:'Projet'!DF38*1000,INDIRECT(ADDRESS(ROW('Facteurs dynamiques'!$C77),COLUMN('Facteurs dynamiques'!$CX77)-(DD$9-$E$9),,,"Facteurs dynamiques")):'Facteurs dynamiques'!$CX77)/('Facteurs dynamiques'!$CX$36*1000),0)) -> 0 | DE12: =IF(AND(debut<=2006,DE$9<=2006),0,IFERROR(SUMPRODUCT(Projet!$G38:'Projet'!DG38*1000,INDIRECT(ADDRESS(ROW('Facteurs dynamiques'!$C77),COLUMN('Facteurs dynamiques'!$CX77)-(DE$9-$E$9),,,"Facteurs dynamiques")):'Facteurs dynamiques'!$CX77)/('Facteurs dynamiques'!$CX$36*1000),0)) -> 0 | DF12: =IF(AND(debut<=2006,DF$9<=2006),0,IFERROR(SUMPRODUCT(Projet!$G38:'Projet'!DH38*1000,INDIRECT(ADDRESS(ROW('Facteurs dynamiques'!$C77),COLUMN('Facteurs dynamiques'!$CX77)-(DF$9-$E$9),,,"Facteurs dynamiques")):'Facteurs dynamiques'!$CX77)/('Facteurs dynamiques'!$CX$36*1000),0)) -> 0 | DG12: =IF(AND(debut<=2006,DG$9<=2006),0,IFERROR(SUMPRODUCT(Projet!$G38:'Projet'!DI38*1000,INDIRECT(ADDRESS(ROW('Facteurs dynamiques'!$C77),COLUMN('Facteurs dynamiques'!$CX77)-(DG$9-$E$9),,,"Facteurs dynamiques")):'Facteurs dynamiques'!$CX77)/('Facteurs dynamiques'!$CX$36*1000),0)) -> 0 | DH12: =IF(AND(debut<=2006,DH$9<=2006),0,IFERROR(SUMPRODUCT(Projet!$G38:'Projet'!DJ38*1000,INDIRECT(ADDRESS(ROW('Facteurs dynamiques'!$C77),COLUMN('Facteurs dynamiques'!$CX77)-(DH$9-$E$9),,,"Facteurs dynamiques")):'Facteurs dynamiques'!$CX77)/('Facteurs dynamiques'!$CX$36*1000),0)) -> 0 | DI12: =IF(AND(debut<=2006,DI$9<=2006),0,IFERROR(SUMPRODUCT(Projet!$G38:'Projet'!DK38*1000,INDIRECT(ADDRESS(ROW('Facteurs dynamiques'!$C77),COLUMN('Facteurs dynamiques'!$CX77)-(DI$9-$E$9),,,"Facteurs dynamiques")):'Facteurs dynamiques'!$CX77)/('Facteurs dynamiques'!$CX$36*1000),0)) -> 0 | DJ12: =IF(AND(debut<=2006,DJ$9<=2006),0,IFERROR(SUMPRODUCT(Projet!$G38:'Projet'!DL38*1000,INDIRECT(ADDRESS(ROW('Facteurs dynamiques'!$C77),COLUMN('Facteurs dynamiques'!$CX77)-(DJ$9-$E$9),,,"Facteurs dynamiques")):'Facteurs dynamiques'!$CX77)/('Facteurs dynamiques'!$CX$36*1000),0)) -> 0 | DK12: =IF(AND(debut<=2006,DK$9<=2006),0,IFERROR(SUMPRODUCT(Projet!$G38:'Projet'!DM38*1000,INDIRECT(ADDRESS(ROW('Facteurs dynamiques'!$C77),COLUMN('Facteurs dynamiques'!$CX77)-(DK$9-$E$9),,,"Facteurs dynamiques")):'Facteurs dynamiques'!$CX77)/('Facteurs dynamiques'!$CX$36*1000),0)) -> 0 | DL12: =IF(AND(debut<=2006,DL$9<=2006),0,IFERROR(SUMPRODUCT(Projet!$G38:'Projet'!DN38*1000,INDIRECT(ADDRESS(ROW('Facteurs dynamiques'!$C77),COLUMN('Facteurs dynamiques'!$CX77)-(DL$9-$E$9),,,"Facteurs dynamiques")):'Facteurs dynamiques'!$CX77)/('Facteurs dynamiques'!$CX$36*1000),0)) -> 0 | DM12: =IF(AND(debut<=2006,DM$9<=2006),0,IFERROR(SUMPRODUCT(Projet!$G38:'Projet'!DO38*1000,INDIRECT(ADDRESS(ROW('Facteurs dynamiques'!$C77),COLUMN('Facteurs dynamiques'!$CX77)-(DM$9-$E$9),,,"Facteurs dynamiques")):'Facteurs dynamiques'!$CX77)/('Facteurs dynamiques'!$CX$36*1000),0)) -> 0 | DN12: =IF(AND(debut<=2006,DN$9<=2006),0,IFERROR(SUMPRODUCT(Projet!$G38:'Projet'!DP38*1000,INDIRECT(ADDRESS(ROW('Facteurs dynamiques'!$C77),COLUMN('Facteurs dynamiques'!$CX77)-(DN$9-$E$9),,,"Facteurs dynamiques")):'Facteurs dynamiques'!$CX77)/('Facteurs dynamiques'!$CX$36*1000),0)) -> 0 | DO12: =IF(AND(debut<=2006,DO$9<=2006),0,IFERROR(SUMPRODUCT(Projet!$G38:'Projet'!DQ38*1000,INDIRECT(ADDRESS(ROW('Facteurs dynamiques'!$C77),COLUMN('Facteurs dynamiques'!$CX77)-(DO$9-$E$9),,,"Facteurs dynamiques")):'Facteurs dynamiques'!$CX77)/('Facteurs dynamiques'!$CX$36*1000),0)) -> 0 | DP12: =IF(AND(debut<=2006,DP$9<=2006),0,IFERROR(SUMPRODUCT(Projet!$G38:'Projet'!DR38*1000,INDIRECT(ADDRESS(ROW('Facteurs dynamiques'!$C77),COLUMN('Facteurs dynamiques'!$CX77)-(DP$9-$E$9),,,"Facteurs dynamiques")):'Facteurs dynamiques'!$CX77)/('Facteurs dynamiques'!$CX$36*1000),0)) -> 0 | DQ12: =IF(AND(debut<=2006,DQ$9<=2006),0,IFERROR(SUMPRODUCT(Projet!$G38:'Projet'!DS38*1000,INDIRECT(ADDRESS(ROW('Facteurs dynamiques'!$C77),COLUMN('Facteurs dynamiques'!$CX77)-(DQ$9-$E$9),,,"Facteurs dynamiques")):'Facteurs dynamiques'!$CX77)/('Facteurs dynamiques'!$CX$36*1000),0)) -> 0 | DR12: =IF(AND(debut<=2006,DR$9<=2006),0,IFERROR(SUMPRODUCT(Projet!$G38:'Projet'!DT38*1000,INDIRECT(ADDRESS(ROW('Facteurs dynamiques'!$C77),COLUMN('Facteurs dynamiques'!$CX77)-(DR$9-$E$9),,,"Facteurs dynamiques")):'Facteurs dynamiques'!$CX77)/('Facteurs dynamiques'!$CX$36*1000),0)) -> 0 | DS12: =IF(AND(debut<=2006,DS$9<=2006),0,IFERROR(SUMPRODUCT(Projet!$G38:'Projet'!DU38*1000,INDIRECT(ADDRESS(ROW('Facteurs dynamiques'!$C77),COLUMN('Facteurs dynamiques'!$CX77)-(DS$9-$E$9),,,"Facteurs dynamiques")):'Facteurs dynamiques'!$CX77)/('Facteurs dynamiques'!$CX$36*1000),0)) -> 0 | DT12: =IF(AND(debut<=2006,DT$9<=2006),0,IFERROR(SUMPRODUCT(Projet!$G38:'Projet'!DV38*1000,INDIRECT(ADDRESS(ROW('Facteurs dynamiques'!$C77),COLUMN('Facteurs dynamiques'!$CX77)-(DT$9-$E$9),,,"Facteurs dynamiques")):'Facteurs dynamiques'!$CX77)/('Facteurs dynamiques'!$CX$36*1000),0)) -> 0 | DU12: =IF(AND(debut<=2006,DU$9<=2006),0,IFERROR(SUMPRODUCT(Projet!$G38:'Projet'!DW38*1000,INDIRECT(ADDRESS(ROW('Facteurs dynamiques'!$C77),COLUMN('Facteurs dynamiques'!$CX77)-(DU$9-$E$9),,,"Facteurs dynamiques")):'Facteurs dynamiques'!$CX77)/('Facteurs dynamiques'!$CX$36*1000),0)) -> 0 | DV12: =IF(AND(debut<=2006,DV$9<=2006),0,IFERROR(SUMPRODUCT(Projet!$G38:'Projet'!DX38*1000,INDIRECT(ADDRESS(ROW('Facteurs dynamiques'!$C77),COLUMN('Facteurs dynamiques'!$CX77)-(DV$9-$E$9),,,"Facteurs dynamiques")):'Facteurs dynamiques'!$CX77)/('Facteurs dynamiques'!$CX$36*1000),0)) -> 0 | DW12: =IF(AND(debut<=2006,DW$9<=2006),0,IFERROR(SUMPRODUCT(Projet!$G38:'Projet'!DY38*1000,INDIRECT(ADDRESS(ROW('Facteurs dynamiques'!$C77),COLUMN('Facteurs dynamiques'!$CX77)-(DW$9-$E$9),,,"Facteurs dynamiques")):'Facteurs dynamiques'!$CX77)/('Facteurs dynamiques'!$CX$36*1000),0)) -> 0 | DX12: =IF(AND(debut<=2006,DX$9<=2006),0,IFERROR(SUMPRODUCT(Projet!$G38:'Projet'!DZ38*1000,INDIRECT(ADDRESS(ROW('Facteurs dynamiques'!$C77),COLUMN('Facteurs dynamiques'!$CX77)-(DX$9-$E$9),,,"Facteurs dynamiques")):'Facteurs dynamiques'!$CX77)/('Facteurs dynamiques'!$CX$36*1000),0)) -> 0 | DY12: =IF(AND(debut<=2006,DY$9<=2006),0,IFERROR(SUMPRODUCT(Projet!$G38:'Projet'!EA38*1000,INDIRECT(ADDRESS(ROW('Facteurs dynamiques'!$C77),COLUMN('Facteurs dynamiques'!$CX77)-(DY$9-$E$9),,,"Facteurs dynamiques")):'Facteurs dynamiques'!$CX77)/('Facteurs dynamiques'!$CX$36*1000),0)) -> 0 | DZ12: =IF(AND(debut<=2006,DZ$9<=2006),0,IFERROR(SUMPRODUCT(Projet!$G38:'Projet'!EB38*1000,INDIRECT(ADDRESS(ROW('Facteurs dynamiques'!$C77),COLUMN('Facteurs dynamiques'!$CX77)-(DZ$9-$E$9),,,"Facteurs dynamiques")):'Facteurs dynamiques'!$CX77)/('Facteurs dynamiques'!$CX$36*1000),0)) -> 0 | EA12: =IF(AND(debut<=2006,EA$9<=2006),0,IFERROR(SUMPRODUCT(Projet!$G38:'Projet'!EC38*1000,INDIRECT(ADDRESS(ROW('Facteurs dynamiques'!$C77),COLUMN('Facteurs dynamiques'!$CX77)-(EA$9-$E$9),,,"Facteurs dynamiques")):'Facteurs dynamiques'!$CX77)/('Facteurs dynamiques'!$CX$36*1000),0)) -> 0 | EB12: =IF(AND(debut<=2006,EB$9<=2006),0,IFERROR(SUMPRODUCT(Projet!$G38:'Projet'!ED38*1000,INDIRECT(ADDRESS(ROW('Facteurs dynamiques'!$C77),COLUMN('Facteurs dynamiques'!$CX77)-(EB$9-$E$9),,,"Facteurs dynamiques")):'Facteurs dynamiques'!$CX77)/('Facteurs dynamiques'!$CX$36*1000),0)) -> 0 | EC12: =IF(AND(debut<=2006,EC$9<=2006),0,IFERROR(SUMPRODUCT(Projet!$G38:'Projet'!EE38*1000,INDIRECT(ADDRESS(ROW('Facteurs dynamiques'!$C77),COLUMN('Facteurs dynamiques'!$CX77)-(EC$9-$E$9),,,"Facteurs dynamiques")):'Facteurs dynamiques'!$CX77)/('Facteurs dynamiques'!$CX$36*1000),0)) -> 0 | ED12: =IF(AND(debut<=2006,ED$9<=2006),0,IFERROR(SUMPRODUCT(Projet!$G38:'Projet'!EF38*1000,INDIRECT(ADDRESS(ROW('Facteurs dynamiques'!$C77),COLUMN('Facteurs dynamiques'!$CX77)-(ED$9-$E$9),,,"Facteurs dynamiques")):'Facteurs dynamiques'!$CX77)/('Facteurs dynamiques'!$CX$36*1000),0)) -> 0 | EE12: =IF(AND(debut<=2006,EE$9<=2006),0,IFERROR(SUMPRODUCT(Projet!$G38:'Projet'!EG38*1000,INDIRECT(ADDRESS(ROW('Facteurs dynamiques'!$C77),COLUMN('Facteurs dynamiques'!$CX77)-(EE$9-$E$9),,,"Facteurs dynamiques")):'Facteurs dynamiques'!$CX77)/('Facteurs dynamiques'!$CX$36*1000),0)) -> 0 | EF12: =IF(AND(debut<=2006,EF$9<=2006),0,IFERROR(SUMPRODUCT(Projet!$G38:'Projet'!EH38*1000,INDIRECT(ADDRESS(ROW('Facteurs dynamiques'!$C77),COLUMN('Facteurs dynamiques'!$CX77)-(EF$9-$E$9),,,"Facteurs dynamiques")):'Facteurs dynamiques'!$CX77)/('Facteurs dynamiques'!$CX$36*1000),0)) -> 0 | EG12: =IF(AND(debut<=2006,EG$9<=2006),0,IFERROR(SUMPRODUCT(Projet!$G38:'Projet'!EI38*1000,INDIRECT(ADDRESS(ROW('Facteurs dynamiques'!$C77),COLUMN('Facteurs dynamiques'!$CX77)-(EG$9-$E$9),,,"Facteurs dynamiques")):'Facteurs dynamiques'!$CX77)/('Facteurs dynamiques'!$CX$36*1000),0)) -> 0 | EH12: =IF(AND(debut<=2006,EH$9<=2006),0,IFERROR(SUMPRODUCT(Projet!$G38:'Projet'!EJ38*1000,INDIRECT(ADDRESS(ROW('Facteurs dynamiques'!$C77),COLUMN('Facteurs dynamiques'!$CX77)-(EH$9-$E$9),,,"Facteurs dynamiques")):'Facteurs dynamiques'!$CX77)/('Facteurs dynamiques'!$CX$36*1000),0)) -> 0 | EI12: =IF(AND(debut<=2006,EI$9<=2006),0,IFERROR(SUMPRODUCT(Projet!$G38:'Projet'!EK38*1000,INDIRECT(ADDRESS(ROW('Facteurs dynamiques'!$C77),COLUMN('Facteurs dynamiques'!$CX77)-(EI$9-$E$9),,,"Facteurs dynamiques")):'Facteurs dynamiques'!$CX77)/('Facteurs dynamiques'!$CX$36*1000),0)) -> 0 | EJ12: =IF(AND(debut<=2006,EJ$9<=2006),0,IFERROR(SUMPRODUCT(Projet!$G38:'Projet'!EL38*1000,INDIRECT(ADDRESS(ROW('Facteurs dynamiques'!$C77),COLUMN('Facteurs dynamiques'!$CX77)-(EJ$9-$E$9),,,"Facteurs dynamiques")):'Facteurs dynamiques'!$CX77)/('Facteurs dynamiques'!$CX$36*1000),0)) -> 0 | EK12: =IF(AND(debut<=2006,EK$9<=2006),0,IFERROR(SUMPRODUCT(Projet!$G38:'Projet'!EM38*1000,INDIRECT(ADDRESS(ROW('Facteurs dynamiques'!$C77),COLUMN('Facteurs dynamiques'!$CX77)-(EK$9-$E$9),,,"Facteurs dynamiques")):'Facteurs dynamiques'!$CX77)/('Facteurs dynamiques'!$CX$36*1000),0)) -> 0 | EL12: =IF(AND(debut<=2006,EL$9<=2006),0,IFERROR(SUMPRODUCT(Projet!$G38:'Projet'!EN38*1000,INDIRECT(ADDRESS(ROW('Facteurs dynamiques'!$C77),COLUMN('Facteurs dynamiques'!$CX77)-(EL$9-$E$9),,,"Facteurs dynamiques")):'Facteurs dynamiques'!$CX77)/('Facteurs dynamiques'!$CX$36*1000),0)) -> 0 | EM12: =IF(AND(debut<=2006,EM$9<=2006),0,IFERROR(SUMPRODUCT(Projet!$G38:'Projet'!EO38*1000,INDIRECT(ADDRESS(ROW('Facteurs dynamiques'!$C77),COLUMN('Facteurs dynamiques'!$CX77)-(EM$9-$E$9),,,"Facteurs dynamiques")):'Facteurs dynamiques'!$CX77)/('Facteurs dynamiques'!$CX$36*1000),0)) -> 0 | EN12: =IF(AND(debut<=2006,EN$9<=2006),0,IFERROR(SUMPRODUCT(Projet!$G38:'Projet'!EP38*1000,INDIRECT(ADDRESS(ROW('Facteurs dynamiques'!$C77),COLUMN('Facteurs dynamiques'!$CX77)-(EN$9-$E$9),,,"Facteurs dynamiques")):'Facteurs dynamiques'!$CX77)/('Facteurs dynamiques'!$CX$36*1000),0)) -> 0 | EO12: =IF(AND(debut<=2006,EO$9<=2006),0,IFERROR(SUMPRODUCT(Projet!$G38:'Projet'!EQ38*1000,INDIRECT(ADDRESS(ROW('Facteurs dynamiques'!$C77),COLUMN('Facteurs dynamiques'!$CX77)-(EO$9-$E$9),,,"Facteurs dynamiques")):'Facteurs dynamiques'!$CX77)/('Facteurs dynamiques'!$CX$36*1000),0)) -> 0 | EP12: =IF(AND(debut<=2006,EP$9<=2006),0,IFERROR(SUMPRODUCT(Projet!$G38:'Projet'!ER38*1000,INDIRECT(ADDRESS(ROW('Facteurs dynamiques'!$C77),COLUMN('Facteurs dynamiques'!$CX77)-(EP$9-$E$9),,,"Facteurs dynamiques")):'Facteurs dynamiques'!$CX77)/('Facteurs dynamiques'!$CX$36*1000),0)) -> 0 | EQ12: =IF(AND(debut<=2006,EQ$9<=2006),0,IFERROR(SUMPRODUCT(Projet!$G38:'Projet'!ES38*1000,INDIRECT(ADDRESS(ROW('Facteurs dynamiques'!$C77),COLUMN('Facteurs dynamiques'!$CX77)-(EQ$9-$E$9),,,"Facteurs dynamiques")):'Facteurs dynamiques'!$CX77)/('Facteurs dynamiques'!$CX$36*1000),0)) -> 0 | ER12: =IF(AND(debut<=2006,ER$9<=2006),0,IFERROR(SUMPRODUCT(Projet!$G38:'Projet'!ET38*1000,INDIRECT(ADDRESS(ROW('Facteurs dynamiques'!$C77),COLUMN('Facteurs dynamiques'!$CX77)-(ER$9-$E$9),,,"Facteurs dynamiques")):'Facteurs dynamiques'!$CX77)/('Facteurs dynamiques'!$CX$36*1000),0)) -> 0 | ES12: =IF(AND(debut<=2006,ES$9<=2006),0,IFERROR(SUMPRODUCT(Projet!$G38:'Projet'!EU38*1000,INDIRECT(ADDRESS(ROW('Facteurs dynamiques'!$C77),COLUMN('Facteurs dynamiques'!$CX77)-(ES$9-$E$9),,,"Facteurs dynamiques")):'Facteurs dynamiques'!$CX77)/('Facteurs dynamiques'!$CX$36*1000),0)) -> 0 | ET12: =IF(AND(debut<=2006,ET$9<=2006),0,IFERROR(SUMPRODUCT(Projet!$G38:'Projet'!EV38*1000,INDIRECT(ADDRESS(ROW('Facteurs dynamiques'!$C77),COLUMN('Facteurs dynamiques'!$CX77)-(ET$9-$E$9),,,"Facteurs dynamiques")):'Facteurs dynamiques'!$CX77)/('Facteurs dynamiques'!$CX$36*1000),0)) -> 0 | EU12: =IF(AND(debut<=2006,EU$9<=2006),0,IFERROR(SUMPRODUCT(Projet!$G38:'Projet'!EW38*1000,INDIRECT(ADDRESS(ROW('Facteurs dynamiques'!$C77),COLUMN('Facteurs dynamiques'!$CX77)-(EU$9-$E$9),,,"Facteurs dynamiques")):'Facteurs dynamiques'!$CX77)/('Facteurs dynamiques'!$CX$36*1000),0)) -> 0 | EV12: =IF(AND(debut<=2006,EV$9<=2006),0,IFERROR(SUMPRODUCT(Projet!$G38:'Projet'!EX38*1000,INDIRECT(ADDRESS(ROW('Facteurs dynamiques'!$C77),COLUMN('Facteurs dynamiques'!$CX77)-(EV$9-$E$9),,,"Facteurs dynamiques")):'Facteurs dynamiques'!$CX77)/('Facteurs dynamiques'!$CX$36*1000),0)) -> 0 | EW12: =IF(AND(debut<=2006,EW$9<=2006),0,IFERROR(SUMPRODUCT(Projet!$G38:'Projet'!EY38*1000,INDIRECT(ADDRESS(ROW('Facteurs dynamiques'!$C77),COLUMN('Facteurs dynamiques'!$CX77)-(EW$9-$E$9),,,"Facteurs dynamiques")):'Facteurs dynamiques'!$CX77)/('Facteurs dynamiques'!$CX$36*1000),0)) -> 0 | EX12: =IF(AND(debut<=2006,EX$9<=2006),0,IFERROR(SUMPRODUCT(Projet!$G38:'Projet'!EZ38*1000,INDIRECT(ADDRESS(ROW('Facteurs dynamiques'!$C77),COLUMN('Facteurs dynamiques'!$CX77)-(EX$9-$E$9),,,"Facteurs dynamiques")):'Facteurs dynamiques'!$CX77)/('Facteurs dynamiques'!$CX$36*1000),0)) -> 0 | EY12: =IF(AND(debut<=2006,EY$9<=2006),0,IFERROR(SUMPRODUCT(Projet!$G38:'Projet'!FA38*1000,INDIRECT(ADDRESS(ROW('Facteurs dynamiques'!$C77),COLUMN('Facteurs dynamiques'!$CX77)-(EY$9-$E$9),,,"Facteurs dynamiques")):'Facteurs dynamiques'!$CX77)/('Facteurs dynamiques'!$CX$36*1000),0)) -> 0 | EZ12: =IF(AND(debut<=2006,EZ$9<=2006),0,IFERROR(SUMPRODUCT(Projet!$G38:'Projet'!FB38*1000,INDIRECT(ADDRESS(ROW('Facteurs dynamiques'!$C77),COLUMN('Facteurs dynamiques'!$CX77)-(EZ$9-$E$9),,,"Facteurs dynamiques")):'Facteurs dynamiques'!$CX77)/('Facteurs dynamiques'!$CX$36*1000),0)) -> 0 | FA12: =IF(AND(debut<=2006,FA$9<=2006),0,IFERROR(SUMPRODUCT(Projet!$G38:'Projet'!FC38*1000,INDIRECT(ADDRESS(ROW('Facteurs dynamiques'!$C77),COLUMN('Facteurs dynamiques'!$CX77)-(FA$9-$E$9),,,"Facteurs dynamiques")):'Facteurs dynamiques'!$CX77)/('Facteurs dynamiques'!$CX$36*1000),0)) -> 0 | FB12: =IF(AND(debut<=2006,FB$9<=2006),0,IFERROR(SUMPRODUCT(Projet!$G38:'Projet'!FD38*1000,INDIRECT(ADDRESS(ROW('Facteurs dynamiques'!$C77),COLUMN('Facteurs dynamiques'!$CX77)-(FB$9-$E$9),,,"Facteurs dynamiques")):'Facteurs dynamiques'!$CX77)/('Facteurs dynamiques'!$CX$36*1000),0)) -> 0 | FC12: =IF(AND(debut<=2006,FC$9<=2006),0,IFERROR(SUMPRODUCT(Projet!$G38:'Projet'!FE38*1000,INDIRECT(ADDRESS(ROW('Facteurs dynamiques'!$C77),COLUMN('Facteurs dynamiques'!$CX77)-(FC$9-$E$9),,,"Facteurs dynamiques")):'Facteurs dynamiques'!$CX77)/('Facteurs dynamiques'!$CX$36*1000),0)) -> 0 | FD12: =IF(AND(debut<=2006,FD$9<=2006),0,IFERROR(SUMPRODUCT(Projet!$G38:'Projet'!FF38*1000,INDIRECT(ADDRESS(ROW('Facteurs dynamiques'!$C77),COLUMN('Facteurs dynamiques'!$CX77)-(FD$9-$E$9),,,"Facteurs dynamiques")):'Facteurs dynamiques'!$CX77)/('Facteurs dynamiques'!$CX$36*1000),0)) -> 0 | FE12: =IF(AND(debut<=2006,FE$9<=2006),0,IFERROR(SUMPRODUCT(Projet!$G38:'Projet'!FG38*1000,INDIRECT(ADDRESS(ROW('Facteurs dynamiques'!$C77),COLUMN('Facteurs dynamiques'!$CX77)-(FE$9-$E$9),,,"Facteurs dynamiques")):'Facteurs dynamiques'!$CX77)/('Facteurs dynamiques'!$CX$36*1000),0)) -> 0 | FF12: =IF(AND(debut<=2006,FF$9<=2006),0,IFERROR(SUMPRODUCT(Projet!$G38:'Projet'!FH38*1000,INDIRECT(ADDRESS(ROW('Facteurs dynamiques'!$C77),COLUMN('Facteurs dynamiques'!$CX77)-(FF$9-$E$9),,,"Facteurs dynamiques")):'Facteurs dynamiques'!$CX77)/('Facteurs dynamiques'!$CX$36*1000),0)) -> 0 | FG12: =IF(AND(debut<=2006,FG$9<=2006),0,IFERROR(SUMPRODUCT(Projet!$G38:'Projet'!FI38*1000,INDIRECT(ADDRESS(ROW('Facteurs dynamiques'!$C77),COLUMN('Facteurs dynamiques'!$CX77)-(FG$9-$E$9),,,"Facteurs dynamiques")):'Facteurs dynamiques'!$CX77)/('Facteurs dynamiques'!$CX$36*1000),0)) -> 0 | FH12: =IF(AND(debut<=2006,FH$9<=2006),0,IFERROR(SUMPRODUCT(Projet!$G38:'Projet'!FJ38*1000,INDIRECT(ADDRESS(ROW('Facteurs dynamiques'!$C77),COLUMN('Facteurs dynamiques'!$CX77)-(FH$9-$E$9),,,"Facteurs dynamiques")):'Facteurs dynamiques'!$CX77)/('Facteurs dynamiques'!$CX$36*1000),0)) -> 0 | FI12: =IF(AND(debut<=2006,FI$9<=2006),0,IFERROR(SUMPRODUCT(Projet!$G38:'Projet'!FK38*1000,INDIRECT(ADDRESS(ROW('Facteurs dynamiques'!$C77),COLUMN('Facteurs dynamiques'!$CX77)-(FI$9-$E$9),,,"Facteurs dynamiques")):'Facteurs dynamiques'!$CX77)/('Facteurs dynamiques'!$CX$36*1000),0)) -> 0 | FJ12: =IF(AND(debut<=2006,FJ$9<=2006),0,IFERROR(SUMPRODUCT(Projet!$G38:'Projet'!FL38*1000,INDIRECT(ADDRESS(ROW('Facteurs dynamiques'!$C77),COLUMN('Facteurs dynamiques'!$CX77)-(FJ$9-$E$9),,,"Facteurs dynamiques")):'Facteurs dynamiques'!$CX77)/('Facteurs dynamiques'!$CX$36*1000),0)) -> 0 | FK12: =IF(AND(debut<=2006,FK$9<=2006),0,IFERROR(SUMPRODUCT(Projet!$G38:'Projet'!FM38*1000,INDIRECT(ADDRESS(ROW('Facteurs dynamiques'!$C77),COLUMN('Facteurs dynamiques'!$CX77)-(FK$9-$E$9),,,"Facteurs dynamiques")):'Facteurs dynamiques'!$CX77)/('Facteurs dynamiques'!$CX$36*1000),0)) -> 0 | FL12: =IF(AND(debut<=2006,FL$9<=2006),0,IFERROR(SUMPRODUCT(Projet!$G38:'Projet'!FN38*1000,INDIRECT(ADDRESS(ROW('Facteurs dynamiques'!$C77),COLUMN('Facteurs dynamiques'!$CX77)-(FL$9-$E$9),,,"Facteurs dynamiques")):'Facteurs dynamiques'!$CX77)/('Facteurs dynamiques'!$CX$36*1000),0)) -> 0 | FM12: =IF(AND(debut<=2006,FM$9<=2006),0,IFERROR(SUMPRODUCT(Projet!$G38:'Projet'!FO38*1000,INDIRECT(ADDRESS(ROW('Facteurs dynamiques'!$C77),COLUMN('Facteurs dynamiques'!$CX77)-(FM$9-$E$9),,,"Facteurs dynamiques")):'Facteurs dynamiques'!$CX77)/('Facteurs dynamiques'!$CX$36*1000),0)) -> 0 | FN12: =IF(AND(debut<=2006,FN$9<=2006),0,IFERROR(SUMPRODUCT(Projet!$G38:'Projet'!FP38*1000,INDIRECT(ADDRESS(ROW('Facteurs dynamiques'!$C77),COLUMN('Facteurs dynamiques'!$CX77)-(FN$9-$E$9),,,"Facteurs dynamiques")):'Facteurs dynamiques'!$CX77)/('Facteurs dynamiques'!$CX$36*1000),0)) -> 0 | FO12: =IF(AND(debut<=2006,FO$9<=2006),0,IFERROR(SUMPRODUCT(Projet!$G38:'Projet'!FQ38*1000,INDIRECT(ADDRESS(ROW('Facteurs dynamiques'!$C77),COLUMN('Facteurs dynamiques'!$CX77)-(FO$9-$E$9),,,"Facteurs dynamiques")):'Facteurs dynamiques'!$CX77)/('Facteurs dynamiques'!$CX$36*1000),0)) -> 0 | FP12: =IF(AND(debut<=2006,FP$9<=2006),0,IFERROR(SUMPRODUCT(Projet!$G38:'Projet'!FR38*1000,INDIRECT(ADDRESS(ROW('Facteurs dynamiques'!$C77),COLUMN('Facteurs dynamiques'!$CX77)-(FP$9-$E$9),,,"Facteurs dynamiques")):'Facteurs dynamiques'!$CX77)/('Facteurs dynamiques'!$CX$36*1000),0)) -> 0 | FQ12: =IF(AND(debut<=2006,FQ$9<=2006),0,IFERROR(SUMPRODUCT(Projet!$G38:'Projet'!FS38*1000,INDIRECT(ADDRESS(ROW('Facteurs dynamiques'!$C77),COLUMN('Facteurs dynamiques'!$CX77)-(FQ$9-$E$9),,,"Facteurs dynamiques")):'Facteurs dynamiques'!$CX77)/('Facteurs dynamiques'!$CX$36*1000),0)) -> 0 | FR12: =IF(AND(debut<=2006,FR$9<=2006),0,IFERROR(SUMPRODUCT(Projet!$G38:'Projet'!FT38*1000,INDIRECT(ADDRESS(ROW('Facteurs dynamiques'!$C77),COLUMN('Facteurs dynamiques'!$CX77)-(FR$9-$E$9),,,"Facteurs dynamiques")):'Facteurs dynamiques'!$CX77)/('Facteurs dynamiques'!$CX$36*1000),0)) -> 0 | FS12: =IF(AND(debut<=2006,FS$9<=2006),0,IFERROR(SUMPRODUCT(Projet!$G38:'Projet'!FU38*1000,INDIRECT(ADDRESS(ROW('Facteurs dynamiques'!$C77),COLUMN('Facteurs dynamiques'!$CX77)-(FS$9-$E$9),,,"Facteurs dynamiques")):'Facteurs dynamiques'!$CX77)/('Facteurs dynamiques'!$CX$36*1000),0)) -> 0 | FT12: =IF(AND(debut<=2006,FT$9<=2006),0,IFERROR(SUMPRODUCT(Projet!$G38:'Projet'!FV38*1000,INDIRECT(ADDRESS(ROW('Facteurs dynamiques'!$C77),COLUMN('Facteurs dynamiques'!$CX77)-(FT$9-$E$9),,,"Facteurs dynamiques")):'Facteurs dynamiques'!$CX77)/('Facteurs dynamiques'!$CX$36*1000),0)) -> 0 | FU12: =IF(AND(debut<=2006,FU$9<=2006),0,IFERROR(SUMPRODUCT(Projet!$G38:'Projet'!FW38*1000,INDIRECT(ADDRESS(ROW('Facteurs dynamiques'!$C77),COLUMN('Facteurs dynamiques'!$CX77)-(FU$9-$E$9),,,"Facteurs dynamiques")):'Facteurs dynamiques'!$CX77)/('Facteurs dynamiques'!$CX$36*1000),0)) -> 0 | FV12: =IF(AND(debut<=2006,FV$9<=2006),0,IFERROR(SUMPRODUCT(Projet!$G38:'Projet'!FX38*1000,INDIRECT(ADDRESS(ROW('Facteurs dynamiques'!$C77),COLUMN('Facteurs dynamiques'!$CX77)-(FV$9-$E$9),,,"Facteurs dynamiques")):'Facteurs dynamiques'!$CX77)/('Facteurs dynamiques'!$CX$36*1000),0)) -> 0 | FW12: =IF(AND(debut<=2006,FW$9<=2006),0,IFERROR(SUMPRODUCT(Projet!$G38:'Projet'!FY38*1000,INDIRECT(ADDRESS(ROW('Facteurs dynamiques'!$C77),COLUMN('Facteurs dynamiques'!$CX77)-(FW$9-$E$9),,,"Facteurs dynamiques")):'Facteurs dynamiques'!$CX77)/('Facteurs dynamiques'!$CX$36*1000),0)) -> 0 | FX12: =IF(AND(debut<=2006,FX$9<=2006),0,IFERROR(SUMPRODUCT(Projet!$G38:'Projet'!FZ38*1000,INDIRECT(ADDRESS(ROW('Facteurs dynamiques'!$C77),COLUMN('Facteurs dynamiques'!$CX77)-(FX$9-$E$9),,,"Facteurs dynamiques")):'Facteurs dynamiques'!$CX77)/('Facteurs dynamiques'!$CX$36*1000),0)) -> 0 | FY12: =IF(AND(debut<=2006,FY$9<=2006),0,IFERROR(SUMPRODUCT(Projet!$G38:'Projet'!GA38*1000,INDIRECT(ADDRESS(ROW('Facteurs dynamiques'!$C77),COLUMN('Facteurs dynamiques'!$CX77)-(FY$9-$E$9),,,"Facteurs dynamiques")):'Facteurs dynamiques'!$CX77)/('Facteurs dynamiques'!$CX$36*1000),0)) -> 0 | FZ12: =IF(AND(debut<=2006,FZ$9<=2006),0,IFERROR(SUMPRODUCT(Projet!$G38:'Projet'!GB38*1000,INDIRECT(ADDRESS(ROW('Facteurs dynamiques'!$C77),COLUMN('Facteurs dynamiques'!$CX77)-(FZ$9-$E$9),,,"Facteurs dynamiques")):'Facteurs dynamiques'!$CX77)/('Facteurs dynamiques'!$CX$36*1000),0)) -> 0 | GA12: =IF(AND(debut<=2006,GA$9<=2006),0,IFERROR(SUMPRODUCT(Projet!$G38:'Projet'!GC38*1000,INDIRECT(ADDRESS(ROW('Facteurs dynamiques'!$C77),COLUMN('Facteurs dynamiques'!$CX77)-(GA$9-$E$9),,,"Facteurs dynamiques")):'Facteurs dynamiques'!$CX77)/('Facteurs dynamiques'!$CX$36*1000),0)) -> 0 | GB12: =IF(AND(debut<=2006,GB$9<=2006),0,IFERROR(SUMPRODUCT(Projet!$G38:'Projet'!GD38*1000,INDIRECT(ADDRESS(ROW('Facteurs dynamiques'!$C77),COLUMN('Facteurs dynamiques'!$CX77)-(GB$9-$E$9),,,"Facteurs dynamiques")):'Facteurs dynamiques'!$CX77)/('Facteurs dynamiques'!$CX$36*1000),0)) -> 0 | GC12: =IF(AND(debut<=2006,GC$9<=2006),0,IFERROR(SUMPRODUCT(Projet!$G38:'Projet'!GE38*1000,INDIRECT(ADDRESS(ROW('Facteurs dynamiques'!$C77),COLUMN('Facteurs dynamiques'!$CX77)-(GC$9-$E$9),,,"Facteurs dynamiques")):'Facteurs dynamiques'!$CX77)/('Facteurs dynamiques'!$CX$36*1000),0)) -> 0 | GD12: =IF(AND(debut<=2006,GD$9<=2006),0,IFERROR(SUMPRODUCT(Projet!$G38:'Projet'!GF38*1000,INDIRECT(ADDRESS(ROW('Facteurs dynamiques'!$C77),COLUMN('Facteurs dynamiques'!$CX77)-(GD$9-$E$9),,,"Facteurs dynamiques")):'Facteurs dynamiques'!$CX77)/('Facteurs dynamiques'!$CX$36*1000),0)) -> 0 | GE12: =IF(AND(debut<=2006,GE$9<=2006),0,IFERROR(SUMPRODUCT(Projet!$G38:'Projet'!GG38*1000,INDIRECT(ADDRESS(ROW('Facteurs dynamiques'!$C77),COLUMN('Facteurs dynamiques'!$CX77)-(GE$9-$E$9),,,"Facteurs dynamiques")):'Facteurs dynamiques'!$CX77)/('Facteurs dynamiques'!$CX$36*1000),0)) -> 0 | GF12: =IF(AND(debut<=2006,GF$9<=2006),0,IFERROR(SUMPRODUCT(Projet!$G38:'Projet'!GH38*1000,INDIRECT(ADDRESS(ROW('Facteurs dynamiques'!$C77),COLUMN('Facteurs dynamiques'!$CX77)-(GF$9-$E$9),,,"Facteurs dynamiques")):'Facteurs dynamiques'!$CX77)/('Facteurs dynamiques'!$CX$36*1000),0)) -> 0 | GG12: =IF(AND(debut<=2006,GG$9<=2006),0,IFERROR(SUMPRODUCT(Projet!$G38:'Projet'!GI38*1000,INDIRECT(ADDRESS(ROW('Facteurs dynamiques'!$C77),COLUMN('Facteurs dynamiques'!$CX77)-(GG$9-$E$9),,,"Facteurs dynamiques")):'Facteurs dynamiques'!$CX77)/('Facteurs dynamiques'!$CX$36*1000),0)) -> 0 | GH12: =IF(AND(debut<=2006,GH$9<=2006),0,IFERROR(SUMPRODUCT(Projet!$G38:'Projet'!GJ38*1000,INDIRECT(ADDRESS(ROW('Facteurs dynamiques'!$C77),COLUMN('Facteurs dynamiques'!$CX77)-(GH$9-$E$9),,,"Facteurs dynamiques")):'Facteurs dynamiques'!$CX77)/('Facteurs dynamiques'!$CX$36*1000),0)) -> 0 | GI12: =IF(AND(debut<=2006,GI$9<=2006),0,IFERROR(SUMPRODUCT(Projet!$G38:'Projet'!GK38*1000,INDIRECT(ADDRESS(ROW('Facteurs dynamiques'!$C77),COLUMN('Facteurs dynamiques'!$CX77)-(GI$9-$E$9),,,"Facteurs dynamiques")):'Facteurs dynamiques'!$CX77)/('Facteurs dynamiques'!$CX$36*1000),0)) -> 0 | GJ12: =IF(AND(debut<=2006,GJ$9<=2006),0,IFERROR(SUMPRODUCT(Projet!$G38:'Projet'!GL38*1000,INDIRECT(ADDRESS(ROW('Facteurs dynamiques'!$C77),COLUMN('Facteurs dynamiques'!$CX77)-(GJ$9-$E$9),,,"Facteurs dynamiques")):'Facteurs dynamiques'!$CX77)/('Facteurs dynamiques'!$CX$36*1000),0)) -> 0 | GK12: =IF(AND(debut<=2006,GK$9<=2006),0,IFERROR(SUMPRODUCT(Projet!$G38:'Projet'!GM38*1000,INDIRECT(ADDRESS(ROW('Facteurs dynamiques'!$C77),COLUMN('Facteurs dynamiques'!$CX77)-(GK$9-$E$9),,,"Facteurs dynamiques")):'Facteurs dynamiques'!$CX77)/('Facteurs dynamiques'!$CX$36*1000),0)) -> 0 | GL12: =IF(AND(debut<=2006,GL$9<=2006),0,IFERROR(SUMPRODUCT(Projet!$G38:'Projet'!GN38*1000,INDIRECT(ADDRESS(ROW('Facteurs dynamiques'!$C77),COLUMN('Facteurs dynamiques'!$CX77)-(GL$9-$E$9),,,"Facteurs dynamiques")):'Facteurs dynamiques'!$CX77)/('Facteurs dynamiques'!$CX$36*1000),0)) -> 0 | GM12: =IF(AND(debut<=2006,GM$9<=2006),0,IFERROR(SUMPRODUCT(Projet!$G38:'Projet'!GO38*1000,INDIRECT(ADDRESS(ROW('Facteurs dynamiques'!$C77),COLUMN('Facteurs dynamiques'!$CX77)-(GM$9-$E$9),,,"Facteurs dynamiques")):'Facteurs dynamiques'!$CX77)/('Facteurs dynamiques'!$CX$36*1000),0)) -> 0 | GN12: =IF(AND(debut<=2006,GN$9<=2006),0,IFERROR(SUMPRODUCT(Projet!$G38:'Projet'!GP38*1000,INDIRECT(ADDRESS(ROW('Facteurs dynamiques'!$C77),COLUMN('Facteurs dynamiques'!$CX77)-(GN$9-$E$9),,,"Facteurs dynamiques")):'Facteurs dynamiques'!$CX77)/('Facteurs dynamiques'!$CX$36*1000),0)) -> 0 | GO12: =IF(AND(debut<=2006,GO$9<=2006),0,IFERROR(SUMPRODUCT(Projet!$G38:'Projet'!GQ38*1000,INDIRECT(ADDRESS(ROW('Facteurs dynamiques'!$C77),COLUMN('Facteurs dynamiques'!$CX77)-(GO$9-$E$9),,,"Facteurs dynamiques")):'Facteurs dynamiques'!$CX77)/('Facteurs dynamiques'!$CX$36*1000),0)) -> 0 | GP12: =IF(AND(debut<=2006,GP$9<=2006),0,IFERROR(SUMPRODUCT(Projet!$G38:'Projet'!GR38*1000,INDIRECT(ADDRESS(ROW('Facteurs dynamiques'!$C77),COLUMN('Facteurs dynamiques'!$CX77)-(GP$9-$E$9),,,"Facteurs dynamiques")):'Facteurs dynamiques'!$CX77)/('Facteurs dynamiques'!$CX$36*1000),0)) -> 0 | GQ12: =IF(AND(debut<=2006,GQ$9<=2006),0,IFERROR(SUMPRODUCT(Projet!$G38:'Projet'!GS38*1000,INDIRECT(ADDRESS(ROW('Facteurs dynamiques'!$C77),COLUMN('Facteurs dynamiques'!$CX77)-(GQ$9-$E$9),,,"Facteurs dynamiques")):'Facteurs dynamiques'!$CX77)/('Facteurs dynamiques'!$CX$36*1000),0)) -> 0 | GR12: =IF(AND(debut<=2006,GR$9<=2006),0,IFERROR(SUMPRODUCT(Projet!$G38:'Projet'!GT38*1000,INDIRECT(ADDRESS(ROW('Facteurs dynamiques'!$C77),COLUMN('Facteurs dynamiques'!$CX77)-(GR$9-$E$9),,,"Facteurs dynamiques")):'Facteurs dynamiques'!$CX77)/('Facteurs dynamiques'!$CX$36*1000),0)) -> 0 | GS12: =IF(AND(debut<=2006,GS$9<=2006),0,IFERROR(SUMPRODUCT(Projet!$G38:'Projet'!GU38*1000,INDIRECT(ADDRESS(ROW('Facteurs dynamiques'!$C77),COLUMN('Facteurs dynamiques'!$CX77)-(GS$9-$E$9),,,"Facteurs dynamiques")):'Facteurs dynamiques'!$CX77)/('Facteurs dynamiques'!$CX$36*1000),0)) -> 0 | GT12: =IF(AND(debut<=2006,GT$9<=2006),0,IFERROR(SUMPRODUCT(Projet!$G38:'Projet'!GV38*1000,INDIRECT(ADDRESS(ROW('Facteurs dynamiques'!$C77),COLUMN('Facteurs dynamiques'!$CX77)-(GT$9-$E$9),,,"Facteurs dynamiques")):'Facteurs dynamiques'!$CX77)/('Facteurs dynamiques'!$CX$36*1000),0)) -> 0 | GU12: =IF(AND(debut<=2006,GU$9<=2006),0,IFERROR(SUMPRODUCT(Projet!$G38:'Projet'!GW38*1000,INDIRECT(ADDRESS(ROW('Facteurs dynamiques'!$C77),COLUMN('Facteurs dynamiques'!$CX77)-(GU$9-$E$9),,,"Facteurs dynamiques")):'Facteurs dynamiques'!$CX77)/('Facteurs dynamiques'!$CX$36*1000),0)) -> 0 | GV12: =IF(AND(debut<=2006,GV$9<=2006),0,IFERROR(SUMPRODUCT(Projet!$G38:'Projet'!GX38*1000,INDIRECT(ADDRESS(ROW('Facteurs dynamiques'!$C77),COLUMN('Facteurs dynamiques'!$CX77)-(GV$9-$E$9),,,"Facteurs dynamiques")):'Facteurs dynamiques'!$CX77)/('Facteurs dynamiques'!$CX$36*1000),0)) -> 0
A13: Forçage radiatif instantané (annuel) dû aux flux de N2O entrés par le promoteur | E13: =IF(AND(debut<=2006,E$9<=2006),0,IFERROR(SUMPRODUCT(Projet!$G39:'Projet'!G39*1000,INDIRECT(ADDRESS(ROW('Facteurs dynamiques'!$C78),COLUMN('Facteurs dynamiques'!$CX78)-(E$9-$E$9),,,"Facteurs dynamiques")):'Facteurs dynamiques'!$CX78)/('Facteurs dynamiques'!$CX$36*1000),0)) -> 0 | F13: =IF(AND(debut<=2006,F$9<=2006),0,IFERROR(SUMPRODUCT(Projet!$G39:'Projet'!H39*1000,INDIRECT(ADDRESS(ROW('Facteurs dynamiques'!$C78),COLUMN('Facteurs dynamiques'!$CX78)-(F$9-$E$9),,,"Facteurs dynamiques")):'Facteurs dynamiques'!$CX78)/('Facteurs dynamiques'!$CX$36*1000),0)) -> 0 | G13: =IF(AND(debut<=2006,G$9<=2006),0,IFERROR(SUMPRODUCT(Projet!$G39:'Projet'!I39*1000,INDIRECT(ADDRESS(ROW('Facteurs dynamiques'!$C78),COLUMN('Facteurs dynamiques'!$CX78)-(G$9-$E$9),,,"Facteurs dynamiques")):'Facteurs dynamiques'!$CX78)/('Facteurs dynamiques'!$CX$36*1000),0)) -> 0 | H13: =IF(AND(debut<=2006,H$9<=2006),0,IFERROR(SUMPRODUCT(Projet!$G39:'Projet'!J39*1000,INDIRECT(ADDRESS(ROW('Facteurs dynamiques'!$C78),COLUMN('Facteurs dynamiques'!$CX78)-(H$9-$E$9),,,"Facteurs dynamiques")):'Facteurs dynamiques'!$CX78)/('Facteurs dynamiques'!$CX$36*1000),0)) -> 0 | I13: =IF(AND(debut<=2006,I$9<=2006),0,IFERROR(SUMPRODUCT(Projet!$G39:'Projet'!K39*1000,INDIRECT(ADDRESS(ROW('Facteurs dynamiques'!$C78),COLUMN('Facteurs dynamiques'!$CX78)-(I$9-$E$9),,,"Facteurs dynamiques")):'Facteurs dynamiques'!$CX78)/('Facteurs dynamiques'!$CX$36*1000),0)) -> 0 | J13: =IF(AND(debut<=2006,J$9<=2006),0,IFERROR(SUMPRODUCT(Projet!$G39:'Projet'!L39*1000,INDIRECT(ADDRESS(ROW('Facteurs dynamiques'!$C78),COLUMN('Facteurs dynamiques'!$CX78)-(J$9-$E$9),,,"Facteurs dynamiques")):'Facteurs dynamiques'!$CX78)/('Facteurs dynamiques'!$CX$36*1000),0)) -> 0 | K13: =IF(AND(debut<=2006,K$9<=2006),0,IFERROR(SUMPRODUCT(Projet!$G39:'Projet'!M39*1000,INDIRECT(ADDRESS(ROW('Facteurs dynamiques'!$C78),COLUMN('Facteurs dynamiques'!$CX78)-(K$9-$E$9),,,"Facteurs dynamiques")):'Facteurs dynamiques'!$CX78)/('Facteurs dynamiques'!$CX$36*1000),0)) -> 0 | L13: =IF(AND(debut<=2006,L$9<=2006),0,IFERROR(SUMPRODUCT(Projet!$G39:'Projet'!N39*1000,INDIRECT(ADDRESS(ROW('Facteurs dynamiques'!$C78),COLUMN('Facteurs dynamiques'!$CX78)-(L$9-$E$9),,,"Facteurs dynamiques")):'Facteurs dynamiques'!$CX78)/('Facteurs dynamiques'!$CX$36*1000),0)) -> 0 | M13: =IF(AND(debut<=2006,M$9<=2006),0,IFERROR(SUMPRODUCT(Projet!$G39:'Projet'!O39*1000,INDIRECT(ADDRESS(ROW('Facteurs dynamiques'!$C78),COLUMN('Facteurs dynamiques'!$CX78)-(M$9-$E$9),,,"Facteurs dynamiques")):'Facteurs dynamiques'!$CX78)/('Facteurs dynamiques'!$CX$36*1000),0)) -> 0 | N13: =IF(AND(debut<=2006,N$9<=2006),0,IFERROR(SUMPRODUCT(Projet!$G39:'Projet'!P39*1000,INDIRECT(ADDRESS(ROW('Facteurs dynamiques'!$C78),COLUMN('Facteurs dynamiques'!$CX78)-(N$9-$E$9),,,"Facteurs dynamiques")):'Facteurs dynamiques'!$CX78)/('Facteurs dynamiques'!$CX$36*1000),0)) -> 0 | O13: =IF(AND(debut<=2006,O$9<=2006),0,IFERROR(SUMPRODUCT(Projet!$G39:'Projet'!Q39*1000,INDIRECT(ADDRESS(ROW('Facteurs dynamiques'!$C78),COLUMN('Facteurs dynamiques'!$CX78)-(O$9-$E$9),,,"Facteurs dynamiques")):'Facteurs dynamiques'!$CX78)/('Facteurs dynamiques'!$CX$36*1000),0)) -> 0 | P13: =IF(AND(debut<=2006,P$9<=2006),0,IFERROR(SUMPRODUCT(Projet!$G39:'Projet'!R39*1000,INDIRECT(ADDRESS(ROW('Facteurs dynamiques'!$C78),COLUMN('Facteurs dynamiques'!$CX78)-(P$9-$E$9),,,"Facteurs dynamiques")):'Facteurs dynamiques'!$CX78)/('Facteurs dynamiques'!$CX$36*1000),0)) -> 0 | Q13: =IF(AND(debut<=2006,Q$9<=2006),0,IFERROR(SUMPRODUCT(Projet!$G39:'Projet'!S39*1000,INDIRECT(ADDRESS(ROW('Facteurs dynamiques'!$C78),COLUMN('Facteurs dynamiques'!$CX78)-(Q$9-$E$9),,,"Facteurs dynamiques")):'Facteurs dynamiques'!$CX78)/('Facteurs dynamiques'!$CX$36*1000),0)) -> 0 | R13: =IF(AND(debut<=2006,R$9<=2006),0,IFERROR(SUMPRODUCT(Projet!$G39:'Projet'!T39*1000,INDIRECT(ADDRESS(ROW('Facteurs dynamiques'!$C78),COLUMN('Facteurs dynamiques'!$CX78)-(R$9-$E$9),,,"Facteurs dynamiques")):'Facteurs dynamiques'!$CX78)/('Facteurs dynamiques'!$CX$36*1000),0)) -> 0 | S13: =IF(AND(debut<=2006,S$9<=2006),0,IFERROR(SUMPRODUCT(Projet!$G39:'Projet'!U39*1000,INDIRECT(ADDRESS(ROW('Facteurs dynamiques'!$C78),COLUMN('Facteurs dynamiques'!$CX78)-(S$9-$E$9),,,"Facteurs dynamiques")):'Facteurs dynamiques'!$CX78)/('Facteurs dynamiques'!$CX$36*1000),0)) -> 0 | T13: =IF(AND(debut<=2006,T$9<=2006),0,IFERROR(SUMPRODUCT(Projet!$G39:'Projet'!V39*1000,INDIRECT(ADDRESS(ROW('Facteurs dynamiques'!$C78),COLUMN('Facteurs dynamiques'!$CX78)-(T$9-$E$9),,,"Facteurs dynamiques")):'Facteurs dynamiques'!$CX78)/('Facteurs dynamiques'!$CX$36*1000),0)) -> 0 | U13: =IF(AND(debut<=2006,U$9<=2006),0,IFERROR(SUMPRODUCT(Projet!$G39:'Projet'!W39*1000,INDIRECT(ADDRESS(ROW('Facteurs dynamiques'!$C78),COLUMN('Facteurs dynamiques'!$CX78)-(U$9-$E$9),,,"Facteurs dynamiques")):'Facteurs dynamiques'!$CX78)/('Facteurs dynamiques'!$CX$36*1000),0)) -> 0 | V13: =IF(AND(debut<=2006,V$9<=2006),0,IFERROR(SUMPRODUCT(Projet!$G39:'Projet'!X39*1000,INDIRECT(ADDRESS(ROW('Facteurs dynamiques'!$C78),COLUMN('Facteurs dynamiques'!$CX78)-(V$9-$E$9),,,"Facteurs dynamiques")):'Facteurs dynamiques'!$CX78)/('Facteurs dynamiques'!$CX$36*1000),0)) -> 0 | W13: =IF(AND(debut<=2006,W$9<=2006),0,IFERROR(SUMPRODUCT(Projet!$G39:'Projet'!Y39*1000,INDIRECT(ADDRESS(ROW('Facteurs dynamiques'!$C78),COLUMN('Facteurs dynamiques'!$CX78)-(W$9-$E$9),,,"Facteurs dynamiques")):'Facteurs dynamiques'!$CX78)/('Facteurs dynamiques'!$CX$36*1000),0)) -> 0 | X13: =IF(AND(debut<=2006,X$9<=2006),0,IFERROR(SUMPRODUCT(Projet!$G39:'Projet'!Z39*1000,INDIRECT(ADDRESS(ROW('Facteurs dynamiques'!$C78),COLUMN('Facteurs dynamiques'!$CX78)-(X$9-$E$9),,,"Facteurs dynamiques")):'Facteurs dynamiques'!$CX78)/('Facteurs dynamiques'!$CX$36*1000),0)) -> 0 | Y13: =IF(AND(debut<=2006,Y$9<=2006),0,IFERROR(SUMPRODUCT(Projet!$G39:'Projet'!AA39*1000,INDIRECT(ADDRESS(ROW('Facteurs dynamiques'!$C78),COLUMN('Facteurs dynamiques'!$CX78)-(Y$9-$E$9),,,"Facteurs dynamiques")):'Facteurs dynamiques'!$CX78)/('Facteurs dynamiques'!$CX$36*1000),0)) -> 0 | Z13: =IF(AND(debut<=2006,Z$9<=2006),0,IFERROR(SUMPRODUCT(Projet!$G39:'Projet'!AB39*1000,INDIRECT(ADDRESS(ROW('Facteurs dynamiques'!$C78),COLUMN('Facteurs dynamiques'!$CX78)-(Z$9-$E$9),,,"Facteurs dynamiques")):'Facteurs dynamiques'!$CX78)/('Facteurs dynamiques'!$CX$36*1000),0)) -> 0 | AA13: =IF(AND(debut<=2006,AA$9<=2006),0,IFERROR(SUMPRODUCT(Projet!$G39:'Projet'!AC39*1000,INDIRECT(ADDRESS(ROW('Facteurs dynamiques'!$C78),COLUMN('Facteurs dynamiques'!$CX78)-(AA$9-$E$9),,,"Facteurs dynamiques")):'Facteurs dynamiques'!$CX78)/('Facteurs dynamiques'!$CX$36*1000),0)) -> 0 | AB13: =IF(AND(debut<=2006,AB$9<=2006),0,IFERROR(SUMPRODUCT(Projet!$G39:'Projet'!AD39*1000,INDIRECT(ADDRESS(ROW('Facteurs dynamiques'!$C78),COLUMN('Facteurs dynamiques'!$CX78)-(AB$9-$E$9),,,"Facteurs dynamiques")):'Facteurs dynamiques'!$CX78)/('Facteurs dynamiques'!$CX$36*1000),0)) -> 0 | AC13: =IF(AND(debut<=2006,AC$9<=2006),0,IFERROR(SUMPRODUCT(Projet!$G39:'Projet'!AE39*1000,INDIRECT(ADDRESS(ROW('Facteurs dynamiques'!$C78),COLUMN('Facteurs dynamiques'!$CX78)-(AC$9-$E$9),,,"Facteurs dynamiques")):'Facteurs dynamiques'!$CX78)/('Facteurs dynamiques'!$CX$36*1000),0)) -> 0 | AD13: =IF(AND(debut<=2006,AD$9<=2006),0,IFERROR(SUMPRODUCT(Projet!$G39:'Projet'!AF39*1000,INDIRECT(ADDRESS(ROW('Facteurs dynamiques'!$C78),COLUMN('Facteurs dynamiques'!$CX78)-(AD$9-$E$9),,,"Facteurs dynamiques")):'Facteurs dynamiques'!$CX78)/('Facteurs dynamiques'!$CX$36*1000),0)) -> 0 | AE13: =IF(AND(debut<=2006,AE$9<=2006),0,IFERROR(SUMPRODUCT(Projet!$G39:'Projet'!AG39*1000,INDIRECT(ADDRESS(ROW('Facteurs dynamiques'!$C78),COLUMN('Facteurs dynamiques'!$CX78)-(AE$9-$E$9),,,"Facteurs dynamiques")):'Facteurs dynamiques'!$CX78)/('Facteurs dynamiques'!$CX$36*1000),0)) -> 0 | AF13: =IF(AND(debut<=2006,AF$9<=2006),0,IFERROR(SUMPRODUCT(Projet!$G39:'Projet'!AH39*1000,INDIRECT(ADDRESS(ROW('Facteurs dynamiques'!$C78),COLUMN('Facteurs dynamiques'!$CX78)-(AF$9-$E$9),,,"Facteurs dynamiques")):'Facteurs dynamiques'!$CX78)/('Facteurs dynamiques'!$CX$36*1000),0)) -> 0 | AG13: =IF(AND(debut<=2006,AG$9<=2006),0,IFERROR(SUMPRODUCT(Projet!$G39:'Projet'!AI39*1000,INDIRECT(ADDRESS(ROW('Facteurs dynamiques'!$C78),COLUMN('Facteurs dynamiques'!$CX78)-(AG$9-$E$9),,,"Facteurs dynamiques")):'Facteurs dynamiques'!$CX78)/('Facteurs dynamiques'!$CX$36*1000),0)) -> 0 | AH13: =IF(AND(debut<=2006,AH$9<=2006),0,IFERROR(SUMPRODUCT(Projet!$G39:'Projet'!AJ39*1000,INDIRECT(ADDRESS(ROW('Facteurs dynamiques'!$C78),COLUMN('Facteurs dynamiques'!$CX78)-(AH$9-$E$9),,,"Facteurs dynamiques")):'Facteurs dynamiques'!$CX78)/('Facteurs dynamiques'!$CX$36*1000),0)) -> 0 | AI13: =IF(AND(debut<=2006,AI$9<=2006),0,IFERROR(SUMPRODUCT(Projet!$G39:'Projet'!AK39*1000,INDIRECT(ADDRESS(ROW('Facteurs dynamiques'!$C78),COLUMN('Facteurs dynamiques'!$CX78)-(AI$9-$E$9),,,"Facteurs dynamiques")):'Facteurs dynamiques'!$CX78)/('Facteurs dynamiques'!$CX$36*1000),0)) -> 0 | AJ13: =IF(AND(debut<=2006,AJ$9<=2006),0,IFERROR(SUMPRODUCT(Projet!$G39:'Projet'!AL39*1000,INDIRECT(ADDRESS(ROW('Facteurs dynamiques'!$C78),COLUMN('Facteurs dynamiques'!$CX78)-(AJ$9-$E$9),,,"Facteurs dynamiques")):'Facteurs dynamiques'!$CX78)/('Facteurs dynamiques'!$CX$36*1000),0)) -> 0 | AK13: =IF(AND(debut<=2006,AK$9<=2006),0,IFERROR(SUMPRODUCT(Projet!$G39:'Projet'!AM39*1000,INDIRECT(ADDRESS(ROW('Facteurs dynamiques'!$C78),COLUMN('Facteurs dynamiques'!$CX78)-(AK$9-$E$9),,,"Facteurs dynamiques")):'Facteurs dynamiques'!$CX78)/('Facteurs dynamiques'!$CX$36*1000),0)) -> 0 | AL13: =IF(AND(debut<=2006,AL$9<=2006),0,IFERROR(SUMPRODUCT(Projet!$G39:'Projet'!AN39*1000,INDIRECT(ADDRESS(ROW('Facteurs dynamiques'!$C78),COLUMN('Facteurs dynamiques'!$CX78)-(AL$9-$E$9),,,"Facteurs dynamiques")):'Facteurs dynamiques'!$CX78)/('Facteurs dynamiques'!$CX$36*1000),0)) -> 0 | AM13: =IF(AND(debut<=2006,AM$9<=2006),0,IFERROR(SUMPRODUCT(Projet!$G39:'Projet'!AO39*1000,INDIRECT(ADDRESS(ROW('Facteurs dynamiques'!$C78),COLUMN('Facteurs dynamiques'!$CX78)-(AM$9-$E$9),,,"Facteurs dynamiques")):'Facteurs dynamiques'!$CX78)/('Facteurs dynamiques'!$CX$36*1000),0)) -> 0 | AN13: =IF(AND(debut<=2006,AN$9<=2006),0,IFERROR(SUMPRODUCT(Projet!$G39:'Projet'!AP39*1000,INDIRECT(ADDRESS(ROW('Facteurs dynamiques'!$C78),COLUMN('Facteurs dynamiques'!$CX78)-(AN$9-$E$9),,,"Facteurs dynamiques")):'Facteurs dynamiques'!$CX78)/('Facteurs dynamiques'!$CX$36*1000),0)) -> 0 | AO13: =IF(AND(debut<=2006,AO$9<=2006),0,IFERROR(SUMPRODUCT(Projet!$G39:'Projet'!AQ39*1000,INDIRECT(ADDRESS(ROW('Facteurs dynamiques'!$C78),COLUMN('Facteurs dynamiques'!$CX78)-(AO$9-$E$9),,,"Facteurs dynamiques")):'Facteurs dynamiques'!$CX78)/('Facteurs dynamiques'!$CX$36*1000),0)) -> 0 | AP13: =IF(AND(debut<=2006,AP$9<=2006),0,IFERROR(SUMPRODUCT(Projet!$G39:'Projet'!AR39*1000,INDIRECT(ADDRESS(ROW('Facteurs dynamiques'!$C78),COLUMN('Facteurs dynamiques'!$CX78)-(AP$9-$E$9),,,"Facteurs dynamiques")):'Facteurs dynamiques'!$CX78)/('Facteurs dynamiques'!$CX$36*1000),0)) -> 0 | AQ13: =IF(AND(debut<=2006,AQ$9<=2006),0,IFERROR(SUMPRODUCT(Projet!$G39:'Projet'!AS39*1000,INDIRECT(ADDRESS(ROW('Facteurs dynamiques'!$C78),COLUMN('Facteurs dynamiques'!$CX78)-(AQ$9-$E$9),,,"Facteurs dynamiques")):'Facteurs dynamiques'!$CX78)/('Facteurs dynamiques'!$CX$36*1000),0)) -> 0 | AR13: =IF(AND(debut<=2006,AR$9<=2006),0,IFERROR(SUMPRODUCT(Projet!$G39:'Projet'!AT39*1000,INDIRECT(ADDRESS(ROW('Facteurs dynamiques'!$C78),COLUMN('Facteurs dynamiques'!$CX78)-(AR$9-$E$9),,,"Facteurs dynamiques")):'Facteurs dynamiques'!$CX78)/('Facteurs dynamiques'!$CX$36*1000),0)) -> 0 | AS13: =IF(AND(debut<=2006,AS$9<=2006),0,IFERROR(SUMPRODUCT(Projet!$G39:'Projet'!AU39*1000,INDIRECT(ADDRESS(ROW('Facteurs dynamiques'!$C78),COLUMN('Facteurs dynamiques'!$CX78)-(AS$9-$E$9),,,"Facteurs dynamiques")):'Facteurs dynamiques'!$CX78)/('Facteurs dynamiques'!$CX$36*1000),0)) -> 0 | AT13: =IF(AND(debut<=2006,AT$9<=2006),0,IFERROR(SUMPRODUCT(Projet!$G39:'Projet'!AV39*1000,INDIRECT(ADDRESS(ROW('Facteurs dynamiques'!$C78),COLUMN('Facteurs dynamiques'!$CX78)-(AT$9-$E$9),,,"Facteurs dynamiques")):'Facteurs dynamiques'!$CX78)/('Facteurs dynamiques'!$CX$36*1000),0)) -> 0 | AU13: =IF(AND(debut<=2006,AU$9<=2006),0,IFERROR(SUMPRODUCT(Projet!$G39:'Projet'!AW39*1000,INDIRECT(ADDRESS(ROW('Facteurs dynamiques'!$C78),COLUMN('Facteurs dynamiques'!$CX78)-(AU$9-$E$9),,,"Facteurs dynamiques")):'Facteurs dynamiques'!$CX78)/('Facteurs dynamiques'!$CX$36*1000),0)) -> 0 | AV13: =IF(AND(debut<=2006,AV$9<=2006),0,IFERROR(SUMPRODUCT(Projet!$G39:'Projet'!AX39*1000,INDIRECT(ADDRESS(ROW('Facteurs dynamiques'!$C78),COLUMN('Facteurs dynamiques'!$CX78)-(AV$9-$E$9),,,"Facteurs dynamiques")):'Facteurs dynamiques'!$CX78)/('Facteurs dynamiques'!$CX$36*1000),0)) -> 0 | AW13: =IF(AND(debut<=2006,AW$9<=2006),0,IFERROR(SUMPRODUCT(Projet!$G39:'Projet'!AY39*1000,INDIRECT(ADDRESS(ROW('Facteurs dynamiques'!$C78),COLUMN('Facteurs dynamiques'!$CX78)-(AW$9-$E$9),,,"Facteurs dynamiques")):'Facteurs dynamiques'!$CX78)/('Facteurs dynamiques'!$CX$36*1000),0)) -> 0 | AX13: =IF(AND(debut<=2006,AX$9<=2006),0,IFERROR(SUMPRODUCT(Projet!$G39:'Projet'!AZ39*1000,INDIRECT(ADDRESS(ROW('Facteurs dynamiques'!$C78),COLUMN('Facteurs dynamiques'!$CX78)-(AX$9-$E$9),,,"Facteurs dynamiques")):'Facteurs dynamiques'!$CX78)/('Facteurs dynamiques'!$CX$36*1000),0)) -> 0 | AY13: =IF(AND(debut<=2006,AY$9<=2006),0,IFERROR(SUMPRODUCT(Projet!$G39:'Projet'!BA39*1000,INDIRECT(ADDRESS(ROW('Facteurs dynamiques'!$C78),COLUMN('Facteurs dynamiques'!$CX78)-(AY$9-$E$9),,,"Facteurs dynamiques")):'Facteurs dynamiques'!$CX78)/('Facteurs dynamiques'!$CX$36*1000),0)) -> 0 | AZ13: =IF(AND(debut<=2006,AZ$9<=2006),0,IFERROR(SUMPRODUCT(Projet!$G39:'Projet'!BB39*1000,INDIRECT(ADDRESS(ROW('Facteurs dynamiques'!$C78),COLUMN('Facteurs dynamiques'!$CX78)-(AZ$9-$E$9),,,"Facteurs dynamiques")):'Facteurs dynamiques'!$CX78)/('Facteurs dynamiques'!$CX$36*1000),0)) -> 0 | BA13: =IF(AND(debut<=2006,BA$9<=2006),0,IFERROR(SUMPRODUCT(Projet!$G39:'Projet'!BC39*1000,INDIRECT(ADDRESS(ROW('Facteurs dynamiques'!$C78),COLUMN('Facteurs dynamiques'!$CX78)-(BA$9-$E$9),,,"Facteurs dynamiques")):'Facteurs dynamiques'!$CX78)/('Facteurs dynamiques'!$CX$36*1000),0)) -> 0 | BB13: =IF(AND(debut<=2006,BB$9<=2006),0,IFERROR(SUMPRODUCT(Projet!$G39:'Projet'!BD39*1000,INDIRECT(ADDRESS(ROW('Facteurs dynamiques'!$C78),COLUMN('Facteurs dynamiques'!$CX78)-(BB$9-$E$9),,,"Facteurs dynamiques")):'Facteurs dynamiques'!$CX78)/('Facteurs dynamiques'!$CX$36*1000),0)) -> 0 | BC13: =IF(AND(debut<=2006,BC$9<=2006),0,IFERROR(SUMPRODUCT(Projet!$G39:'Projet'!BE39*1000,INDIRECT(ADDRESS(ROW('Facteurs dynamiques'!$C78),COLUMN('Facteurs dynamiques'!$CX78)-(BC$9-$E$9),,,"Facteurs dynamiques")):'Facteurs dynamiques'!$CX78)/('Facteurs dynamiques'!$CX$36*1000),0)) -> 0 | BD13: =IF(AND(debut<=2006,BD$9<=2006),0,IFERROR(SUMPRODUCT(Projet!$G39:'Projet'!BF39*1000,INDIRECT(ADDRESS(ROW('Facteurs dynamiques'!$C78),COLUMN('Facteurs dynamiques'!$CX78)-(BD$9-$E$9),,,"Facteurs dynamiques")):'Facteurs dynamiques'!$CX78)/('Facteurs dynamiques'!$CX$36*1000),0)) -> 0 | BE13: =IF(AND(debut<=2006,BE$9<=2006),0,IFERROR(SUMPRODUCT(Projet!$G39:'Projet'!BG39*1000,INDIRECT(ADDRESS(ROW('Facteurs dynamiques'!$C78),COLUMN('Facteurs dynamiques'!$CX78)-(BE$9-$E$9),,,"Facteurs dynamiques")):'Facteurs dynamiques'!$CX78)/('Facteurs dynamiques'!$CX$36*1000),0)) -> 0 | BF13: =IF(AND(debut<=2006,BF$9<=2006),0,IFERROR(SUMPRODUCT(Projet!$G39:'Projet'!BH39*1000,INDIRECT(ADDRESS(ROW('Facteurs dynamiques'!$C78),COLUMN('Facteurs dynamiques'!$CX78)-(BF$9-$E$9),,,"Facteurs dynamiques")):'Facteurs dynamiques'!$CX78)/('Facteurs dynamiques'!$CX$36*1000),0)) -> 0 | BG13: =IF(AND(debut<=2006,BG$9<=2006),0,IFERROR(SUMPRODUCT(Projet!$G39:'Projet'!BI39*1000,INDIRECT(ADDRESS(ROW('Facteurs dynamiques'!$C78),COLUMN('Facteurs dynamiques'!$CX78)-(BG$9-$E$9),,,"Facteurs dynamiques")):'Facteurs dynamiques'!$CX78)/('Facteurs dynamiques'!$CX$36*1000),0)) -> 0 | BH13: =IF(AND(debut<=2006,BH$9<=2006),0,IFERROR(SUMPRODUCT(Projet!$G39:'Projet'!BJ39*1000,INDIRECT(ADDRESS(ROW('Facteurs dynamiques'!$C78),COLUMN('Facteurs dynamiques'!$CX78)-(BH$9-$E$9),,,"Facteurs dynamiques")):'Facteurs dynamiques'!$CX78)/('Facteurs dynamiques'!$CX$36*1000),0)) -> 0 | BI13: =IF(AND(debut<=2006,BI$9<=2006),0,IFERROR(SUMPRODUCT(Projet!$G39:'Projet'!BK39*1000,INDIRECT(ADDRESS(ROW('Facteurs dynamiques'!$C78),COLUMN('Facteurs dynamiques'!$CX78)-(BI$9-$E$9),,,"Facteurs dynamiques")):'Facteurs dynamiques'!$CX78)/('Facteurs dynamiques'!$CX$36*1000),0)) -> 0 | BJ13: =IF(AND(debut<=2006,BJ$9<=2006),0,IFERROR(SUMPRODUCT(Projet!$G39:'Projet'!BL39*1000,INDIRECT(ADDRESS(ROW('Facteurs dynamiques'!$C78),COLUMN('Facteurs dynamiques'!$CX78)-(BJ$9-$E$9),,,"Facteurs dynamiques")):'Facteurs dynamiques'!$CX78)/('Facteurs dynamiques'!$CX$36*1000),0)) -> 0 | BK13: =IF(AND(debut<=2006,BK$9<=2006),0,IFERROR(SUMPRODUCT(Projet!$G39:'Projet'!BM39*1000,INDIRECT(ADDRESS(ROW('Facteurs dynamiques'!$C78),COLUMN('Facteurs dynamiques'!$CX78)-(BK$9-$E$9),,,"Facteurs dynamiques")):'Facteurs dynamiques'!$CX78)/('Facteurs dynamiques'!$CX$36*1000),0)) -> 0 | BL13: =IF(AND(debut<=2006,BL$9<=2006),0,IFERROR(SUMPRODUCT(Projet!$G39:'Projet'!BN39*1000,INDIRECT(ADDRESS(ROW('Facteurs dynamiques'!$C78),COLUMN('Facteurs dynamiques'!$CX78)-(BL$9-$E$9),,,"Facteurs dynamiques")):'Facteurs dynamiques'!$CX78)/('Facteurs dynamiques'!$CX$36*1000),0)) -> 0 | BM13: =IF(AND(debut<=2006,BM$9<=2006),0,IFERROR(SUMPRODUCT(Projet!$G39:'Projet'!BO39*1000,INDIRECT(ADDRESS(ROW('Facteurs dynamiques'!$C78),COLUMN('Facteurs dynamiques'!$CX78)-(BM$9-$E$9),,,"Facteurs dynamiques")):'Facteurs dynamiques'!$CX78)/('Facteurs dynamiques'!$CX$36*1000),0)) -> 0 | BN13: =IF(AND(debut<=2006,BN$9<=2006),0,IFERROR(SUMPRODUCT(Projet!$G39:'Projet'!BP39*1000,INDIRECT(ADDRESS(ROW('Facteurs dynamiques'!$C78),COLUMN('Facteurs dynamiques'!$CX78)-(BN$9-$E$9),,,"Facteurs dynamiques")):'Facteurs dynamiques'!$CX78)/('Facteurs dynamiques'!$CX$36*1000),0)) -> 0 | BO13: =IF(AND(debut<=2006,BO$9<=2006),0,IFERROR(SUMPRODUCT(Projet!$G39:'Projet'!BQ39*1000,INDIRECT(ADDRESS(ROW('Facteurs dynamiques'!$C78),COLUMN('Facteurs dynamiques'!$CX78)-(BO$9-$E$9),,,"Facteurs dynamiques")):'Facteurs dynamiques'!$CX78)/('Facteurs dynamiques'!$CX$36*1000),0)) -> 0 | BP13: =IF(AND(debut<=2006,BP$9<=2006),0,IFERROR(SUMPRODUCT(Projet!$G39:'Projet'!BR39*1000,INDIRECT(ADDRESS(ROW('Facteurs dynamiques'!$C78),COLUMN('Facteurs dynamiques'!$CX78)-(BP$9-$E$9),,,"Facteurs dynamiques")):'Facteurs dynamiques'!$CX78)/('Facteurs dynamiques'!$CX$36*1000),0)) -> 0 | BQ13: =IF(AND(debut<=2006,BQ$9<=2006),0,IFERROR(SUMPRODUCT(Projet!$G39:'Projet'!BS39*1000,INDIRECT(ADDRESS(ROW('Facteurs dynamiques'!$C78),COLUMN('Facteurs dynamiques'!$CX78)-(BQ$9-$E$9),,,"Facteurs dynamiques")):'Facteurs dynamiques'!$CX78)/('Facteurs dynamiques'!$CX$36*1000),0)) -> 0 | BR13: =IF(AND(debut<=2006,BR$9<=2006),0,IFERROR(SUMPRODUCT(Projet!$G39:'Projet'!BT39*1000,INDIRECT(ADDRESS(ROW('Facteurs dynamiques'!$C78),COLUMN('Facteurs dynamiques'!$CX78)-(BR$9-$E$9),,,"Facteurs dynamiques")):'Facteurs dynamiques'!$CX78)/('Facteurs dynamiques'!$CX$36*1000),0)) -> 0 | BS13: =IF(AND(debut<=2006,BS$9<=2006),0,IFERROR(SUMPRODUCT(Projet!$G39:'Projet'!BU39*1000,INDIRECT(ADDRESS(ROW('Facteurs dynamiques'!$C78),COLUMN('Facteurs dynamiques'!$CX78)-(BS$9-$E$9),,,"Facteurs dynamiques")):'Facteurs dynamiques'!$CX78)/('Facteurs dynamiques'!$CX$36*1000),0)) -> 0 | BT13: =IF(AND(debut<=2006,BT$9<=2006),0,IFERROR(SUMPRODUCT(Projet!$G39:'Projet'!BV39*1000,INDIRECT(ADDRESS(ROW('Facteurs dynamiques'!$C78),COLUMN('Facteurs dynamiques'!$CX78)-(BT$9-$E$9),,,"Facteurs dynamiques")):'Facteurs dynamiques'!$CX78)/('Facteurs dynamiques'!$CX$36*1000),0)) -> 0 | BU13: =IF(AND(debut<=2006,BU$9<=2006),0,IFERROR(SUMPRODUCT(Projet!$G39:'Projet'!BW39*1000,INDIRECT(ADDRESS(ROW('Facteurs dynamiques'!$C78),COLUMN('Facteurs dynamiques'!$CX78)-(BU$9-$E$9),,,"Facteurs dynamiques")):'Facteurs dynamiques'!$CX78)/('Facteurs dynamiques'!$CX$36*1000),0)) -> 0 | BV13: =IF(AND(debut<=2006,BV$9<=2006),0,IFERROR(SUMPRODUCT(Projet!$G39:'Projet'!BX39*1000,INDIRECT(ADDRESS(ROW('Facteurs dynamiques'!$C78),COLUMN('Facteurs dynamiques'!$CX78)-(BV$9-$E$9),,,"Facteurs dynamiques")):'Facteurs dynamiques'!$CX78)/('Facteurs dynamiques'!$CX$36*1000),0)) -> 0 | BW13: =IF(AND(debut<=2006,BW$9<=2006),0,IFERROR(SUMPRODUCT(Projet!$G39:'Projet'!BY39*1000,INDIRECT(ADDRESS(ROW('Facteurs dynamiques'!$C78),COLUMN('Facteurs dynamiques'!$CX78)-(BW$9-$E$9),,,"Facteurs dynamiques")):'Facteurs dynamiques'!$CX78)/('Facteurs dynamiques'!$CX$36*1000),0)) -> 0 | BX13: =IF(AND(debut<=2006,BX$9<=2006),0,IFERROR(SUMPRODUCT(Projet!$G39:'Projet'!BZ39*1000,INDIRECT(ADDRESS(ROW('Facteurs dynamiques'!$C78),COLUMN('Facteurs dynamiques'!$CX78)-(BX$9-$E$9),,,"Facteurs dynamiques")):'Facteurs dynamiques'!$CX78)/('Facteurs dynamiques'!$CX$36*1000),0)) -> 0 | BY13: =IF(AND(debut<=2006,BY$9<=2006),0,IFERROR(SUMPRODUCT(Projet!$G39:'Projet'!CA39*1000,INDIRECT(ADDRESS(ROW('Facteurs dynamiques'!$C78),COLUMN('Facteurs dynamiques'!$CX78)-(BY$9-$E$9),,,"Facteurs dynamiques")):'Facteurs dynamiques'!$CX78)/('Facteurs dynamiques'!$CX$36*1000),0)) -> 0 | BZ13: =IF(AND(debut<=2006,BZ$9<=2006),0,IFERROR(SUMPRODUCT(Projet!$G39:'Projet'!CB39*1000,INDIRECT(ADDRESS(ROW('Facteurs dynamiques'!$C78),COLUMN('Facteurs dynamiques'!$CX78)-(BZ$9-$E$9),,,"Facteurs dynamiques")):'Facteurs dynamiques'!$CX78)/('Facteurs dynamiques'!$CX$36*1000),0)) -> 0 | CA13: =IF(AND(debut<=2006,CA$9<=2006),0,IFERROR(SUMPRODUCT(Projet!$G39:'Projet'!CC39*1000,INDIRECT(ADDRESS(ROW('Facteurs dynamiques'!$C78),COLUMN('Facteurs dynamiques'!$CX78)-(CA$9-$E$9),,,"Facteurs dynamiques")):'Facteurs dynamiques'!$CX78)/('Facteurs dynamiques'!$CX$36*1000),0)) -> 0 | CB13: =IF(AND(debut<=2006,CB$9<=2006),0,IFERROR(SUMPRODUCT(Projet!$G39:'Projet'!CD39*1000,INDIRECT(ADDRESS(ROW('Facteurs dynamiques'!$C78),COLUMN('Facteurs dynamiques'!$CX78)-(CB$9-$E$9),,,"Facteurs dynamiques")):'Facteurs dynamiques'!$CX78)/('Facteurs dynamiques'!$CX$36*1000),0)) -> 0 | CC13: =IF(AND(debut<=2006,CC$9<=2006),0,IFERROR(SUMPRODUCT(Projet!$G39:'Projet'!CE39*1000,INDIRECT(ADDRESS(ROW('Facteurs dynamiques'!$C78),COLUMN('Facteurs dynamiques'!$CX78)-(CC$9-$E$9),,,"Facteurs dynamiques")):'Facteurs dynamiques'!$CX78)/('Facteurs dynamiques'!$CX$36*1000),0)) -> 0 | CD13: =IF(AND(debut<=2006,CD$9<=2006),0,IFERROR(SUMPRODUCT(Projet!$G39:'Projet'!CF39*1000,INDIRECT(ADDRESS(ROW('Facteurs dynamiques'!$C78),COLUMN('Facteurs dynamiques'!$CX78)-(CD$9-$E$9),,,"Facteurs dynamiques")):'Facteurs dynamiques'!$CX78)/('Facteurs dynamiques'!$CX$36*1000),0)) -> 0 | CE13: =IF(AND(debut<=2006,CE$9<=2006),0,IFERROR(SUMPRODUCT(Projet!$G39:'Projet'!CG39*1000,INDIRECT(ADDRESS(ROW('Facteurs dynamiques'!$C78),COLUMN('Facteurs dynamiques'!$CX78)-(CE$9-$E$9),,,"Facteurs dynamiques")):'Facteurs dynamiques'!$CX78)/('Facteurs dynamiques'!$CX$36*1000),0)) -> 0 | CF13: =IF(AND(debut<=2006,CF$9<=2006),0,IFERROR(SUMPRODUCT(Projet!$G39:'Projet'!CH39*1000,INDIRECT(ADDRESS(ROW('Facteurs dynamiques'!$C78),COLUMN('Facteurs dynamiques'!$CX78)-(CF$9-$E$9),,,"Facteurs dynamiques")):'Facteurs dynamiques'!$CX78)/('Facteurs dynamiques'!$CX$36*1000),0)) -> 0 | CG13: =IF(AND(debut<=2006,CG$9<=2006),0,IFERROR(SUMPRODUCT(Projet!$G39:'Projet'!CI39*1000,INDIRECT(ADDRESS(ROW('Facteurs dynamiques'!$C78),COLUMN('Facteurs dynamiques'!$CX78)-(CG$9-$E$9),,,"Facteurs dynamiques")):'Facteurs dynamiques'!$CX78)/('Facteurs dynamiques'!$CX$36*1000),0)) -> 0 | CH13: =IF(AND(debut<=2006,CH$9<=2006),0,IFERROR(SUMPRODUCT(Projet!$G39:'Projet'!CJ39*1000,INDIRECT(ADDRESS(ROW('Facteurs dynamiques'!$C78),COLUMN('Facteurs dynamiques'!$CX78)-(CH$9-$E$9),,,"Facteurs dynamiques")):'Facteurs dynamiques'!$CX78)/('Facteurs dynamiques'!$CX$36*1000),0)) -> 0 | CI13: =IF(AND(debut<=2006,CI$9<=2006),0,IFERROR(SUMPRODUCT(Projet!$G39:'Projet'!CK39*1000,INDIRECT(ADDRESS(ROW('Facteurs dynamiques'!$C78),COLUMN('Facteurs dynamiques'!$CX78)-(CI$9-$E$9),,,"Facteurs dynamiques")):'Facteurs dynamiques'!$CX78)/('Facteurs dynamiques'!$CX$36*1000),0)) -> 0 | CJ13: =IF(AND(debut<=2006,CJ$9<=2006),0,IFERROR(SUMPRODUCT(Projet!$G39:'Projet'!CL39*1000,INDIRECT(ADDRESS(ROW('Facteurs dynamiques'!$C78),COLUMN('Facteurs dynamiques'!$CX78)-(CJ$9-$E$9),,,"Facteurs dynamiques")):'Facteurs dynamiques'!$CX78)/('Facteurs dynamiques'!$CX$36*1000),0)) -> 0 | CK13: =IF(AND(debut<=2006,CK$9<=2006),0,IFERROR(SUMPRODUCT(Projet!$G39:'Projet'!CM39*1000,INDIRECT(ADDRESS(ROW('Facteurs dynamiques'!$C78),COLUMN('Facteurs dynamiques'!$CX78)-(CK$9-$E$9),,,"Facteurs dynamiques")):'Facteurs dynamiques'!$CX78)/('Facteurs dynamiques'!$CX$36*1000),0)) -> 0 | CL13: =IF(AND(debut<=2006,CL$9<=2006),0,IFERROR(SUMPRODUCT(Projet!$G39:'Projet'!CN39*1000,INDIRECT(ADDRESS(ROW('Facteurs dynamiques'!$C78),COLUMN('Facteurs dynamiques'!$CX78)-(CL$9-$E$9),,,"Facteurs dynamiques")):'Facteurs dynamiques'!$CX78)/('Facteurs dynamiques'!$CX$36*1000),0)) -> 0 | CM13: =IF(AND(debut<=2006,CM$9<=2006),0,IFERROR(SUMPRODUCT(Projet!$G39:'Projet'!CO39*1000,INDIRECT(ADDRESS(ROW('Facteurs dynamiques'!$C78),COLUMN('Facteurs dynamiques'!$CX78)-(CM$9-$E$9),,,"Facteurs dynamiques")):'Facteurs dynamiques'!$CX78)/('Facteurs dynamiques'!$CX$36*1000),0)) -> 0 | CN13: =IF(AND(debut<=2006,CN$9<=2006),0,IFERROR(SUMPRODUCT(Projet!$G39:'Projet'!CP39*1000,INDIRECT(ADDRESS(ROW('Facteurs dynamiques'!$C78),COLUMN('Facteurs dynamiques'!$CX78)-(CN$9-$E$9),,,"Facteurs dynamiques")):'Facteurs dynamiques'!$CX78)/('Facteurs dynamiques'!$CX$36*1000),0)) -> 0 | CO13: =IF(AND(debut<=2006,CO$9<=2006),0,IFERROR(SUMPRODUCT(Projet!$G39:'Projet'!CQ39*1000,INDIRECT(ADDRESS(ROW('Facteurs dynamiques'!$C78),COLUMN('Facteurs dynamiques'!$CX78)-(CO$9-$E$9),,,"Facteurs dynamiques")):'Facteurs dynamiques'!$CX78)/('Facteurs dynamiques'!$CX$36*1000),0)) -> 0 | CP13: =IF(AND(debut<=2006,CP$9<=2006),0,IFERROR(SUMPRODUCT(Projet!$G39:'Projet'!CR39*1000,INDIRECT(ADDRESS(ROW('Facteurs dynamiques'!$C78),COLUMN('Facteurs dynamiques'!$CX78)-(CP$9-$E$9),,,"Facteurs dynamiques")):'Facteurs dynamiques'!$CX78)/('Facteurs dynamiques'!$CX$36*1000),0)) -> 0 | CQ13: =IF(AND(debut<=2006,CQ$9<=2006),0,IFERROR(SUMPRODUCT(Projet!$G39:'Projet'!CS39*1000,INDIRECT(ADDRESS(ROW('Facteurs dynamiques'!$C78),COLUMN('Facteurs dynamiques'!$CX78)-(CQ$9-$E$9),,,"Facteurs dynamiques")):'Facteurs dynamiques'!$CX78)/('Facteurs dynamiques'!$CX$36*1000),0)) -> 0 | CR13: =IF(AND(debut<=2006,CR$9<=2006),0,IFERROR(SUMPRODUCT(Projet!$G39:'Projet'!CT39*1000,INDIRECT(ADDRESS(ROW('Facteurs dynamiques'!$C78),COLUMN('Facteurs dynamiques'!$CX78)-(CR$9-$E$9),,,"Facteurs dynamiques")):'Facteurs dynamiques'!$CX78)/('Facteurs dynamiques'!$CX$36*1000),0)) -> 0 | CS13: =IF(AND(debut<=2006,CS$9<=2006),0,IFERROR(SUMPRODUCT(Projet!$G39:'Projet'!CU39*1000,INDIRECT(ADDRESS(ROW('Facteurs dynamiques'!$C78),COLUMN('Facteurs dynamiques'!$CX78)-(CS$9-$E$9),,,"Facteurs dynamiques")):'Facteurs dynamiques'!$CX78)/('Facteurs dynamiques'!$CX$36*1000),0)) -> 0 | CT13: =IF(AND(debut<=2006,CT$9<=2006),0,IFERROR(SUMPRODUCT(Projet!$G39:'Projet'!CV39*1000,INDIRECT(ADDRESS(ROW('Facteurs dynamiques'!$C78),COLUMN('Facteurs dynamiques'!$CX78)-(CT$9-$E$9),,,"Facteurs dynamiques")):'Facteurs dynamiques'!$CX78)/('Facteurs dynamiques'!$CX$36*1000),0)) -> 0 | CU13: =IF(AND(debut<=2006,CU$9<=2006),0,IFERROR(SUMPRODUCT(Projet!$G39:'Projet'!CW39*1000,INDIRECT(ADDRESS(ROW('Facteurs dynamiques'!$C78),COLUMN('Facteurs dynamiques'!$CX78)-(CU$9-$E$9),,,"Facteurs dynamiques")):'Facteurs dynamiques'!$CX78)/('Facteurs dynamiques'!$CX$36*1000),0)) -> 0 | CV13: =IF(AND(debut<=2006,CV$9<=2006),0,IFERROR(SUMPRODUCT(Projet!$G39:'Projet'!CX39*1000,INDIRECT(ADDRESS(ROW('Facteurs dynamiques'!$C78),COLUMN('Facteurs dynamiques'!$CX78)-(CV$9-$E$9),,,"Facteurs dynamiques")):'Facteurs dynamiques'!$CX78)/('Facteurs dynamiques'!$CX$36*1000),0)) -> 0 | CW13: =IF(AND(debut<=2006,CW$9<=2006),0,IFERROR(SUMPRODUCT(Projet!$G39:'Projet'!CY39*1000,INDIRECT(ADDRESS(ROW('Facteurs dynamiques'!$C78),COLUMN('Facteurs dynamiques'!$CX78)-(CW$9-$E$9),,,"Facteurs dynamiques")):'Facteurs dynamiques'!$CX78)/('Facteurs dynamiques'!$CX$36*1000),0)) -> 0 | CX13: =IF(AND(debut<=2006,CX$9<=2006),0,IFERROR(SUMPRODUCT(Projet!$G39:'Projet'!CZ39*1000,INDIRECT(ADDRESS(ROW('Facteurs dynamiques'!$C78),COLUMN('Facteurs dynamiques'!$CX78)-(CX$9-$E$9),,,"Facteurs dynamiques")):'Facteurs dynamiques'!$CX78)/('Facteurs dynamiques'!$CX$36*1000),0)) -> 0 | CY13: =IF(AND(debut<=2006,CY$9<=2006),0,IFERROR(SUMPRODUCT(Projet!$G39:'Projet'!DA39*1000,INDIRECT(ADDRESS(ROW('Facteurs dynamiques'!$C78),COLUMN('Facteurs dynamiques'!$CX78)-(CY$9-$E$9),,,"Facteurs dynamiques")):'Facteurs dynamiques'!$CX78)/('Facteurs dynamiques'!$CX$36*1000),0)) -> 0 | CZ13: =IF(AND(debut<=2006,CZ$9<=2006),0,IFERROR(SUMPRODUCT(Projet!$G39:'Projet'!DB39*1000,INDIRECT(ADDRESS(ROW('Facteurs dynamiques'!$C78),COLUMN('Facteurs dynamiques'!$CX78)-(CZ$9-$E$9),,,"Facteurs dynamiques")):'Facteurs dynamiques'!$CX78)/('Facteurs dynamiques'!$CX$36*1000),0)) -> 0 | DA13: =IF(AND(debut<=2006,DA$9<=2006),0,IFERROR(SUMPRODUCT(Projet!$G39:'Projet'!DC39*1000,INDIRECT(ADDRESS(ROW('Facteurs dynamiques'!$C78),COLUMN('Facteurs dynamiques'!$CX78)-(DA$9-$E$9),,,"Facteurs dynamiques")):'Facteurs dynamiques'!$CX78)/('Facteurs dynamiques'!$CX$36*1000),0)) -> 0 | DB13: =IF(AND(debut<=2006,DB$9<=2006),0,IFERROR(SUMPRODUCT(Projet!$G39:'Projet'!DD39*1000,INDIRECT(ADDRESS(ROW('Facteurs dynamiques'!$C78),COLUMN('Facteurs dynamiques'!$CX78)-(DB$9-$E$9),,,"Facteurs dynamiques")):'Facteurs dynamiques'!$CX78)/('Facteurs dynamiques'!$CX$36*1000),0)) -> 0 | DC13: =IF(AND(debut<=2006,DC$9<=2006),0,IFERROR(SUMPRODUCT(Projet!$G39:'Projet'!DE39*1000,INDIRECT(ADDRESS(ROW('Facteurs dynamiques'!$C78),COLUMN('Facteurs dynamiques'!$CX78)-(DC$9-$E$9),,,"Facteurs dynamiques")):'Facteurs dynamiques'!$CX78)/('Facteurs dynamiques'!$CX$36*1000),0)) -> 0 | DD13: =IF(AND(debut<=2006,DD$9<=2006),0,IFERROR(SUMPRODUCT(Projet!$G39:'Projet'!DF39*1000,INDIRECT(ADDRESS(ROW('Facteurs dynamiques'!$C78),COLUMN('Facteurs dynamiques'!$CX78)-(DD$9-$E$9),,,"Facteurs dynamiques")):'Facteurs dynamiques'!$CX78)/('Facteurs dynamiques'!$CX$36*1000),0)) -> 0 | DE13: =IF(AND(debut<=2006,DE$9<=2006),0,IFERROR(SUMPRODUCT(Projet!$G39:'Projet'!DG39*1000,INDIRECT(ADDRESS(ROW('Facteurs dynamiques'!$C78),COLUMN('Facteurs dynamiques'!$CX78)-(DE$9-$E$9),,,"Facteurs dynamiques")):'Facteurs dynamiques'!$CX78)/('Facteurs dynamiques'!$CX$36*1000),0)) -> 0 | DF13: =IF(AND(debut<=2006,DF$9<=2006),0,IFERROR(SUMPRODUCT(Projet!$G39:'Projet'!DH39*1000,INDIRECT(ADDRESS(ROW('Facteurs dynamiques'!$C78),COLUMN('Facteurs dynamiques'!$CX78)-(DF$9-$E$9),,,"Facteurs dynamiques")):'Facteurs dynamiques'!$CX78)/('Facteurs dynamiques'!$CX$36*1000),0)) -> 0 | DG13: =IF(AND(debut<=2006,DG$9<=2006),0,IFERROR(SUMPRODUCT(Projet!$G39:'Projet'!DI39*1000,INDIRECT(ADDRESS(ROW('Facteurs dynamiques'!$C78),COLUMN('Facteurs dynamiques'!$CX78)-(DG$9-$E$9),,,"Facteurs dynamiques")):'Facteurs dynamiques'!$CX78)/('Facteurs dynamiques'!$CX$36*1000),0)) -> 0 | DH13: =IF(AND(debut<=2006,DH$9<=2006),0,IFERROR(SUMPRODUCT(Projet!$G39:'Projet'!DJ39*1000,INDIRECT(ADDRESS(ROW('Facteurs dynamiques'!$C78),COLUMN('Facteurs dynamiques'!$CX78)-(DH$9-$E$9),,,"Facteurs dynamiques")):'Facteurs dynamiques'!$CX78)/('Facteurs dynamiques'!$CX$36*1000),0)) -> 0 | DI13: =IF(AND(debut<=2006,DI$9<=2006),0,IFERROR(SUMPRODUCT(Projet!$G39:'Projet'!DK39*1000,INDIRECT(ADDRESS(ROW('Facteurs dynamiques'!$C78),COLUMN('Facteurs dynamiques'!$CX78)-(DI$9-$E$9),,,"Facteurs dynamiques")):'Facteurs dynamiques'!$CX78)/('Facteurs dynamiques'!$CX$36*1000),0)) -> 0 | DJ13: =IF(AND(debut<=2006,DJ$9<=2006),0,IFERROR(SUMPRODUCT(Projet!$G39:'Projet'!DL39*1000,INDIRECT(ADDRESS(ROW('Facteurs dynamiques'!$C78),COLUMN('Facteurs dynamiques'!$CX78)-(DJ$9-$E$9),,,"Facteurs dynamiques")):'Facteurs dynamiques'!$CX78)/('Facteurs dynamiques'!$CX$36*1000),0)) -> 0 | DK13: =IF(AND(debut<=2006,DK$9<=2006),0,IFERROR(SUMPRODUCT(Projet!$G39:'Projet'!DM39*1000,INDIRECT(ADDRESS(ROW('Facteurs dynamiques'!$C78),COLUMN('Facteurs dynamiques'!$CX78)-(DK$9-$E$9),,,"Facteurs dynamiques")):'Facteurs dynamiques'!$CX78)/('Facteurs dynamiques'!$CX$36*1000),0)) -> 0 | DL13: =IF(AND(debut<=2006,DL$9<=2006),0,IFERROR(SUMPRODUCT(Projet!$G39:'Projet'!DN39*1000,INDIRECT(ADDRESS(ROW('Facteurs dynamiques'!$C78),COLUMN('Facteurs dynamiques'!$CX78)-(DL$9-$E$9),,,"Facteurs dynamiques")):'Facteurs dynamiques'!$CX78)/('Facteurs dynamiques'!$CX$36*1000),0)) -> 0 | DM13: =IF(AND(debut<=2006,DM$9<=2006),0,IFERROR(SUMPRODUCT(Projet!$G39:'Projet'!DO39*1000,INDIRECT(ADDRESS(ROW('Facteurs dynamiques'!$C78),COLUMN('Facteurs dynamiques'!$CX78)-(DM$9-$E$9),,,"Facteurs dynamiques")):'Facteurs dynamiques'!$CX78)/('Facteurs dynamiques'!$CX$36*1000),0)) -> 0 | DN13: =IF(AND(debut<=2006,DN$9<=2006),0,IFERROR(SUMPRODUCT(Projet!$G39:'Projet'!DP39*1000,INDIRECT(ADDRESS(ROW('Facteurs dynamiques'!$C78),COLUMN('Facteurs dynamiques'!$CX78)-(DN$9-$E$9),,,"Facteurs dynamiques")):'Facteurs dynamiques'!$CX78)/('Facteurs dynamiques'!$CX$36*1000),0)) -> 0 | DO13: =IF(AND(debut<=2006,DO$9<=2006),0,IFERROR(SUMPRODUCT(Projet!$G39:'Projet'!DQ39*1000,INDIRECT(ADDRESS(ROW('Facteurs dynamiques'!$C78),COLUMN('Facteurs dynamiques'!$CX78)-(DO$9-$E$9),,,"Facteurs dynamiques")):'Facteurs dynamiques'!$CX78)/('Facteurs dynamiques'!$CX$36*1000),0)) -> 0 | DP13: =IF(AND(debut<=2006,DP$9<=2006),0,IFERROR(SUMPRODUCT(Projet!$G39:'Projet'!DR39*1000,INDIRECT(ADDRESS(ROW('Facteurs dynamiques'!$C78),COLUMN('Facteurs dynamiques'!$CX78)-(DP$9-$E$9),,,"Facteurs dynamiques")):'Facteurs dynamiques'!$CX78)/('Facteurs dynamiques'!$CX$36*1000),0)) -> 0 | DQ13: =IF(AND(debut<=2006,DQ$9<=2006),0,IFERROR(SUMPRODUCT(Projet!$G39:'Projet'!DS39*1000,INDIRECT(ADDRESS(ROW('Facteurs dynamiques'!$C78),COLUMN('Facteurs dynamiques'!$CX78)-(DQ$9-$E$9),,,"Facteurs dynamiques")):'Facteurs dynamiques'!$CX78)/('Facteurs dynamiques'!$CX$36*1000),0)) -> 0 | DR13: =IF(AND(debut<=2006,DR$9<=2006),0,IFERROR(SUMPRODUCT(Projet!$G39:'Projet'!DT39*1000,INDIRECT(ADDRESS(ROW('Facteurs dynamiques'!$C78),COLUMN('Facteurs dynamiques'!$CX78)-(DR$9-$E$9),,,"Facteurs dynamiques")):'Facteurs dynamiques'!$CX78)/('Facteurs dynamiques'!$CX$36*1000),0)) -> 0 | DS13: =IF(AND(debut<=2006,DS$9<=2006),0,IFERROR(SUMPRODUCT(Projet!$G39:'Projet'!DU39*1000,INDIRECT(ADDRESS(ROW('Facteurs dynamiques'!$C78),COLUMN('Facteurs dynamiques'!$CX78)-(DS$9-$E$9),,,"Facteurs dynamiques")):'Facteurs dynamiques'!$CX78)/('Facteurs dynamiques'!$CX$36*1000),0)) -> 0 | DT13: =IF(AND(debut<=2006,DT$9<=2006),0,IFERROR(SUMPRODUCT(Projet!$G39:'Projet'!DV39*1000,INDIRECT(ADDRESS(ROW('Facteurs dynamiques'!$C78),COLUMN('Facteurs dynamiques'!$CX78)-(DT$9-$E$9),,,"Facteurs dynamiques")):'Facteurs dynamiques'!$CX78)/('Facteurs dynamiques'!$CX$36*1000),0)) -> 0 | DU13: =IF(AND(debut<=2006,DU$9<=2006),0,IFERROR(SUMPRODUCT(Projet!$G39:'Projet'!DW39*1000,INDIRECT(ADDRESS(ROW('Facteurs dynamiques'!$C78),COLUMN('Facteurs dynamiques'!$CX78)-(DU$9-$E$9),,,"Facteurs dynamiques")):'Facteurs dynamiques'!$CX78)/('Facteurs dynamiques'!$CX$36*1000),0)) -> 0 | DV13: =IF(AND(debut<=2006,DV$9<=2006),0,IFERROR(SUMPRODUCT(Projet!$G39:'Projet'!DX39*1000,INDIRECT(ADDRESS(ROW('Facteurs dynamiques'!$C78),COLUMN('Facteurs dynamiques'!$CX78)-(DV$9-$E$9),,,"Facteurs dynamiques")):'Facteurs dynamiques'!$CX78)/('Facteurs dynamiques'!$CX$36*1000),0)) -> 0 | DW13: =IF(AND(debut<=2006,DW$9<=2006),0,IFERROR(SUMPRODUCT(Projet!$G39:'Projet'!DY39*1000,INDIRECT(ADDRESS(ROW('Facteurs dynamiques'!$C78),COLUMN('Facteurs dynamiques'!$CX78)-(DW$9-$E$9),,,"Facteurs dynamiques")):'Facteurs dynamiques'!$CX78)/('Facteurs dynamiques'!$CX$36*1000),0)) -> 0 | DX13: =IF(AND(debut<=2006,DX$9<=2006),0,IFERROR(SUMPRODUCT(Projet!$G39:'Projet'!DZ39*1000,INDIRECT(ADDRESS(ROW('Facteurs dynamiques'!$C78),COLUMN('Facteurs dynamiques'!$CX78)-(DX$9-$E$9),,,"Facteurs dynamiques")):'Facteurs dynamiques'!$CX78)/('Facteurs dynamiques'!$CX$36*1000),0)) -> 0 | DY13: =IF(AND(debut<=2006,DY$9<=2006),0,IFERROR(SUMPRODUCT(Projet!$G39:'Projet'!EA39*1000,INDIRECT(ADDRESS(ROW('Facteurs dynamiques'!$C78),COLUMN('Facteurs dynamiques'!$CX78)-(DY$9-$E$9),,,"Facteurs dynamiques")):'Facteurs dynamiques'!$CX78)/('Facteurs dynamiques'!$CX$36*1000),0)) -> 0 | DZ13: =IF(AND(debut<=2006,DZ$9<=2006),0,IFERROR(SUMPRODUCT(Projet!$G39:'Projet'!EB39*1000,INDIRECT(ADDRESS(ROW('Facteurs dynamiques'!$C78),COLUMN('Facteurs dynamiques'!$CX78)-(DZ$9-$E$9),,,"Facteurs dynamiques")):'Facteurs dynamiques'!$CX78)/('Facteurs dynamiques'!$CX$36*1000),0)) -> 0 | EA13: =IF(AND(debut<=2006,EA$9<=2006),0,IFERROR(SUMPRODUCT(Projet!$G39:'Projet'!EC39*1000,INDIRECT(ADDRESS(ROW('Facteurs dynamiques'!$C78),COLUMN('Facteurs dynamiques'!$CX78)-(EA$9-$E$9),,,"Facteurs dynamiques")):'Facteurs dynamiques'!$CX78)/('Facteurs dynamiques'!$CX$36*1000),0)) -> 0 | EB13: =IF(AND(debut<=2006,EB$9<=2006),0,IFERROR(SUMPRODUCT(Projet!$G39:'Projet'!ED39*1000,INDIRECT(ADDRESS(ROW('Facteurs dynamiques'!$C78),COLUMN('Facteurs dynamiques'!$CX78)-(EB$9-$E$9),,,"Facteurs dynamiques")):'Facteurs dynamiques'!$CX78)/('Facteurs dynamiques'!$CX$36*1000),0)) -> 0 | EC13: =IF(AND(debut<=2006,EC$9<=2006),0,IFERROR(SUMPRODUCT(Projet!$G39:'Projet'!EE39*1000,INDIRECT(ADDRESS(ROW('Facteurs dynamiques'!$C78),COLUMN('Facteurs dynamiques'!$CX78)-(EC$9-$E$9),,,"Facteurs dynamiques")):'Facteurs dynamiques'!$CX78)/('Facteurs dynamiques'!$CX$36*1000),0)) -> 0 | ED13: =IF(AND(debut<=2006,ED$9<=2006),0,IFERROR(SUMPRODUCT(Projet!$G39:'Projet'!EF39*1000,INDIRECT(ADDRESS(ROW('Facteurs dynamiques'!$C78),COLUMN('Facteurs dynamiques'!$CX78)-(ED$9-$E$9),,,"Facteurs dynamiques")):'Facteurs dynamiques'!$CX78)/('Facteurs dynamiques'!$CX$36*1000),0)) -> 0 | EE13: =IF(AND(debut<=2006,EE$9<=2006),0,IFERROR(SUMPRODUCT(Projet!$G39:'Projet'!EG39*1000,INDIRECT(ADDRESS(ROW('Facteurs dynamiques'!$C78),COLUMN('Facteurs dynamiques'!$CX78)-(EE$9-$E$9),,,"Facteurs dynamiques")):'Facteurs dynamiques'!$CX78)/('Facteurs dynamiques'!$CX$36*1000),0)) -> 0 | EF13: =IF(AND(debut<=2006,EF$9<=2006),0,IFERROR(SUMPRODUCT(Projet!$G39:'Projet'!EH39*1000,INDIRECT(ADDRESS(ROW('Facteurs dynamiques'!$C78),COLUMN('Facteurs dynamiques'!$CX78)-(EF$9-$E$9),,,"Facteurs dynamiques")):'Facteurs dynamiques'!$CX78)/('Facteurs dynamiques'!$CX$36*1000),0)) -> 0 | EG13: =IF(AND(debut<=2006,EG$9<=2006),0,IFERROR(SUMPRODUCT(Projet!$G39:'Projet'!EI39*1000,INDIRECT(ADDRESS(ROW('Facteurs dynamiques'!$C78),COLUMN('Facteurs dynamiques'!$CX78)-(EG$9-$E$9),,,"Facteurs dynamiques")):'Facteurs dynamiques'!$CX78)/('Facteurs dynamiques'!$CX$36*1000),0)) -> 0 | EH13: =IF(AND(debut<=2006,EH$9<=2006),0,IFERROR(SUMPRODUCT(Projet!$G39:'Projet'!EJ39*1000,INDIRECT(ADDRESS(ROW('Facteurs dynamiques'!$C78),COLUMN('Facteurs dynamiques'!$CX78)-(EH$9-$E$9),,,"Facteurs dynamiques")):'Facteurs dynamiques'!$CX78)/('Facteurs dynamiques'!$CX$36*1000),0)) -> 0 | EI13: =IF(AND(debut<=2006,EI$9<=2006),0,IFERROR(SUMPRODUCT(Projet!$G39:'Projet'!EK39*1000,INDIRECT(ADDRESS(ROW('Facteurs dynamiques'!$C78),COLUMN('Facteurs dynamiques'!$CX78)-(EI$9-$E$9),,,"Facteurs dynamiques")):'Facteurs dynamiques'!$CX78)/('Facteurs dynamiques'!$CX$36*1000),0)) -> 0 | EJ13: =IF(AND(debut<=2006,EJ$9<=2006),0,IFERROR(SUMPRODUCT(Projet!$G39:'Projet'!EL39*1000,INDIRECT(ADDRESS(ROW('Facteurs dynamiques'!$C78),COLUMN('Facteurs dynamiques'!$CX78)-(EJ$9-$E$9),,,"Facteurs dynamiques")):'Facteurs dynamiques'!$CX78)/('Facteurs dynamiques'!$CX$36*1000),0)) -> 0 | EK13: =IF(AND(debut<=2006,EK$9<=2006),0,IFERROR(SUMPRODUCT(Projet!$G39:'Projet'!EM39*1000,INDIRECT(ADDRESS(ROW('Facteurs dynamiques'!$C78),COLUMN('Facteurs dynamiques'!$CX78)-(EK$9-$E$9),,,"Facteurs dynamiques")):'Facteurs dynamiques'!$CX78)/('Facteurs dynamiques'!$CX$36*1000),0)) -> 0 | EL13: =IF(AND(debut<=2006,EL$9<=2006),0,IFERROR(SUMPRODUCT(Projet!$G39:'Projet'!EN39*1000,INDIRECT(ADDRESS(ROW('Facteurs dynamiques'!$C78),COLUMN('Facteurs dynamiques'!$CX78)-(EL$9-$E$9),,,"Facteurs dynamiques")):'Facteurs dynamiques'!$CX78)/('Facteurs dynamiques'!$CX$36*1000),0)) -> 0 | EM13: =IF(AND(debut<=2006,EM$9<=2006),0,IFERROR(SUMPRODUCT(Projet!$G39:'Projet'!EO39*1000,INDIRECT(ADDRESS(ROW('Facteurs dynamiques'!$C78),COLUMN('Facteurs dynamiques'!$CX78)-(EM$9-$E$9),,,"Facteurs dynamiques")):'Facteurs dynamiques'!$CX78)/('Facteurs dynamiques'!$CX$36*1000),0)) -> 0 | EN13: =IF(AND(debut<=2006,EN$9<=2006),0,IFERROR(SUMPRODUCT(Projet!$G39:'Projet'!EP39*1000,INDIRECT(ADDRESS(ROW('Facteurs dynamiques'!$C78),COLUMN('Facteurs dynamiques'!$CX78)-(EN$9-$E$9),,,"Facteurs dynamiques")):'Facteurs dynamiques'!$CX78)/('Facteurs dynamiques'!$CX$36*1000),0)) -> 0 | EO13: =IF(AND(debut<=2006,EO$9<=2006),0,IFERROR(SUMPRODUCT(Projet!$G39:'Projet'!EQ39*1000,INDIRECT(ADDRESS(ROW('Facteurs dynamiques'!$C78),COLUMN('Facteurs dynamiques'!$CX78)-(EO$9-$E$9),,,"Facteurs dynamiques")):'Facteurs dynamiques'!$CX78)/('Facteurs dynamiques'!$CX$36*1000),0)) -> 0 | EP13: =IF(AND(debut<=2006,EP$9<=2006),0,IFERROR(SUMPRODUCT(Projet!$G39:'Projet'!ER39*1000,INDIRECT(ADDRESS(ROW('Facteurs dynamiques'!$C78),COLUMN('Facteurs dynamiques'!$CX78)-(EP$9-$E$9),,,"Facteurs dynamiques")):'Facteurs dynamiques'!$CX78)/('Facteurs dynamiques'!$CX$36*1000),0)) -> 0 | EQ13: =IF(AND(debut<=2006,EQ$9<=2006),0,IFERROR(SUMPRODUCT(Projet!$G39:'Projet'!ES39*1000,INDIRECT(ADDRESS(ROW('Facteurs dynamiques'!$C78),COLUMN('Facteurs dynamiques'!$CX78)-(EQ$9-$E$9),,,"Facteurs dynamiques")):'Facteurs dynamiques'!$CX78)/('Facteurs dynamiques'!$CX$36*1000),0)) -> 0 | ER13: =IF(AND(debut<=2006,ER$9<=2006),0,IFERROR(SUMPRODUCT(Projet!$G39:'Projet'!ET39*1000,INDIRECT(ADDRESS(ROW('Facteurs dynamiques'!$C78),COLUMN('Facteurs dynamiques'!$CX78)-(ER$9-$E$9),,,"Facteurs dynamiques")):'Facteurs dynamiques'!$CX78)/('Facteurs dynamiques'!$CX$36*1000),0)) -> 0 | ES13: =IF(AND(debut<=2006,ES$9<=2006),0,IFERROR(SUMPRODUCT(Projet!$G39:'Projet'!EU39*1000,INDIRECT(ADDRESS(ROW('Facteurs dynamiques'!$C78),COLUMN('Facteurs dynamiques'!$CX78)-(ES$9-$E$9),,,"Facteurs dynamiques")):'Facteurs dynamiques'!$CX78)/('Facteurs dynamiques'!$CX$36*1000),0)) -> 0 | ET13: =IF(AND(debut<=2006,ET$9<=2006),0,IFERROR(SUMPRODUCT(Projet!$G39:'Projet'!EV39*1000,INDIRECT(ADDRESS(ROW('Facteurs dynamiques'!$C78),COLUMN('Facteurs dynamiques'!$CX78)-(ET$9-$E$9),,,"Facteurs dynamiques")):'Facteurs dynamiques'!$CX78)/('Facteurs dynamiques'!$CX$36*1000),0)) -> 0 | EU13: =IF(AND(debut<=2006,EU$9<=2006),0,IFERROR(SUMPRODUCT(Projet!$G39:'Projet'!EW39*1000,INDIRECT(ADDRESS(ROW('Facteurs dynamiques'!$C78),COLUMN('Facteurs dynamiques'!$CX78)-(EU$9-$E$9),,,"Facteurs dynamiques")):'Facteurs dynamiques'!$CX78)/('Facteurs dynamiques'!$CX$36*1000),0)) -> 0 | EV13: =IF(AND(debut<=2006,EV$9<=2006),0,IFERROR(SUMPRODUCT(Projet!$G39:'Projet'!EX39*1000,INDIRECT(ADDRESS(ROW('Facteurs dynamiques'!$C78),COLUMN('Facteurs dynamiques'!$CX78)-(EV$9-$E$9),,,"Facteurs dynamiques")):'Facteurs dynamiques'!$CX78)/('Facteurs dynamiques'!$CX$36*1000),0)) -> 0 | EW13: =IF(AND(debut<=2006,EW$9<=2006),0,IFERROR(SUMPRODUCT(Projet!$G39:'Projet'!EY39*1000,INDIRECT(ADDRESS(ROW('Facteurs dynamiques'!$C78),COLUMN('Facteurs dynamiques'!$CX78)-(EW$9-$E$9),,,"Facteurs dynamiques")):'Facteurs dynamiques'!$CX78)/('Facteurs dynamiques'!$CX$36*1000),0)) -> 0 | EX13: =IF(AND(debut<=2006,EX$9<=2006),0,IFERROR(SUMPRODUCT(Projet!$G39:'Projet'!EZ39*1000,INDIRECT(ADDRESS(ROW('Facteurs dynamiques'!$C78),COLUMN('Facteurs dynamiques'!$CX78)-(EX$9-$E$9),,,"Facteurs dynamiques")):'Facteurs dynamiques'!$CX78)/('Facteurs dynamiques'!$CX$36*1000),0)) -> 0 | EY13: =IF(AND(debut<=2006,EY$9<=2006),0,IFERROR(SUMPRODUCT(Projet!$G39:'Projet'!FA39*1000,INDIRECT(ADDRESS(ROW('Facteurs dynamiques'!$C78),COLUMN('Facteurs dynamiques'!$CX78)-(EY$9-$E$9),,,"Facteurs dynamiques")):'Facteurs dynamiques'!$CX78)/('Facteurs dynamiques'!$CX$36*1000),0)) -> 0 | EZ13: =IF(AND(debut<=2006,EZ$9<=2006),0,IFERROR(SUMPRODUCT(Projet!$G39:'Projet'!FB39*1000,INDIRECT(ADDRESS(ROW('Facteurs dynamiques'!$C78),COLUMN('Facteurs dynamiques'!$CX78)-(EZ$9-$E$9),,,"Facteurs dynamiques")):'Facteurs dynamiques'!$CX78)/('Facteurs dynamiques'!$CX$36*1000),0)) -> 0 | FA13: =IF(AND(debut<=2006,FA$9<=2006),0,IFERROR(SUMPRODUCT(Projet!$G39:'Projet'!FC39*1000,INDIRECT(ADDRESS(ROW('Facteurs dynamiques'!$C78),COLUMN('Facteurs dynamiques'!$CX78)-(FA$9-$E$9),,,"Facteurs dynamiques")):'Facteurs dynamiques'!$CX78)/('Facteurs dynamiques'!$CX$36*1000),0)) -> 0 | FB13: =IF(AND(debut<=2006,FB$9<=2006),0,IFERROR(SUMPRODUCT(Projet!$G39:'Projet'!FD39*1000,INDIRECT(ADDRESS(ROW('Facteurs dynamiques'!$C78),COLUMN('Facteurs dynamiques'!$CX78)-(FB$9-$E$9),,,"Facteurs dynamiques")):'Facteurs dynamiques'!$CX78)/('Facteurs dynamiques'!$CX$36*1000),0)) -> 0 | FC13: =IF(AND(debut<=2006,FC$9<=2006),0,IFERROR(SUMPRODUCT(Projet!$G39:'Projet'!FE39*1000,INDIRECT(ADDRESS(ROW('Facteurs dynamiques'!$C78),COLUMN('Facteurs dynamiques'!$CX78)-(FC$9-$E$9),,,"Facteurs dynamiques")):'Facteurs dynamiques'!$CX78)/('Facteurs dynamiques'!$CX$36*1000),0)) -> 0 | FD13: =IF(AND(debut<=2006,FD$9<=2006),0,IFERROR(SUMPRODUCT(Projet!$G39:'Projet'!FF39*1000,INDIRECT(ADDRESS(ROW('Facteurs dynamiques'!$C78),COLUMN('Facteurs dynamiques'!$CX78)-(FD$9-$E$9),,,"Facteurs dynamiques")):'Facteurs dynamiques'!$CX78)/('Facteurs dynamiques'!$CX$36*1000),0)) -> 0 | FE13: =IF(AND(debut<=2006,FE$9<=2006),0,IFERROR(SUMPRODUCT(Projet!$G39:'Projet'!FG39*1000,INDIRECT(ADDRESS(ROW('Facteurs dynamiques'!$C78),COLUMN('Facteurs dynamiques'!$CX78)-(FE$9-$E$9),,,"Facteurs dynamiques")):'Facteurs dynamiques'!$CX78)/('Facteurs dynamiques'!$CX$36*1000),0)) -> 0 | FF13: =IF(AND(debut<=2006,FF$9<=2006),0,IFERROR(SUMPRODUCT(Projet!$G39:'Projet'!FH39*1000,INDIRECT(ADDRESS(ROW('Facteurs dynamiques'!$C78),COLUMN('Facteurs dynamiques'!$CX78)-(FF$9-$E$9),,,"Facteurs dynamiques")):'Facteurs dynamiques'!$CX78)/('Facteurs dynamiques'!$CX$36*1000),0)) -> 0 | FG13: =IF(AND(debut<=2006,FG$9<=2006),0,IFERROR(SUMPRODUCT(Projet!$G39:'Projet'!FI39*1000,INDIRECT(ADDRESS(ROW('Facteurs dynamiques'!$C78),COLUMN('Facteurs dynamiques'!$CX78)-(FG$9-$E$9),,,"Facteurs dynamiques")):'Facteurs dynamiques'!$CX78)/('Facteurs dynamiques'!$CX$36*1000),0)) -> 0 | FH13: =IF(AND(debut<=2006,FH$9<=2006),0,IFERROR(SUMPRODUCT(Projet!$G39:'Projet'!FJ39*1000,INDIRECT(ADDRESS(ROW('Facteurs dynamiques'!$C78),COLUMN('Facteurs dynamiques'!$CX78)-(FH$9-$E$9),,,"Facteurs dynamiques")):'Facteurs dynamiques'!$CX78)/('Facteurs dynamiques'!$CX$36*1000),0)) -> 0 | FI13: =IF(AND(debut<=2006,FI$9<=2006),0,IFERROR(SUMPRODUCT(Projet!$G39:'Projet'!FK39*1000,INDIRECT(ADDRESS(ROW('Facteurs dynamiques'!$C78),COLUMN('Facteurs dynamiques'!$CX78)-(FI$9-$E$9),,,"Facteurs dynamiques")):'Facteurs dynamiques'!$CX78)/('Facteurs dynamiques'!$CX$36*1000),0)) -> 0 | FJ13: =IF(AND(debut<=2006,FJ$9<=2006),0,IFERROR(SUMPRODUCT(Projet!$G39:'Projet'!FL39*1000,INDIRECT(ADDRESS(ROW('Facteurs dynamiques'!$C78),COLUMN('Facteurs dynamiques'!$CX78)-(FJ$9-$E$9),,,"Facteurs dynamiques")):'Facteurs dynamiques'!$CX78)/('Facteurs dynamiques'!$CX$36*1000),0)) -> 0 | FK13: =IF(AND(debut<=2006,FK$9<=2006),0,IFERROR(SUMPRODUCT(Projet!$G39:'Projet'!FM39*1000,INDIRECT(ADDRESS(ROW('Facteurs dynamiques'!$C78),COLUMN('Facteurs dynamiques'!$CX78)-(FK$9-$E$9),,,"Facteurs dynamiques")):'Facteurs dynamiques'!$CX78)/('Facteurs dynamiques'!$CX$36*1000),0)) -> 0 | FL13: =IF(AND(debut<=2006,FL$9<=2006),0,IFERROR(SUMPRODUCT(Projet!$G39:'Projet'!FN39*1000,INDIRECT(ADDRESS(ROW('Facteurs dynamiques'!$C78),COLUMN('Facteurs dynamiques'!$CX78)-(FL$9-$E$9),,,"Facteurs dynamiques")):'Facteurs dynamiques'!$CX78)/('Facteurs dynamiques'!$CX$36*1000),0)) -> 0 | FM13: =IF(AND(debut<=2006,FM$9<=2006),0,IFERROR(SUMPRODUCT(Projet!$G39:'Projet'!FO39*1000,INDIRECT(ADDRESS(ROW('Facteurs dynamiques'!$C78),COLUMN('Facteurs dynamiques'!$CX78)-(FM$9-$E$9),,,"Facteurs dynamiques")):'Facteurs dynamiques'!$CX78)/('Facteurs dynamiques'!$CX$36*1000),0)) -> 0 | FN13: =IF(AND(debut<=2006,FN$9<=2006),0,IFERROR(SUMPRODUCT(Projet!$G39:'Projet'!FP39*1000,INDIRECT(ADDRESS(ROW('Facteurs dynamiques'!$C78),COLUMN('Facteurs dynamiques'!$CX78)-(FN$9-$E$9),,,"Facteurs dynamiques")):'Facteurs dynamiques'!$CX78)/('Facteurs dynamiques'!$CX$36*1000),0)) -> 0 | FO13: =IF(AND(debut<=2006,FO$9<=2006),0,IFERROR(SUMPRODUCT(Projet!$G39:'Projet'!FQ39*1000,INDIRECT(ADDRESS(ROW('Facteurs dynamiques'!$C78),COLUMN('Facteurs dynamiques'!$CX78)-(FO$9-$E$9),,,"Facteurs dynamiques")):'Facteurs dynamiques'!$CX78)/('Facteurs dynamiques'!$CX$36*1000),0)) -> 0 | FP13: =IF(AND(debut<=2006,FP$9<=2006),0,IFERROR(SUMPRODUCT(Projet!$G39:'Projet'!FR39*1000,INDIRECT(ADDRESS(ROW('Facteurs dynamiques'!$C78),COLUMN('Facteurs dynamiques'!$CX78)-(FP$9-$E$9),,,"Facteurs dynamiques")):'Facteurs dynamiques'!$CX78)/('Facteurs dynamiques'!$CX$36*1000),0)) -> 0 | FQ13: =IF(AND(debut<=2006,FQ$9<=2006),0,IFERROR(SUMPRODUCT(Projet!$G39:'Projet'!FS39*1000,INDIRECT(ADDRESS(ROW('Facteurs dynamiques'!$C78),COLUMN('Facteurs dynamiques'!$CX78)-(FQ$9-$E$9),,,"Facteurs dynamiques")):'Facteurs dynamiques'!$CX78)/('Facteurs dynamiques'!$CX$36*1000),0)) -> 0 | FR13: =IF(AND(debut<=2006,FR$9<=2006),0,IFERROR(SUMPRODUCT(Projet!$G39:'Projet'!FT39*1000,INDIRECT(ADDRESS(ROW('Facteurs dynamiques'!$C78),COLUMN('Facteurs dynamiques'!$CX78)-(FR$9-$E$9),,,"Facteurs dynamiques")):'Facteurs dynamiques'!$CX78)/('Facteurs dynamiques'!$CX$36*1000),0)) -> 0 | FS13: =IF(AND(debut<=2006,FS$9<=2006),0,IFERROR(SUMPRODUCT(Projet!$G39:'Projet'!FU39*1000,INDIRECT(ADDRESS(ROW('Facteurs dynamiques'!$C78),COLUMN('Facteurs dynamiques'!$CX78)-(FS$9-$E$9),,,"Facteurs dynamiques")):'Facteurs dynamiques'!$CX78)/('Facteurs dynamiques'!$CX$36*1000),0)) -> 0 | FT13: =IF(AND(debut<=2006,FT$9<=2006),0,IFERROR(SUMPRODUCT(Projet!$G39:'Projet'!FV39*1000,INDIRECT(ADDRESS(ROW('Facteurs dynamiques'!$C78),COLUMN('Facteurs dynamiques'!$CX78)-(FT$9-$E$9),,,"Facteurs dynamiques")):'Facteurs dynamiques'!$CX78)/('Facteurs dynamiques'!$CX$36*1000),0)) -> 0 | FU13: =IF(AND(debut<=2006,FU$9<=2006),0,IFERROR(SUMPRODUCT(Projet!$G39:'Projet'!FW39*1000,INDIRECT(ADDRESS(ROW('Facteurs dynamiques'!$C78),COLUMN('Facteurs dynamiques'!$CX78)-(FU$9-$E$9),,,"Facteurs dynamiques")):'Facteurs dynamiques'!$CX78)/('Facteurs dynamiques'!$CX$36*1000),0)) -> 0 | FV13: =IF(AND(debut<=2006,FV$9<=2006),0,IFERROR(SUMPRODUCT(Projet!$G39:'Projet'!FX39*1000,INDIRECT(ADDRESS(ROW('Facteurs dynamiques'!$C78),COLUMN('Facteurs dynamiques'!$CX78)-(FV$9-$E$9),,,"Facteurs dynamiques")):'Facteurs dynamiques'!$CX78)/('Facteurs dynamiques'!$CX$36*1000),0)) -> 0 | FW13: =IF(AND(debut<=2006,FW$9<=2006),0,IFERROR(SUMPRODUCT(Projet!$G39:'Projet'!FY39*1000,INDIRECT(ADDRESS(ROW('Facteurs dynamiques'!$C78),COLUMN('Facteurs dynamiques'!$CX78)-(FW$9-$E$9),,,"Facteurs dynamiques")):'Facteurs dynamiques'!$CX78)/('Facteurs dynamiques'!$CX$36*1000),0)) -> 0 | FX13: =IF(AND(debut<=2006,FX$9<=2006),0,IFERROR(SUMPRODUCT(Projet!$G39:'Projet'!FZ39*1000,INDIRECT(ADDRESS(ROW('Facteurs dynamiques'!$C78),COLUMN('Facteurs dynamiques'!$CX78)-(FX$9-$E$9),,,"Facteurs dynamiques")):'Facteurs dynamiques'!$CX78)/('Facteurs dynamiques'!$CX$36*1000),0)) -> 0 | FY13: =IF(AND(debut<=2006,FY$9<=2006),0,IFERROR(SUMPRODUCT(Projet!$G39:'Projet'!GA39*1000,INDIRECT(ADDRESS(ROW('Facteurs dynamiques'!$C78),COLUMN('Facteurs dynamiques'!$CX78)-(FY$9-$E$9),,,"Facteurs dynamiques")):'Facteurs dynamiques'!$CX78)/('Facteurs dynamiques'!$CX$36*1000),0)) -> 0 | FZ13: =IF(AND(debut<=2006,FZ$9<=2006),0,IFERROR(SUMPRODUCT(Projet!$G39:'Projet'!GB39*1000,INDIRECT(ADDRESS(ROW('Facteurs dynamiques'!$C78),COLUMN('Facteurs dynamiques'!$CX78)-(FZ$9-$E$9),,,"Facteurs dynamiques")):'Facteurs dynamiques'!$CX78)/('Facteurs dynamiques'!$CX$36*1000),0)) -> 0 | GA13: =IF(AND(debut<=2006,GA$9<=2006),0,IFERROR(SUMPRODUCT(Projet!$G39:'Projet'!GC39*1000,INDIRECT(ADDRESS(ROW('Facteurs dynamiques'!$C78),COLUMN('Facteurs dynamiques'!$CX78)-(GA$9-$E$9),,,"Facteurs dynamiques")):'Facteurs dynamiques'!$CX78)/('Facteurs dynamiques'!$CX$36*1000),0)) -> 0 | GB13: =IF(AND(debut<=2006,GB$9<=2006),0,IFERROR(SUMPRODUCT(Projet!$G39:'Projet'!GD39*1000,INDIRECT(ADDRESS(ROW('Facteurs dynamiques'!$C78),COLUMN('Facteurs dynamiques'!$CX78)-(GB$9-$E$9),,,"Facteurs dynamiques")):'Facteurs dynamiques'!$CX78)/('Facteurs dynamiques'!$CX$36*1000),0)) -> 0 | GC13: =IF(AND(debut<=2006,GC$9<=2006),0,IFERROR(SUMPRODUCT(Projet!$G39:'Projet'!GE39*1000,INDIRECT(ADDRESS(ROW('Facteurs dynamiques'!$C78),COLUMN('Facteurs dynamiques'!$CX78)-(GC$9-$E$9),,,"Facteurs dynamiques")):'Facteurs dynamiques'!$CX78)/('Facteurs dynamiques'!$CX$36*1000),0)) -> 0 | GD13: =IF(AND(debut<=2006,GD$9<=2006),0,IFERROR(SUMPRODUCT(Projet!$G39:'Projet'!GF39*1000,INDIRECT(ADDRESS(ROW('Facteurs dynamiques'!$C78),COLUMN('Facteurs dynamiques'!$CX78)-(GD$9-$E$9),,,"Facteurs dynamiques")):'Facteurs dynamiques'!$CX78)/('Facteurs dynamiques'!$CX$36*1000),0)) -> 0 | GE13: =IF(AND(debut<=2006,GE$9<=2006),0,IFERROR(SUMPRODUCT(Projet!$G39:'Projet'!GG39*1000,INDIRECT(ADDRESS(ROW('Facteurs dynamiques'!$C78),COLUMN('Facteurs dynamiques'!$CX78)-(GE$9-$E$9),,,"Facteurs dynamiques")):'Facteurs dynamiques'!$CX78)/('Facteurs dynamiques'!$CX$36*1000),0)) -> 0 | GF13: =IF(AND(debut<=2006,GF$9<=2006),0,IFERROR(SUMPRODUCT(Projet!$G39:'Projet'!GH39*1000,INDIRECT(ADDRESS(ROW('Facteurs dynamiques'!$C78),COLUMN('Facteurs dynamiques'!$CX78)-(GF$9-$E$9),,,"Facteurs dynamiques")):'Facteurs dynamiques'!$CX78)/('Facteurs dynamiques'!$CX$36*1000),0)) -> 0 | GG13: =IF(AND(debut<=2006,GG$9<=2006),0,IFERROR(SUMPRODUCT(Projet!$G39:'Projet'!GI39*1000,INDIRECT(ADDRESS(ROW('Facteurs dynamiques'!$C78),COLUMN('Facteurs dynamiques'!$CX78)-(GG$9-$E$9),,,"Facteurs dynamiques")):'Facteurs dynamiques'!$CX78)/('Facteurs dynamiques'!$CX$36*1000),0)) -> 0 | GH13: =IF(AND(debut<=2006,GH$9<=2006),0,IFERROR(SUMPRODUCT(Projet!$G39:'Projet'!GJ39*1000,INDIRECT(ADDRESS(ROW('Facteurs dynamiques'!$C78),COLUMN('Facteurs dynamiques'!$CX78)-(GH$9-$E$9),,,"Facteurs dynamiques")):'Facteurs dynamiques'!$CX78)/('Facteurs dynamiques'!$CX$36*1000),0)) -> 0 | GI13: =IF(AND(debut<=2006,GI$9<=2006),0,IFERROR(SUMPRODUCT(Projet!$G39:'Projet'!GK39*1000,INDIRECT(ADDRESS(ROW('Facteurs dynamiques'!$C78),COLUMN('Facteurs dynamiques'!$CX78)-(GI$9-$E$9),,,"Facteurs dynamiques")):'Facteurs dynamiques'!$CX78)/('Facteurs dynamiques'!$CX$36*1000),0)) -> 0 | GJ13: =IF(AND(debut<=2006,GJ$9<=2006),0,IFERROR(SUMPRODUCT(Projet!$G39:'Projet'!GL39*1000,INDIRECT(ADDRESS(ROW('Facteurs dynamiques'!$C78),COLUMN('Facteurs dynamiques'!$CX78)-(GJ$9-$E$9),,,"Facteurs dynamiques")):'Facteurs dynamiques'!$CX78)/('Facteurs dynamiques'!$CX$36*1000),0)) -> 0 | GK13: =IF(AND(debut<=2006,GK$9<=2006),0,IFERROR(SUMPRODUCT(Projet!$G39:'Projet'!GM39*1000,INDIRECT(ADDRESS(ROW('Facteurs dynamiques'!$C78),COLUMN('Facteurs dynamiques'!$CX78)-(GK$9-$E$9),,,"Facteurs dynamiques")):'Facteurs dynamiques'!$CX78)/('Facteurs dynamiques'!$CX$36*1000),0)) -> 0 | GL13: =IF(AND(debut<=2006,GL$9<=2006),0,IFERROR(SUMPRODUCT(Projet!$G39:'Projet'!GN39*1000,INDIRECT(ADDRESS(ROW('Facteurs dynamiques'!$C78),COLUMN('Facteurs dynamiques'!$CX78)-(GL$9-$E$9),,,"Facteurs dynamiques")):'Facteurs dynamiques'!$CX78)/('Facteurs dynamiques'!$CX$36*1000),0)) -> 0 | GM13: =IF(AND(debut<=2006,GM$9<=2006),0,IFERROR(SUMPRODUCT(Projet!$G39:'Projet'!GO39*1000,INDIRECT(ADDRESS(ROW('Facteurs dynamiques'!$C78),COLUMN('Facteurs dynamiques'!$CX78)-(GM$9-$E$9),,,"Facteurs dynamiques")):'Facteurs dynamiques'!$CX78)/('Facteurs dynamiques'!$CX$36*1000),0)) -> 0 | GN13: =IF(AND(debut<=2006,GN$9<=2006),0,IFERROR(SUMPRODUCT(Projet!$G39:'Projet'!GP39*1000,INDIRECT(ADDRESS(ROW('Facteurs dynamiques'!$C78),COLUMN('Facteurs dynamiques'!$CX78)-(GN$9-$E$9),,,"Facteurs dynamiques")):'Facteurs dynamiques'!$CX78)/('Facteurs dynamiques'!$CX$36*1000),0)) -> 0 | GO13: =IF(AND(debut<=2006,GO$9<=2006),0,IFERROR(SUMPRODUCT(Projet!$G39:'Projet'!GQ39*1000,INDIRECT(ADDRESS(ROW('Facteurs dynamiques'!$C78),COLUMN('Facteurs dynamiques'!$CX78)-(GO$9-$E$9),,,"Facteurs dynamiques")):'Facteurs dynamiques'!$CX78)/('Facteurs dynamiques'!$CX$36*1000),0)) -> 0 | GP13: =IF(AND(debut<=2006,GP$9<=2006),0,IFERROR(SUMPRODUCT(Projet!$G39:'Projet'!GR39*1000,INDIRECT(ADDRESS(ROW('Facteurs dynamiques'!$C78),COLUMN('Facteurs dynamiques'!$CX78)-(GP$9-$E$9),,,"Facteurs dynamiques")):'Facteurs dynamiques'!$CX78)/('Facteurs dynamiques'!$CX$36*1000),0)) -> 0 | GQ13: =IF(AND(debut<=2006,GQ$9<=2006),0,IFERROR(SUMPRODUCT(Projet!$G39:'Projet'!GS39*1000,INDIRECT(ADDRESS(ROW('Facteurs dynamiques'!$C78),COLUMN('Facteurs dynamiques'!$CX78)-(GQ$9-$E$9),,,"Facteurs dynamiques")):'Facteurs dynamiques'!$CX78)/('Facteurs dynamiques'!$CX$36*1000),0)) -> 0 | GR13: =IF(AND(debut<=2006,GR$9<=2006),0,IFERROR(SUMPRODUCT(Projet!$G39:'Projet'!GT39*1000,INDIRECT(ADDRESS(ROW('Facteurs dynamiques'!$C78),COLUMN('Facteurs dynamiques'!$CX78)-(GR$9-$E$9),,,"Facteurs dynamiques")):'Facteurs dynamiques'!$CX78)/('Facteurs dynamiques'!$CX$36*1000),0)) -> 0 | GS13: =IF(AND(debut<=2006,GS$9<=2006),0,IFERROR(SUMPRODUCT(Projet!$G39:'Projet'!GU39*1000,INDIRECT(ADDRESS(ROW('Facteurs dynamiques'!$C78),COLUMN('Facteurs dynamiques'!$CX78)-(GS$9-$E$9),,,"Facteurs dynamiques")):'Facteurs dynamiques'!$CX78)/('Facteurs dynamiques'!$CX$36*1000),0)) -> 0 | GT13: =IF(AND(debut<=2006,GT$9<=2006),0,IFERROR(SUMPRODUCT(Projet!$G39:'Projet'!GV39*1000,INDIRECT(ADDRESS(ROW('Facteurs dynamiques'!$C78),COLUMN('Facteurs dynamiques'!$CX78)-(GT$9-$E$9),,,"Facteurs dynamiques")):'Facteurs dynamiques'!$CX78)/('Facteurs dynamiques'!$CX$36*1000),0)) -> 0 | GU13: =IF(AND(debut<=2006,GU$9<=2006),0,IFERROR(SUMPRODUCT(Projet!$G39:'Projet'!GW39*1000,INDIRECT(ADDRESS(ROW('Facteurs dynamiques'!$C78),COLUMN('Facteurs dynamiques'!$CX78)-(GU$9-$E$9),,,"Facteurs dynamiques")):'Facteurs dynamiques'!$CX78)/('Facteurs dynamiques'!$CX$36*1000),0)) -> 0 | GV13: =IF(AND(debut<=2006,GV$9<=2006),0,IFERROR(SUMPRODUCT(Projet!$G39:'Projet'!GX39*1000,INDIRECT(ADDRESS(ROW('Facteurs dynamiques'!$C78),COLUMN('Facteurs dynamiques'!$CX78)-(GV$9-$E$9),,,"Facteurs dynamiques")):'Facteurs dynamiques'!$CX78)/('Facteurs dynamiques'!$CX$36*1000),0)) -> 0
A14: Forçage radiatif instantané (annuel) dû aux PFL | E14: ='Projet - Produits'!E263 -> 0 | F14: ='Projet - Produits'!F263 -> 0 | G14: ='Projet - Produits'!G263 -> 0 | H14: ='Projet - Produits'!H263 -> 0 | I14: ='Projet - Produits'!I263 -> 0 | J14: ='Projet - Produits'!J263 -> 0 | K14: ='Projet - Produits'!K263 -> 0 | L14: ='Projet - Produits'!L263 -> 0 | M14: ='Projet - Produits'!M263 -> 0 | N14: ='Projet - Produits'!N263 -> 0 | O14: ='Projet - Produits'!O263 -> 0 | P14: ='Projet - Produits'!P263 -> 0 | Q14: ='Projet - Produits'!Q263 -> 0 | R14: ='Projet - Produits'!R263 -> 0 | S14: ='Projet - Produits'!S263 -> 0 | T14: ='Projet - Produits'!T263 -> 0 | U14: ='Projet - Produits'!U263 -> 0 | V14: ='Projet - Produits'!V263 -> 0 | W14: ='Projet - Produits'!W263 -> 0 | X14: ='Projet - Produits'!X263 -> 0 | Y14: ='Projet - Produits'!Y263 -> 0 | Z14: ='Projet - Produits'!Z263 -> 0 | AA14: ='Projet - Produits'!AA263 -> 0 | AB14: ='Projet - Produits'!AB263 -> 0 | AC14: ='Projet - Produits'!AC263 -> 0 | AD14: ='Projet - Produits'!AD263 -> 0 | AE14: ='Projet - Produits'!AE263 -> 0 | AF14: ='Projet - Produits'!AF263 -> 0 | AG14: ='Projet - Produits'!AG263 -> 0 | AH14: ='Projet - Produits'!AH263 -> 0 | AI14: ='Projet - Produits'!AI263 -> 0 | AJ14: ='Projet - Produits'!AJ263 -> 0 | AK14: ='Projet - Produits'!AK263 -> 0 | AL14: ='Projet - Produits'!AL263 -> 0 | AM14: ='Projet - Produits'!AM263 -> 0 | AN14: ='Projet - Produits'!AN263 -> 0 | AO14: ='Projet - Produits'!AO263 -> 0 | AP14: ='Projet - Produits'!AP263 -> 0 | AQ14: ='Projet - Produits'!AQ263 -> 0 | AR14: ='Projet - Produits'!AR263 -> 0 | AS14: ='Projet - Produits'!AS263 -> 0 | AT14: ='Projet - Produits'!AT263 -> 0 | AU14: ='Projet - Produits'!AU263 -> 0 | AV14: ='Projet - Produits'!AV263 -> 0 | AW14: ='Projet - Produits'!AW263 -> 0 | AX14: ='Projet - Produits'!AX263 -> 0 | AY14: ='Projet - Produits'!AY263 -> 0 | AZ14: ='Projet - Produits'!AZ263 -> 0 | BA14: ='Projet - Produits'!BA263 -> 0 | BB14: ='Projet - Produits'!BB263 -> 0 | BC14: ='Projet - Produits'!BC263 -> 0 | BD14: ='Projet - Produits'!BD263 -> 0 | BE14: ='Projet - Produits'!BE263 -> 0 | BF14: ='Projet - Produits'!BF263 -> 0 | BG14: ='Projet - Produits'!BG263 -> 0 | BH14: ='Projet - Produits'!BH263 -> 0 | BI14: ='Projet - Produits'!BI263 -> 0 | BJ14: ='Projet - Produits'!BJ263 -> 0 | BK14: ='Projet - Produits'!BK263 -> 0 | BL14: ='Projet - Produits'!BL263 -> 0 | BM14: ='Projet - Produits'!BM263 -> 0 | BN14: ='Projet - Produits'!BN263 -> 0 | BO14: ='Projet - Produits'!BO263 -> 0 | BP14: ='Projet - Produits'!BP263 -> 0 | BQ14: ='Projet - Produits'!BQ263 -> 0 | BR14: ='Projet - Produits'!BR263 -> 0 | BS14: ='Projet - Produits'!BS263 -> 0 | BT14: ='Projet - Produits'!BT263 -> 0 | BU14: ='Projet - Produits'!BU263 -> 0 | BV14: ='Projet - Produits'!BV263 -> 0 | BW14: ='Projet - Produits'!BW263 -> 0 | BX14: ='Projet - Produits'!BX263 -> 0 | BY14: ='Projet - Produits'!BY263 -> 0 | BZ14: ='Projet - Produits'!BZ263 -> 0 | CA14: ='Projet - Produits'!CA263 -> 0 | CB14: ='Projet - Produits'!CB263 -> 0 | CC14: ='Projet - Produits'!CC263 -> 0 | CD14: ='Projet - Produits'!CD263 -> 0 | CE14: ='Projet - Produits'!CE263 -> 0 | CF14: ='Projet - Produits'!CF263 -> 0 | CG14: ='Projet - Produits'!CG263 -> 0 | CH14: ='Projet - Produits'!CH263 -> 0 | CI14: ='Projet - Produits'!CI263 -> 0 | CJ14: ='Projet - Produits'!CJ263 -> 0 | CK14: ='Projet - Produits'!CK263 -> 0 | CL14: ='Projet - Produits'!CL263 -> 0 | CM14: ='Projet - Produits'!CM263 -> 0 | CN14: ='Projet - Produits'!CN263 -> 0 | CO14: ='Projet - Produits'!CO263 -> 0 | CP14: ='Projet - Produits'!CP263 -> 0 | CQ14: ='Projet - Produits'!CQ263 -> 0 | CR14: ='Projet - Produits'!CR263 -> 0 | CS14: ='Projet - Produits'!CS263 -> 0 | CT14: ='Projet - Produits'!CT263 -> 0 | CU14: ='Projet - Produits'!CU263 -> 0 | CV14: ='Projet - Produits'!CV263 -> 0 | CW14: ='Projet - Produits'!CW263 -> 0 | CX14: ='Projet - Produits'!CX263 -> 0 | CY14: ='Projet - Produits'!CY263 -> 0 | CZ14: ='Projet - Produits'!CZ263 -> 0 | DA14: ='Projet - Produits'!DA263 -> 0 | DB14: ='Projet - Produits'!DB263 -> 0 | DC14: ='Projet - Produits'!DC263 -> 0 | DD14: ='Projet - Produits'!DD263 -> 0 | DE14: ='Projet - Produits'!DE263 -> 0 | DF14: ='Projet - Produits'!DF263 -> 0 | DG14: ='Projet - Produits'!DG263 -> 0 | DH14: ='Projet - Produits'!DH263 -> 0 | DI14: ='Projet - Produits'!DI263 -> 0 | DJ14: ='Projet - Produits'!DJ263 -> 0 | DK14: ='Projet - Produits'!DK263 -> 0 | DL14: ='Projet - Produits'!DL263 -> 0 | DM14: ='Projet - Produits'!DM263 -> 0 | DN14: ='Projet - Produits'!DN263 -> 0 | DO14: ='Projet - Produits'!DO263 -> 0 | DP14: ='Projet - Produits'!DP263 -> 0 | DQ14: ='Projet - Produits'!DQ263 -> 0 | DR14: ='Projet - Produits'!DR263 -> 0 | DS14: ='Projet - Produits'!DS263 -> 0 | DT14: ='Projet - Produits'!DT263 -> 0 | DU14: ='Projet - Produits'!DU263 -> 0 | DV14: ='Projet - Produits'!DV263 -> 0 | DW14: ='Projet - Produits'!DW263 -> 0 | DX14: ='Projet - Produits'!DX263 -> 0 | DY14: ='Projet - Produits'!DY263 -> 0 | DZ14: ='Projet - Produits'!DZ263 -> 0 | EA14: ='Projet - Produits'!EA263 -> 0 | EB14: ='Projet - Produits'!EB263 -> 0 | EC14: ='Projet - Produits'!EC263 -> 0 | ED14: ='Projet - Produits'!ED263 -> 0 | EE14: ='Projet - Produits'!EE263 -> 0 | EF14: ='Projet - Produits'!EF263 -> 0 | EG14: ='Projet - Produits'!EG263 -> 0 | EH14: ='Projet - Produits'!EH263 -> 0 | EI14: ='Projet - Produits'!EI263 -> 0 | EJ14: ='Projet - Produits'!EJ263 -> 0 | EK14: ='Projet - Produits'!EK263 -> 0 | EL14: ='Projet - Produits'!EL263 -> 0 | EM14: ='Projet - Produits'!EM263 -> 0 | EN14: ='Projet - Produits'!EN263 -> 0 | EO14: ='Projet - Produits'!EO263 -> 0 | EP14: ='Projet - Produits'!EP263 -> 0 | EQ14: ='Projet - Produits'!EQ263 -> 0 | ER14: ='Projet - Produits'!ER263 -> 0 | ES14: ='Projet - Produits'!ES263 -> 0 | ET14: ='Projet - Produits'!ET263 -> 0 | EU14: ='Projet - Produits'!EU263 -> 0 | EV14: ='Projet - Produits'!EV263 -> 0 | EW14: ='Projet - Produits'!EW263 -> 0 | EX14: ='Projet - Produits'!EX263 -> 0 | EY14: ='Projet - Produits'!EY263 -> 0 | EZ14: ='Projet - Produits'!EZ263 -> 0 | FA14: ='Projet - Produits'!FA263 -> 0 | FB14: ='Projet - Produits'!FB263 -> 0 | FC14: ='Projet - Produits'!FC263 -> 0 | FD14: ='Projet - Produits'!FD263 -> 0 | FE14: ='Projet - Produits'!FE263 -> 0 | FF14: ='Projet - Produits'!FF263 -> 0 | FG14: ='Projet - Produits'!FG263 -> 0 | FH14: ='Projet - Produits'!FH263 -> 0 | FI14: ='Projet - Produits'!FI263 -> 0 | FJ14: ='Projet - Produits'!FJ263 -> 0 | FK14: ='Projet - Produits'!FK263 -> 0 | FL14: ='Projet - Produits'!FL263 -> 0 | FM14: ='Projet - Produits'!FM263 -> 0 | FN14: ='Projet - Produits'!FN263 -> 0 | FO14: ='Projet - Produits'!FO263 -> 0 | FP14: ='Projet - Produits'!FP263 -> 0 | FQ14: ='Projet - Produits'!FQ263 -> 0 | FR14: ='Projet - Produits'!FR263 -> 0 | FS14: ='Projet - Produits'!FS263 -> 0 | FT14: ='Projet - Produits'!FT263 -> 0 | FU14: ='Projet - Produits'!FU263 -> 0 | FV14: ='Projet - Produits'!FV263 -> 0 | FW14: ='Projet - Produits'!FW263 -> 0 | FX14: ='Projet - Produits'!FX263 -> 0 | FY14: ='Projet - Produits'!FY263 -> 0 | FZ14: ='Projet - Produits'!FZ263 -> 0 | GA14: ='Projet - Produits'!GA263 -> 0 | GB14: ='Projet - Produits'!GB263 -> 0 | GC14: ='Projet - Produits'!GC263 -> 0 | GD14: ='Projet - Produits'!GD263 -> 0 | GE14: ='Projet - Produits'!GE263 -> 0 | GF14: ='Projet - Produits'!GF263 -> 0 | GG14: ='Projet - Produits'!GG263 -> 0 | GH14: ='Projet - Produits'!GH263 -> 0 | GI14: ='Projet - Produits'!GI263 -> 0 | GJ14: ='Projet - Produits'!GJ263 -> 0 | GK14: ='Projet - Produits'!GK263 -> 0 | GL14: ='Projet - Produits'!GL263 -> 0 | GM14: ='Projet - Produits'!GM263 -> 0 | GN14: ='Projet - Produits'!GN263 -> 0 | GO14: ='Projet - Produits'!GO263 -> 0 | GP14: ='Projet - Produits'!GP263 -> 0 | GQ14: ='Projet - Produits'!GQ263 -> 0 | GR14: ='Projet - Produits'!GR263 -> 0 | GS14: ='Projet - Produits'!GS263 -> 0 | GT14: ='Projet - Produits'!GT263 -> 0 | GU14: ='Projet - Produits'!GU263 -> 0 | GV14: ='Projet - Produits'!GV263 -> 0
A15: Total forçage radiatif instantané (annuel) | E15: =SUM(E10:E14) -> 0 | F15: =SUM(F10:F14) -> 0 | G15: 0 | H15: 0 | I15: 0 | J15: 0 | K15: 0 | L15: 0 | M15: 0 | N15: 0 | O15: 0 | P15: 0 | Q15: 0 | R15: 0 | S15: 0 | T15: 0 | U15: 0 | V15: 0 | W15: 0 | X15: 0 | Y15: 0 | Z15: 0 | AA15: 0 | AB15: 0 | AC15: 0 | AD15: 0 | AE15: 0 | AF15: 0 | AG15: 0 | AH15: 0 | AI15: 0 | AJ15: 0 | AK15: 0 | AL15: 0 | AM15: 0 | AN15: 0 | AO15: 0 | AP15: 0 | AQ15: 0 | AR15: 0 | AS15: 0 | AT15: 0 | AU15: 0 | AV15: 0 | AW15: 0 | AX15: 0 | AY15: 0 | AZ15: 0 | BA15: 0 | BB15: 0 | BC15: 0 | BD15: 0 | BE15: 0 | BF15: 0 | BG15: 0 | BH15: 0 | BI15: 0 | BJ15: 0 | BK15: 0 | BL15: 0 | BM15: 0 | BN15: 0 | BO15: 0 | BP15: 0 | BQ15: 0 | BR15: =SUM(BR10:BR14) -> 0 | BS15: 0 | BT15: 0 | BU15: 0 | BV15: 0 | BW15: 0 | BX15: 0 | BY15: 0 | BZ15: 0 | CA15: 0 | CB15: 0 | CC15: 0 | CD15: 0 | CE15: 0 | CF15: 0 | CG15: 0 | CH15: 0 | CI15: 0 | CJ15: 0 | CK15: 0 | CL15: 0 | CM15: 0 | CN15: 0 | CO15: 0 | CP15: 0 | CQ15: 0 | CR15: 0 | CS15: 0 | CT15: 0 | CU15: 0 | CV15: 0 | CW15: 0 | CX15: 0 | CY15: 0 | CZ15: 0 | DA15: 0 | DB15: 0 | DC15: 0 | DD15: 0 | DE15: 0 | DF15: 0 | DG15: 0 | DH15: 0 | DI15: 0 | DJ15: 0 | DK15: 0 | DL15: 0 | DM15: 0 | DN15: 0 | DO15: 0 | DP15: 0 | DQ15: 0 | DR15: 0 | DS15: 0 | DT15: 0 | DU15: 0 | DV15: 0 | DW15: 0 | DX15: 0 | DY15: 0 | DZ15: 0 | EA15: 0 | EB15: 0 | EC15: 0 | ED15: =SUM(ED10:ED14) -> 0 | EE15: 0 | EF15: 0 | EG15: 0 | EH15: 0 | EI15: 0 | EJ15: 0 | EK15: 0 | EL15: 0 | EM15: 0 | EN15: 0 | EO15: 0 | EP15: 0 | EQ15: 0 | ER15: 0 | ES15: 0 | ET15: 0 | EU15: 0 | EV15: 0 | EW15: 0 | EX15: 0 | EY15: 0 | EZ15: 0 | FA15: 0 | FB15: 0 | FC15: 0 | FD15: 0 | FE15: 0 | FF15: 0 | FG15: 0 | FH15: 0 | FI15: 0 | FJ15: 0 | FK15: 0 | FL15: 0 | FM15: 0 | FN15: 0 | FO15: 0 | FP15: 0 | FQ15: 0 | FR15: 0 | FS15: 0 | FT15: 0 | FU15: 0 | FV15: 0 | FW15: 0 | FX15: 0 | FY15: 0 | FZ15: 0 | GA15: 0 | GB15: 0 | GC15: 0 | GD15: 0 | GE15: 0 | GF15: 0 | GG15: 0 | GH15: 0 | GI15: 0 | GJ15: 0 | GK15: 0 | GL15: 0 | GM15: 0 | GN15: 0 | GO15: 0 | GP15: =SUM(GP10:GP14) -> 0 | GQ15: 0 | GR15: 0 | GS15: 0 | GT15: 0 | GU15: 0 | GV15: 0
A16: Forçage radiatif cumulatif | E16: =E15 -> 0 | F16: =E16+F15 -> 0 | G16: =F16+G15 -> 0 | H16: =G16+H15 -> 0 | I16: 0 | J16: 0 | K16: 0 | L16: 0 | M16: 0 | N16: 0 | O16: 0 | P16: 0 | Q16: 0 | R16: 0 | S16: 0 | T16: 0 | U16: 0 | V16: 0 | W16: 0 | X16: 0 | Y16: 0 | Z16: 0 | AA16: 0 | AB16: 0 | AC16: 0 | AD16: 0 | AE16: 0 | AF16: 0 | AG16: 0 | AH16: =AG16+AH15 -> 0 | AI16: 0 | AJ16: 0 | AK16: 0 | AL16: 0 | AM16: 0 | AN16: 0 | AO16: 0 | AP16: 0 | AQ16: 0 | AR16: 0 | AS16: 0 | AT16: 0 | AU16: 0 | AV16: 0 | AW16: 0 | AX16: 0 | AY16: 0 | AZ16: 0 | BA16: 0 | BB16: 0 | BC16: 0 | BD16: 0 | BE16: 0 | BF16: 0 | BG16: 0 | BH16: 0 | BI16: 0 | BJ16: 0 | BK16: 0 | BL16: 0 | BM16: 0 | BN16: 0 | BO16: 0 | BP16: 0 | BQ16: 0 | BR16: 0 | BS16: =BR16+BS15 -> 0 | BT16: 0 | BU16: 0 | BV16: 0 | BW16: 0 | BX16: 0 | BY16: 0 | BZ16: 0 | CA16: 0 | CB16: 0 | CC16: 0 | CD16: 0 | CE16: 0 | CF16: 0 | CG16: 0 | CH16: 0 | CI16: 0 | CJ16: 0 | CK16: 0 | CL16: 0 | CM16: 0 | CN16: 0 | CO16: 0 | CP16: 0 | CQ16: 0 | CR16: 0 | CS16: 0 | CT16: 0 | CU16: 0 | CV16: 0 | CW16: 0 | CX16: 0 | CY16: 0 | CZ16: 0 | DA16: 0 | DB16: 0 | DC16: 0 | DD16: 0 | DE16: 0 | DF16: 0 | DG16: 0 | DH16: 0 | DI16: 0 | DJ16: 0 | DK16: 0 | DL16: 0 | DM16: 0 | DN16: 0 | DO16: 0 | DP16: 0 | DQ16: 0 | DR16: 0 | DS16: 0 | DT16: 0 | DU16: 0 | DV16: 0 | DW16: 0 | DX16: 0 | DY16: 0 | DZ16: 0 | EA16: 0 | EB16: 0 | EC16: 0 | ED16: 0 | EE16: =ED16+EE15 -> 0 | EF16: 0 | EG16: 0 | EH16: 0 | EI16: 0 | EJ16: 0 | EK16: 0 | EL16: 0 | EM16: 0 | EN16: 0 | EO16: 0 | EP16: 0 | EQ16: 0 | ER16: 0 | ES16: 0 | ET16: 0 | EU16: 0 | EV16: 0 | EW16: 0 | EX16: 0 | EY16: 0 | EZ16: 0 | FA16: 0 | FB16: 0 | FC16: 0 | FD16: 0 | FE16: 0 | FF16: 0 | FG16: 0 | FH16: 0 | FI16: 0 | FJ16: 0 | FK16: 0 | FL16: 0 | FM16: 0 | FN16: 0 | FO16: 0 | FP16: 0 | FQ16: 0 | FR16: 0 | FS16: 0 | FT16: 0 | FU16: 0 | FV16: 0 | FW16: 0 | FX16: 0 | FY16: 0 | FZ16: 0 | GA16: 0 | GB16: 0 | GC16: 0 | GD16: 0 | GE16: 0 | GF16: 0 | GG16: 0 | GH16: 0 | GI16: 0 | GJ16: 0 | GK16: 0 | GL16: 0 | GM16: 0 | GN16: 0 | GO16: 0 | GP16: 0 | GQ16: =GP16+GQ15 -> 0 | GR16: 0 | GS16: 0 | GT16: 0 | GU16: 0 | GV16: 0
A18: Scénario de référence
A19: Forçage radiatif instantané (annuel) dû aux flux de CO2 associés au réservoir "Total Écosystème" | E19: ='Référence - Écosystème'!E425 -> 0 | F19: ='Référence - Écosystème'!F425 -> 0 | G19: ='Référence - Écosystème'!G425 -> 0 | H19: ='Référence - Écosystème'!H425 -> 0 | I19: ='Référence - Écosystème'!I425 -> 0 | J19: ='Référence - Écosystème'!J425 -> 0 | K19: ='Référence - Écosystème'!K425 -> 0 | L19: ='Référence - Écosystème'!L425 -> 0 | M19: ='Référence - Écosystème'!M425 -> 0 | N19: ='Référence - Écosystème'!N425 -> 0 | O19: ='Référence - Écosystème'!O425 -> 0 | P19: ='Référence - Écosystème'!P425 -> 0 | Q19: ='Référence - Écosystème'!Q425 -> 0 | R19: ='Référence - Écosystème'!R425 -> 0 | S19: ='Référence - Écosystème'!S425 -> 0 | T19: ='Référence - Écosystème'!T425 -> 0 | U19: ='Référence - Écosystème'!U425 -> 0 | V19: ='Référence - Écosystème'!V425 -> 0 | W19: ='Référence - Écosystème'!W425 -> 0 | X19: ='Référence - Écosystème'!X425 -> 0 | Y19: ='Référence - Écosystème'!Y425 -> 0 | Z19: ='Référence - Écosystème'!Z425 -> 0 | AA19: ='Référence - Écosystème'!AA425 -> 0 | AB19: ='Référence - Écosystème'!AB425 -> 0 | AC19: ='Référence - Écosystème'!AC425 -> 0 | AD19: ='Référence - Écosystème'!AD425 -> 0 | AE19: ='Référence - Écosystème'!AE425 -> 0 | AF19: ='Référence - Écosystème'!AF425 -> 0 | AG19: ='Référence - Écosystème'!AG425 -> 0 | AH19: ='Référence - Écosystème'!AH425 -> 0 | AI19: ='Référence - Écosystème'!AI425 -> 0 | AJ19: ='Référence - Écosystème'!AJ425 -> 0 | AK19: ='Référence - Écosystème'!AK425 -> 0 | AL19: ='Référence - Écosystème'!AL425 -> 0 | AM19: ='Référence - Écosystème'!AM425 -> 0 | AN19: ='Référence - Écosystème'!AN425 -> 0 | AO19: ='Référence - Écosystème'!AO425 -> 0 | AP19: ='Référence - Écosystème'!AP425 -> 0 | AQ19: ='Référence - Écosystème'!AQ425 -> 0 | AR19: ='Référence - Écosystème'!AR425 -> 0 | AS19: ='Référence - Écosystème'!AS425 -> 0 | AT19: ='Référence - Écosystème'!AT425 -> 0 | AU19: ='Référence - Écosystème'!AU425 -> 0 | AV19: ='Référence - Écosystème'!AV425 -> 0 | AW19: ='Référence - Écosystème'!AW425 -> 0 | AX19: ='Référence - Écosystème'!AX425 -> 0 | AY19: ='Référence - Écosystème'!AY425 -> 0 | AZ19: ='Référence - Écosystème'!AZ425 -> 0 | BA19: ='Référence - Écosystème'!BA425 -> 0 | BB19: ='Référence - Écosystème'!BB425 -> 0 | BC19: ='Référence - Écosystème'!BC425 -> 0 | BD19: ='Référence - Écosystème'!BD425 -> 0 | BE19: ='Référence - Écosystème'!BE425 -> 0 | BF19: ='Référence - Écosystème'!BF425 -> 0 | BG19: ='Référence - Écosystème'!BG425 -> 0 | BH19: ='Référence - Écosystème'!BH425 -> 0 | BI19: ='Référence - Écosystème'!BI425 -> 0 | BJ19: ='Référence - Écosystème'!BJ425 -> 0 | BK19: ='Référence - Écosystème'!BK425 -> 0 | BL19: ='Référence - Écosystème'!BL425 -> 0 | BM19: ='Référence - Écosystème'!BM425 -> 0 | BN19: ='Référence - Écosystème'!BN425 -> 0 | BO19: ='Référence - Écosystème'!BO425 -> 0 | BP19: ='Référence - Écosystème'!BP425 -> 0 | BQ19: ='Référence - Écosystème'!BQ425 -> 0 | BR19: ='Référence - Écosystème'!BR425 -> 0 | BS19: ='Référence - Écosystème'!BS425 -> 0 | BT19: ='Référence - Écosystème'!BT425 -> 0 | BU19: ='Référence - Écosystème'!BU425 -> 0 | BV19: ='Référence - Écosystème'!BV425 -> 0 | BW19: ='Référence - Écosystème'!BW425 -> 0 | BX19: ='Référence - Écosystème'!BX425 -> 0 | BY19: ='Référence - Écosystème'!BY425 -> 0 | BZ19: ='Référence - Écosystème'!BZ425 -> 0 | CA19: ='Référence - Écosystème'!CA425 -> 0 | CB19: ='Référence - Écosystème'!CB425 -> 0 | CC19: ='Référence - Écosystème'!CC425 -> 0 | CD19: ='Référence - Écosystème'!CD425 -> 0 | CE19: ='Référence - Écosystème'!CE425 -> 0 | CF19: ='Référence - Écosystème'!CF425 -> 0 | CG19: ='Référence - Écosystème'!CG425 -> 0 | CH19: ='Référence - Écosystème'!CH425 -> 0 | CI19: ='Référence - Écosystème'!CI425 -> 0 | CJ19: ='Référence - Écosystème'!CJ425 -> 0 | CK19: ='Référence - Écosystème'!CK425 -> 0 | CL19: ='Référence - Écosystème'!CL425 -> 0 | CM19: ='Référence - Écosystème'!CM425 -> 0 | CN19: ='Référence - Écosystème'!CN425 -> 0 | CO19: ='Référence - Écosystème'!CO425 -> 0 | CP19: ='Référence - Écosystème'!CP425 -> 0 | CQ19: ='Référence - Écosystème'!CQ425 -> 0 | CR19: ='Référence - Écosystème'!CR425 -> 0 | CS19: ='Référence - Écosystème'!CS425 -> 0 | CT19: ='Référence - Écosystème'!CT425 -> 0 | CU19: ='Référence - Écosystème'!CU425 -> 0 | CV19: ='Référence - Écosystème'!CV425 -> 0 | CW19: ='Référence - Écosystème'!CW425 -> 0 | CX19: ='Référence - Écosystème'!CX425 -> 0 | CY19: ='Référence - Écosystème'!CY425 -> 0 | CZ19: ='Référence - Écosystème'!CZ425 -> 0 | DA19: ='Référence - Écosystème'!DA425 -> 0 | DB19: ='Référence - Écosystème'!DB425 -> 0 | DC19: ='Référence - Écosystème'!DC425 -> 0 | DD19: ='Référence - Écosystème'!DD425 -> 0 | DE19: ='Référence - Écosystème'!DE425 -> 0 | DF19: ='Référence - Écosystème'!DF425 -> 0 | DG19: ='Référence - Écosystème'!DG425 -> 0 | DH19: ='Référence - Écosystème'!DH425 -> 0 | DI19: ='Référence - Écosystème'!DI425 -> 0 | DJ19: ='Référence - Écosystème'!DJ425 -> 0 | DK19: ='Référence - Écosystème'!DK425 -> 0 | DL19: ='Référence - Écosystème'!DL425 -> 0 | DM19: ='Référence - Écosystème'!DM425 -> 0 | DN19: ='Référence - Écosystème'!DN425 -> 0 | DO19: ='Référence - Écosystème'!DO425 -> 0 | DP19: ='Référence - Écosystème'!DP425 -> 0 | DQ19: ='Référence - Écosystème'!DQ425 -> 0 | DR19: ='Référence - Écosystème'!DR425 -> 0 | DS19: ='Référence - Écosystème'!DS425 -> 0 | DT19: ='Référence - Écosystème'!DT425 -> 0 | DU19: ='Référence - Écosystème'!DU425 -> 0 | DV19: ='Référence - Écosystème'!DV425 -> 0 | DW19: ='Référence - Écosystème'!DW425 -> 0 | DX19: ='Référence - Écosystème'!DX425 -> 0 | DY19: ='Référence - Écosystème'!DY425 -> 0 | DZ19: ='Référence - Écosystème'!DZ425 -> 0 | EA19: ='Référence - Écosystème'!EA425 -> 0 | EB19: ='Référence - Écosystème'!EB425 -> 0 | EC19: ='Référence - Écosystème'!EC425 -> 0 | ED19: ='Référence - Écosystème'!ED425 -> 0 | EE19: ='Référence - Écosystème'!EE425 -> 0 | EF19: ='Référence - Écosystème'!EF425 -> 0 | EG19: ='Référence - Écosystème'!EG425 -> 0 | EH19: ='Référence - Écosystème'!EH425 -> 0 | EI19: ='Référence - Écosystème'!EI425 -> 0 | EJ19: ='Référence - Écosystème'!EJ425 -> 0 | EK19: ='Référence - Écosystème'!EK425 -> 0 | EL19: ='Référence - Écosystème'!EL425 -> 0 | EM19: ='Référence - Écosystème'!EM425 -> 0 | EN19: ='Référence - Écosystème'!EN425 -> 0 | EO19: ='Référence - Écosystème'!EO425 -> 0 | EP19: ='Référence - Écosystème'!EP425 -> 0 | EQ19: ='Référence - Écosystème'!EQ425 -> 0 | ER19: ='Référence - Écosystème'!ER425 -> 0 | ES19: ='Référence - Écosystème'!ES425 -> 0 | ET19: ='Référence - Écosystème'!ET425 -> 0 | EU19: ='Référence - Écosystème'!EU425 -> 0 | EV19: ='Référence - Écosystème'!EV425 -> 0 | EW19: ='Référence - Écosystème'!EW425 -> 0 | EX19: ='Référence - Écosystème'!EX425 -> 0 | EY19: ='Référence - Écosystème'!EY425 -> 0 | EZ19: ='Référence - Écosystème'!EZ425 -> 0 | FA19: ='Référence - Écosystème'!FA425 -> 0 | FB19: ='Référence - Écosystème'!FB425 -> 0 | FC19: ='Référence - Écosystème'!FC425 -> 0 | FD19: ='Référence - Écosystème'!FD425 -> 0 | FE19: ='Référence - Écosystème'!FE425 -> 0 | FF19: ='Référence - Écosystème'!FF425 -> 0 | FG19: ='Référence - Écosystème'!FG425 -> 0 | FH19: ='Référence - Écosystème'!FH425 -> 0 | FI19: ='Référence - Écosystème'!FI425 -> 0 | FJ19: ='Référence - Écosystème'!FJ425 -> 0 | FK19: ='Référence - Écosystème'!FK425 -> 0 | FL19: ='Référence - Écosystème'!FL425 -> 0 | FM19: ='Référence - Écosystème'!FM425 -> 0 | FN19: ='Référence - Écosystème'!FN425 -> 0 | FO19: ='Référence - Écosystème'!FO425 -> 0 | FP19: ='Référence - Écosystème'!FP425 -> 0 | FQ19: ='Référence - Écosystème'!FQ425 -> 0 | FR19: ='Référence - Écosystème'!FR425 -> 0 | FS19: ='Référence - Écosystème'!FS425 -> 0 | FT19: ='Référence - Écosystème'!FT425 -> 0 | FU19: ='Référence - Écosystème'!FU425 -> 0 | FV19: ='Référence - Écosystème'!FV425 -> 0 | FW19: ='Référence - Écosystème'!FW425 -> 0 | FX19: ='Référence - Écosystème'!FX425 -> 0 | FY19: ='Référence - Écosystème'!FY425 -> 0 | FZ19: ='Référence - Écosystème'!FZ425 -> 0 | GA19: ='Référence - Écosystème'!GA425 -> 0 | GB19: ='Référence - Écosystème'!GB425 -> 0 | GC19: ='Référence - Écosystème'!GC425 -> 0 | GD19: ='Référence - Écosystème'!GD425 -> 0 | GE19: ='Référence - Écosystème'!GE425 -> 0 | GF19: ='Référence - Écosystème'!GF425 -> 0 | GG19: ='Référence - Écosystème'!GG425 -> 0 | GH19: ='Référence - Écosystème'!GH425 -> 0 | GI19: ='Référence - Écosystème'!GI425 -> 0 | GJ19: ='Référence - Écosystème'!GJ425 -> 0 | GK19: ='Référence - Écosystème'!GK425 -> 0 | GL19: ='Référence - Écosystème'!GL425 -> 0 | GM19: ='Référence - Écosystème'!GM425 -> 0 | GN19: ='Référence - Écosystème'!GN425 -> 0 | GO19: ='Référence - Écosystème'!GO425 -> 0 | GP19: ='Référence - Écosystème'!GP425 -> 0 | GQ19: ='Référence - Écosystème'!GQ425 -> 0 | GR19: ='Référence - Écosystème'!GR425 -> 0 | GS19: ='Référence - Écosystème'!GS425 -> 0 | GT19: ='Référence - Écosystème'!GT425 -> 0 | GU19: ='Référence - Écosystème'!GU425 -> 0 | GV19: ='Référence - Écosystème'!GV425 -> 0
